Workbook

Sheet Form
B2: =IF(AND(WSIZE>0,HSIZE>0),"Only Available At"&" "&WSIZE&" x "&HSIZE&IF(HCONTROL=1," or "&HSIZE2,""),"") ->  | H2: Select a Model
B3: =IF(Model_Select="Select Model","Select a Model","(Model"&" "&ModelNo&")") -> Select a Model | J3: ="Min. W:"&" "&MINW -> Min. W: 0 | N3: ="Max W:"&" "&MAXW -> Max W: 0
B4: =Description -> 0 | J4: ="Min. H:"&" "&MINH -> Min. H: 0 | N4: ="Max H:"&" "&MAXH -> Max H: 0 | P4: ="Max UI:"&" "&MAXUI -> Max UI: 0
B5: =IF(AND(W>0,H>0),(IF(ISERROR(VLOOKUP(1,Data!$A:$D,3,FALSE)),"",VLOOKUP(1,Data!$A:$D,3,FALSE))),"") ->  | H5: =IF(AND(W>0,H>0),(IF(ISERROR(VLOOKUP(1,Data!$A:$D,4,FALSE)),"",VLOOKUP(1,Data!$A:$D,4,FALSE))),"") ->  | N5: Exact Size
B6: =IF(AND(W>0,H>0),(IF(ISERROR(VLOOKUP(2,Data!$A:$D,3,FALSE)),"",VLOOKUP(2,Data!$A:$D,3,FALSE))),"") ->  | H6: =IF(AND(W>0,H>0),(IF(ISERROR(VLOOKUP(2,Data!$A:$D,4,FALSE)),"",VLOOKUP(2,Data!$A:$D,4,FALSE))),"") ->  | J6: Width: | N6: =IF(AND(RO=2,W>0),W-WCUTBACK,W) -> 0 | O6: =IF(AND(W>0,WSIZE>0,W<>WSIZE),"<< Width Not Available","") -> 
B7: =IF(AND(W>0,H>0),(IF(ISERROR(VLOOKUP(3,Data!$A:$D,3,FALSE)),"",VLOOKUP(3,Data!$A:$D,3,FALSE))),"") ->  | H7: =IF(AND(W>0,H>0),(IF(ISERROR(VLOOKUP(3,Data!$A:$D,4,FALSE)),"",VLOOKUP(3,Data!$A:$D,4,FALSE))),"") ->  | J7: Height: | N7: =IF(AND(RO=2,H>0),H-HCUTBACK,H) -> 0 | O7: =IF(AND(H>0,HSIZE>0,HSIZE2>0,H<>HSIZE,H<>HSIZE2),"<< Height Not Available","") -> 
B8: =IF(AND(W>0,H>0),(IF(ISERROR(VLOOKUP(4,Data!$A:$D,3,FALSE)),"",VLOOKUP(4,Data!$A:$D,3,FALSE))),"") ->  | H8: =IF(AND(W>0,H>0),(IF(ISERROR(VLOOKUP(4,Data!$A:$D,4,FALSE)),"",VLOOKUP(4,Data!$A:$D,4,FALSE))),"") -> 
B9: =IF(AND(W>0,H>0),(IF(ISERROR(VLOOKUP(5,Data!$A:$D,3,FALSE)),"",VLOOKUP(5,Data!$A:$D,3,FALSE))),"") ->  | H9: =IF(AND(W>0,H>0),(IF(ISERROR(VLOOKUP(5,Data!$A:$D,4,FALSE)),"",VLOOKUP(5,Data!$A:$D,4,FALSE))),"") ->  | J9: =IF(BTYPE="Custom","CMR:","") ->  | N9: =IF(AND(W>0,H>0,BTYPE="Custom",CMR=0),"<< Enter CMR Location","") -> 
B10: =IF(AND(W>0,H>0),(IF(ISERROR(VLOOKUP(6,Data!$A:$D,3,FALSE)),"",VLOOKUP(6,Data!$A:$D,3,FALSE))),"") ->  | H10: =IF(AND(W>0,H>0),(IF(ISERROR(VLOOKUP(6,Data!$A:$D,4,FALSE)),"",VLOOKUP(6,Data!$A:$D,4,FALSE))),"") ->  | J10: =IF(SELECTEXT="Select Extrusion","Ext.",IF(SELECTEXT="Select Reinforcement","Reinforce","")) ->  | N10: =EXT_MESSAGE -> 
B11: =IF(AND(W>0,H>0),(IF(ISERROR(VLOOKUP(7,Data!$A:$D,3,FALSE)),"",VLOOKUP(7,Data!$A:$D,3,FALSE))),"") ->  | H11: =IF(AND(W>0,H>0),(IF(ISERROR(VLOOKUP(7,Data!$A:$D,4,FALSE)),"",VLOOKUP(7,Data!$A:$D,4,FALSE))),"") ->  | J11: Opening: | N11: =RO_OPTION -> 0
B12: =IF(AND(W>0,H>0),(IF(ISERROR(VLOOKUP(8,Data!$A:$D,3,FALSE)),"",VLOOKUP(8,Data!$A:$D,3,FALSE))),"") ->  | H12: =IF(AND(W>0,H>0),(IF(ISERROR(VLOOKUP(8,Data!$A:$D,4,FALSE)),"",VLOOKUP(8,Data!$A:$D,4,FALSE))),"") ->  | J12: Type:
B13: =IF(AND(W>0,H>0),(IF(ISERROR(VLOOKUP(9,Data!$A:$D,3,FALSE)),"",VLOOKUP(9,Data!$A:$D,3,FALSE))),"") ->  | H13: =IF(AND(W>0,H>0),(IF(ISERROR(VLOOKUP(9,Data!$A:$D,4,FALSE)),"",VLOOKUP(9,Data!$A:$D,4,FALSE))),"") ->  | J13: Screen:
B14: =IF(AND(W>0,H>0),(IF(ISERROR(VLOOKUP(10,Data!$A:$D,3,FALSE)),"",VLOOKUP(10,Data!$A:$D,3,FALSE))),"") ->  | H14: =IF(AND(W>0,H>0),(IF(ISERROR(VLOOKUP(10,Data!$A:$D,4,FALSE)),"",VLOOKUP(10,Data!$A:$D,4,FALSE))),"") ->  | J14: Glass: | O14: =GLASS_MESSAGE -> 0
B16: =IF(AND(W>0,H>0),(IF(ISERROR(VLOOKUP(11,Data!$A:$D,3,FALSE)),"",VLOOKUP(11,Data!$A:$D,3,FALSE))),"") ->  | H16: =IF(AND(W>0,H>0),(IF(ISERROR(VLOOKUP(11,Data!$A:$D,4,FALSE)),"",VLOOKUP(11,Data!$A:$D,4,FALSE))),"") ->  | N16: A Designated AC Sash is Used to Replace BOTH Top and Bottom Sashes When AC is in the Window
B17: =IF(AND(W>0,H>0),(IF(ISERROR(VLOOKUP(12,Data!$A:$D,3,FALSE)),"",VLOOKUP(12,Data!$A:$D,3,FALSE))),"") ->  | H17: =IF(AND(W>0,H>0),(IF(ISERROR(VLOOKUP(12,Data!$A:$D,4,FALSE)),"",VLOOKUP(12,Data!$A:$D,4,FALSE))),"") -> 
B18: =IF(AND(W>0,H>0),(IF(ISERROR(VLOOKUP(13,Data!$A:$D,3,FALSE)),"",VLOOKUP(13,Data!$A:$D,3,FALSE))),"") ->  | H18: =IF(AND(W>0,H>0),(IF(ISERROR(VLOOKUP(13,Data!$A:$D,4,FALSE)),"",VLOOKUP(13,Data!$A:$D,4,FALSE))),"") ->  | J18: AC Width: | N18: =IF(AND(W>0,H>0,ACWIDTH>0,ACHEIGHT>0,ACCMR>0,ACLINK=TRUE),ACCMR,IF(AND(W>0,H>0,ACWIDTH>0,ACSASHW>0,ACLINK=TRUE),ACSASHW,"")) ->  | O18: =IF(AND(W>0,H>0,ACWIDTH>0,ACHEIGHT>0,ACCMR>0,ACLINK=TRUE),"<< CMR",IF(AND(W>0,H>0,ACWIDTH>0,ACSASHW>0,ACLINK=TRUE),"<< AC Sash Width","")) -> 
B19: =IF(AND(W>0,H>0),(IF(ISERROR(VLOOKUP(14,Data!$A:$D,3,FALSE)),"",VLOOKUP(14,Data!$A:$D,3,FALSE))),"") ->  | H19: =IF(AND(W>0,H>0),(IF(ISERROR(VLOOKUP(14,Data!$A:$D,4,FALSE)),"",VLOOKUP(14,Data!$A:$D,4,FALSE))),"") ->  | J19: AC Height: | N19: =IF(AND(W>0,H>0,ACHEIGHT>0,ACSASHH>0,ACLINK=TRUE),ACSASHH,"") ->  | O19: =IF(AND(ACCMR>0,ACLINK=TRUE),"",IF(AND(W>0,H>0,ACHEIGHT>0,ACSASHH>0,ACLINK=TRUE),"<< AC Sash Height","")) -> 
B20: =IF(AND(W>0,H>0),(IF(ISERROR(VLOOKUP(15,Data!$A:$D,3,FALSE)),"",VLOOKUP(15,Data!$A:$D,3,FALSE))),"") ->  | H20: =IF(AND(W>0,H>0),(IF(ISERROR(VLOOKUP(15,Data!$A:$D,4,FALSE)),"",VLOOKUP(15,Data!$A:$D,4,FALSE))),"") -> 
B21: =IF(AND(W>0,H>0),(IF(ISERROR(VLOOKUP(16,Data!$A:$D,3,FALSE)),"",VLOOKUP(16,Data!$A:$D,3,FALSE))),"") ->  | H21: =IF(AND(W>0,H>0),(IF(ISERROR(VLOOKUP(16,Data!$A:$D,4,FALSE)),"",VLOOKUP(16,Data!$A:$D,4,FALSE))),"") -> 
B22: =IF(AND(W>0,H>0),(IF(ISERROR(VLOOKUP(17,Data!$A:$D,3,FALSE)),"",VLOOKUP(17,Data!$A:$D,3,FALSE))),"") ->  | H22: =IF(AND(W>0,H>0),(IF(ISERROR(VLOOKUP(17,Data!$A:$D,4,FALSE)),"",VLOOKUP(17,Data!$A:$D,4,FALSE))),"") -> 
B23: =IF(AND(W>0,H>0),(IF(ISERROR(VLOOKUP(18,Data!$A:$D,3,FALSE)),"",VLOOKUP(18,Data!$A:$D,3,FALSE))),"") ->  | H23: =IF(AND(W>0,H>0),(IF(ISERROR(VLOOKUP(18,Data!$A:$D,4,FALSE)),"",VLOOKUP(18,Data!$A:$D,4,FALSE))),"") -> 
B24: =IF(AND(W>0,H>0),(IF(ISERROR(VLOOKUP(19,Data!$A:$D,3,FALSE)),"",VLOOKUP(19,Data!$A:$D,3,FALSE))),"") ->  | H24: =IF(AND(W>0,H>0),(IF(ISERROR(VLOOKUP(19,Data!$A:$D,4,FALSE)),"",VLOOKUP(19,Data!$A:$D,4,FALSE))),"") -> 

Sheet Data (hidden)
B1: Model | C1: Description | D1: Value
A2: =IF(ModelNo=B2,1,"") ->  | B2: 8E00A | C2: Glass Width | D2: =Frame_Width-2.9375 -> -2.9375 | F2: =Model_Select -> Select Model | G2: Models | H2: Description | I2: W cut-back | J2: H-cut-back | K2: Width | L2: Height | M2: Min W | N2: Min H | O2: Max W | P2: Max H | Q2: Max UI | R2: Type1 | S2: Type2 | T2: Type3 | U2: Type4 | V2: Screen1 | W2: Screen2 | X2: Screen3 | Y2: Ext./Reinf. | Z2: Ext./Reinf. | AA2: Ext./Reinf. | AB2: Ext./Reinf. | AC2: Ext./Reinf. | AD2: Glass | AE2: Opening
A3: =IF(ModelNo=B3,2,"") ->  | B3: 8E00A | C3: Glass Height | D3: =Frame_Height-2.9375 -> -2.9375 | F3: 1 | G3: Select Model
A4: =IF(ModelNo=B4,3,"") ->  | B4: 8E00A | C4: Glass Area (sq.ft.) | D4: =(D2*D3)/144 -> 0.05992296007 | F4: 2 | G4: 8E00A | H4: Small Frame Picture Window | M4: 12 | N4: 12 | O4: 120 | P4: 120 | Q4: 168 | R4: Standard | V4: N/A
A5: =IF(ModelNo=B5,1,"") ->  | B5: 3S10A | C5: Sash Width | D5: =CDIM3R10A+0.25 -> 0.25 | F5: 3 | G5: 3S10A | H5: Single Slider (Lift Out) | M5: 20 | N5: 13 | O5: 80 | P5: 60 | Q5: 132 | R5: Standard | S5: Custom | V5: Half
A6: =IF(ModelNo=B6,2,"") ->  | B6: 3S10A | C6: Sash Height | D6: =Frame_Height-2.875 -> -2.875 | F6: 4 | G6: 3S21A | H6: Single Slider (Tilt) | M6: 20 | N6: 13 | O6: 78 | P6: 60 | Q6: 132 | R6: Standard | S6: Custom | V6: Half
A7: =IF(ModelNo=B7,3,"") ->  | B7: 3S10A | C7: Sash Glass Width | D7: =INTGW3R10A -> -2.5625 | F7: 5 | G7: 3S40A | H7: Single Hung | M7: 13 | N7: 20 | O7: 54 | P7: 84 | Q7: 132 | R7: Standard | S7: Custom | V7: Half
A8: =IF(ModelNo=B8,4,"") ->  | B8: 3S10A | C8: Sash Glass Height | D8: =INTGH3R10A -> -5.75 | F8: 6 | G8: 3S10C | H8: Three Lite Slider (Lift Out) | M8: 36 | N8: 13 | O8: 120 | P8: 60 | Q8: 168 | R8: Standard | S8: Custom | V8: Half
A9: =IF(ModelNo=B9,5,"") ->  | B9: 3S10A | C9: Fixed Glass Width | D9: =EXTGW3R10A -> -2.625 | F9: 7 | G9: 3S21C | H9: Three Lite Slider (Tilt) | M9: 36 | N9: 13 | O9: 120 | P9: 60 | Q9: 168 | R9: Standard | S9: Custom | V9: Half
A10: =IF(ModelNo=B10,6,"") ->  | B10: 3S10A | C10: Fixed Glass Height | D10: =EXTGH3R10A -> -2.8125 | F10: 8 | G10: 8E10A | H10: Double Slider (Lift Out) | M10: 21 | N10: 13 | O10: 80 | P10: 60 | Q10: 132 | R10: Standard | S10: Custom | V10: Half | W10: Full
A11: =IF(ModelNo=B11,7,"") ->  | B11: 3S10A | C11: Astragal Length | D11: =TRUNC((Frame_Height-2.17)*16+0.5)/16 -> -2.125 | F11: 9 | G11: 8E21A | H11: Double Slider (Tilt) | M11: 21 | N11: 13 | O11: 78 | P11: 60 | Q11: 132 | R11: Standard | S11: Custom | V11: Half | W11: Full
A12: =IF(ModelNo=B12,8,"") ->  | B12: 3S10A | C12: Screen Width | D12: =CDIM3R10A-2.1875 -> -2.1875 | F12: 10 | G12: 8E40A | H12: Double Hung | M12: 13 | N12: 21 | O12: 54 | P12: 84 | Q12: 132 | R12: Standard | S12: Custom | V12: Half | W12: Full
A13: =IF(ModelNo=B13,9,"") ->  | B13: 3S10A | C13: Screen Height | D13: =Frame_Height-3.9375 -> -3.9375 | F13: 11 | G13: 8V71F | H13: Fixed Casement/Awning | M13: 12 | N13: 12 | O13: 120 | P13: 120 | Q13: 168 | R13: Standard | V13: Full
A14: =IF(ModelNo=B14,10,"") ->  | B14: 3S10A | C14: Egress Opening Width | D14: =TRUNC((CDIM3R10A-4.5885)*16+0.5)/16 -> -4.5 | F14: 12 | G14: 8V71L | H14: Left Operating Casement | M14: 14 | N14: 14 | O14: 38 | P14: 78 | Q14: 114 | R14: Standard | V14: Full
A15: =IF(ModelNo=B15,11,"") ->  | B15: 3S10A | C15: Egress Opening Height | D15: =TRUNC((Frame_Height-4.471)*16+0.5)/16 -> -4.4375 | F15: 13 | G15: 8V71R | H15: Right Operating Casement | M15: 14 | N15: 14 | O15: 38 | P15: 78 | Q15: 114 | R15: Standard | V15: Full
A16: =IF(ModelNo=B16,12,"") ->  | B16: 3S10A | C16: Egress Opening Area (sq.ft.) | D16: =(D14*D15)/144 -> 0.138671875 | F16: 14 | G16: 3S55A | H16: Hopper | M16: 12 | N16: 12 | O16: 37 | P16: 37 | Q16: 55 | R16: Standard | V16: Full
A17: =IF(ModelNo=B17,1,"") ->  | B17: 3S21A | C17: Sash Width | D17: =CDIM3R21A+0.25 -> 0.25 | F17: 15 | G17: 3S56A | H17: Basement | M17: 14 | N17: 14 | O17: 54 | P17: 36 | Q17: 72 | R17: Standard | V17: Full
A18: =IF(ModelNo=B18,2,"") ->  | B18: 3S21A | C18: Sash Height | D18: =Frame_Height-2.75 -> -2.75 | F18: 16 | G18: 8V81A | H18: Operating Awning | M18: 15 | N18: 14 | O18: 60 | P18: 48 | Q18: 98 | R18: Standard
A19: =IF(ModelNo=B19,3,"") ->  | B19: 3S21A | C19: Sash Glass Width | D19: =INTGW3R21A -> -2.5625 | F19: 17 | G19: L201 | H19: Amherst Double Hung | I19: 0 | J19: 0 | M19: 11 | N19: 20 | O19: 48 | P19: 78 | Q19: 126 | R19: Standard | S19: Custom | V19: Half | W19: Full | X19: Locking
A20: =IF(ModelNo=B20,4,"") ->  | B20: 3S21A | C20: Sash Glass Height | D20: =INTGH3R21A -> -5.5625 | F20: 18 | G20: L202 | H20: Amherst 2 Lite Slider | I20: 0 | J20: 0 | M20: 18 | N20: 9 | O20: 84 | P20: 56 | Q20: 140 | R20: Standard | V20: Half | W20: Full
A21: =IF(ModelNo=B21,5,"") ->  | B21: 3S21A | C21: Fixed Glass Width | D21: =EXTGW3R21A -> -2.625 | F21: 19 | G21: L203 | H21: Amherst 3 Lite Slider (1/4-1/2-1/4) | I21: 0 | J21: 0 | M21: 48 | N21: 9 | O21: 108 | P21: 56 | Q21: 164 | R21: Standard (1/4-1/2-1/4) | V21: Half | W21: Full
A22: =IF(ModelNo=B22,6,"") ->  | B22: 3S21A | C22: Fixed Glass Height | D22: =EXTGH3R21A -> -2.8125 | F22: 20 | G22: L204 | H22: Amherst Picture Window | I22: 0 | J22: 0 | M22: 12 | N22: 9 | O22: 112 | P22: 96 | Q22: 154 | R22: Standard
A23: =IF(ModelNo=B23,7,"") ->  | B23: 3S21A | C23: Astragal Length | D23: =TRUNC((Frame_Height-2.17)*16+0.5)/16 -> -2.125 | F23: 21 | G23: L209 | H23: Amherst 3 Lite Slider Equal Lite | I23: 0 | J23: 0 | M23: 38 | N23: 9 | O23: 108 | P23: 56 | Q23: 164 | R23: Standard (1/3-1/3-1/3) | V23: Half | W23: Full
A24: =IF(ModelNo=B24,8,"") ->  | B24: 3S21A | C24: Screen Width | D24: =CDIM3R21A-2.1875 -> -2.1875 | F24: 22 | G24: 03A0 | H24: Mezzo Single Hung | I24: 0 | J24: 0 | M24: 11 | N24: 22 | O24: =IF(EXTSELECT=2,48,IF(EXTSELECT=3,52,"")) ->  | P24: =IF(EXTSELECT=2,84,IF(EXTSELECT=3,96,"")) ->  | Q24: =IF(EXTSELECT=2,126,IF(EXTSELECT=3,148,"")) ->  | R24: Standard | S24: Oriel (2/3 - 1/3) | T24: Cottage (1/3 - 2/3) | U24: Custom | V24: Half | W24: Full | X24: Locking | Y24: Select Reinforcement | Z24: Composite | AA24: Steel
A25: =IF(ModelNo=B25,9,"") ->  | B25: 3S21A | C25: Screen Height | D25: =Frame_Height-3.9375 -> -3.9375 | F25: 23 | G25: 03A2 | H25: Mezzo Two Lite Single Slider | I25: 0 | J25: 0 | M25: 18.5 | N25: 12 | O25: =IF(EXTSELECT=2,72,IF(EXTSELECT=3,96,"")) ->  | P25: =IF(EXTSELECT=2,56,IF(EXTSELECT=3,72,"")) ->  | Q25: =IF(EXTSELECT=2,128,IF(EXTSELECT=3,148,"")) ->  | R25: Standard | V25: Half | W25: Full | Y25: Select Reinforcement | Z25: Composite | AA25: Steel
A26: =IF(ModelNo=B26,10,"") ->  | B26: 3S21A | C26: Egress Opening Width | D26: =TRUNC((CDIM3R21A-7.901)*16+0.5)/16 -> -7.8125 | F26: 24 | G26: 03A3 | H26: Mezzo Three Lite Slider (1/4-1/2-1/4) | I26: 0 | J26: 0 | M26: 52 | N26: 12 | O26: =IF(EXTSELECT=2,108,IF(EXTSELECT=3,120,"")) ->  | P26: =IF(EXTSELECT=2,56,IF(EXTSELECT=3,72,"")) ->  | Q26: =IF(EXTSELECT=2,164,IF(EXTSELECT=3,192,"")) ->  | R26: Standard (1/4-1/2-1/4) | V26: Half | W26: Full | Y26: Select Reinforcement | Z26: Composite | AA26: Steel
A27: =IF(ModelNo=B27,11,"") ->  | B27: 3S21A | C27: Egress Opening Height | D27: =TRUNC((Frame_Height-4.3455)*16+0.5)/16 -> -4.3125 | F27: 25 | G27: 03A4 | H27: Mezzo Picture Window | I27: 0 | J27: 0 | M27: 9.5 | N27: 9.5 | O27: 112 | P27: 96 | Q27: 154 | R27: Standard
A28: =IF(ModelNo=B28,12,"") ->  | B28: 3S21A | C28: Egress Opening Area (sq.ft.) | D28: =(D26*D27)/144 -> 0.233968099 | F28: 26 | G28: 03A9 | H28: Mezzo Three Lite Slider Equal Lite | I28: 0 | J28: 0 | M28: 52 | N28: 12 | O28: =IF(EXTSELECT=2,108,IF(EXTSELECT=3,120,"")) ->  | P28: =IF(EXTSELECT=2,56,IF(EXTSELECT=3,72,"")) ->  | Q28: =IF(EXTSELECT=2,164,IF(EXTSELECT=3,192,"")) ->  | R28: Standard (1/3-1/3-1/3) | V28: Half | W28: Full | Y28: Select Reinforcement | Z28: Composite | AA28: Steel
A29: =IF(ModelNo=B29,1,"") ->  | B29: 3S40A | C29: Bottom Sash Width | D29: =Frame_Width-2.75 -> -2.75 | F29: 27 | G29: 0970 | H29: Casement Picture Window | I29: 0 | J29: 0 | M29: 13 | N29: 13 | O29: 96 | P29: 84 | Q29: 154 | R29: Standard
A30: =IF(ModelNo=B30,2,"") ->  | B30: 3S40A | C30: Bottom Sash Height | D30: =CDIM3R40A+0.25 -> 0.25 | F30: 28 | G30: 0971 | H30: Single Vent Casement | I30: 0 | J30: 0 | M30: 16 | N30: 19 | O30: 36 | P30: 78 | Q30: 114 | R30: Standard | V30: Full
A31: =IF(ModelNo=B31,3,"") ->  | B31: 3S40A | C31: Bottom Glass Width | D31: =BGW3R40A -> -5.5625 | F31: 29 | G31: 0972 | H31: Dual Vent Casement | I31: 0 | J31: 0 | M31: 32 | N31: 19 | O31: 72 | P31: 78 | Q31: 150 | R31: Standard | V31: Half
A32: =IF(ModelNo=B32,4,"") ->  | B32: 3S40A | C32: Bottom Glass Height | D32: =BGH3R40A -> -2.59375 | F32: 30 | G32: 0973 | H32: Dual Vent 3 Lite Casement (1/4-1/2-1/4) | I32: 0 | J32: 0 | M32: 64 | N32: 19 | O32: 120 | P32: 78 | Q32: 198 | R32: Standard (1/4-1/2-1/4) | V32: Half
A33: =IF(ModelNo=B33,5,"") ->  | B33: 3S40A | C33: Top Glass Width | D33: =TGW3R40A -> -2.8125 | F33: 31 | G33: 0974 | H33: 4 Lite Casement | I33: 0 | J33: 0 | M33: 64 | N33: 19 | O33: 120 | P33: 78 | Q33: 198 | R33: Standard | V33: Half
A34: =IF(ModelNo=B34,6,"") ->  | B34: 3S40A | C34: Top Glass Height | D34: =TGH3R40A -> -2.65625 | F34: 32 | G34: 0975 | H34: 5 Lite Casement | I34: 0 | J34: 0 | M34: 80 | N34: 19 | O34: 120 | P34: 78 | Q34: 198 | R34: Standard | V34: Half
A35: =IF(ModelNo=B35,7,"") ->  | B35: 3S40A | C35: Astragal Length | D35: =TRUNC((Frame_Width-2.1875)*16+0.5)/16 -> -2.125 | F35: 33 | G35: 0979 | H35: Dual Vent 3 Lite Casement (Equal Lite) | I35: 0 | J35: 0 | M35: 48 | N35: 19 | O35: 108 | P35: 78 | Q35: 186 | R35: Standard (1/3-1/3-1/3) | V35: Half
A36: =IF(ModelNo=B36,8,"") ->  | B36: 3S40A | C36: Screen Width | D36: =TRUNC((Frame_Width-3.9375)*16+0.5)/16 -> -3.875 | F36: 1 | G36: =VLOOKUP(Cell_Link,F3:G35,2,FALSE) -> Select Model | H36: =VLOOKUP(Model_Select,Data,2,FALSE) -> 0 | I36: =VLOOKUP(Model_Select,Data,3,FALSE) -> 0 | J36: =VLOOKUP(Model_Select,Data,4,FALSE) -> 0 | K36: =VLOOKUP(Model_Select,Data,5,FALSE) -> 0 | L36: =VLOOKUP(Model_Select,Data,6,FALSE) -> 0 | M36: =VLOOKUP(Model_Select,Data,7,FALSE) -> 0 | N36: =VLOOKUP(Model_Select,Data,8,FALSE) -> 0 | O36: =VLOOKUP(Model_Select,Data,9,FALSE) -> 0 | P36: =VLOOKUP(Model_Select,Data,10,FALSE) -> 0 | Q36: =VLOOKUP(Model_Select,Data,11,FALSE) -> 0 | R36: =VLOOKUP(Model_Select,Data,12,FALSE) -> 0 | S36: =VLOOKUP(Model_Select,Data,13,FALSE) -> 0 | T36: =VLOOKUP(Model_Select,Data,14,FALSE) -> 0 | U36: =VLOOKUP(Model_Select,Data,15,FALSE) -> 0 | V36: =VLOOKUP(Model_Select,Data,16,FALSE) -> 0 | W36: =VLOOKUP(Model_Select,Data,17,FALSE) -> 0 | X36: =VLOOKUP(Model_Select,Data,18,FALSE) -> 0 | Y36: =VLOOKUP(Model_Select,Data,19,FALSE) -> 0 | Z36: =VLOOKUP(Model_Select,Data,20,FALSE) -> 0 | AA36: =VLOOKUP(Model_Select,Data,21,FALSE) -> 0 | AB36: =VLOOKUP(Model_Select,Data,22,FALSE) -> 0 | AC36: =VLOOKUP(Model_Select,Data,23,FALSE) -> 0 | AD36: =VLOOKUP(Model_Select,Data,24,FALSE) -> 0 | AE36: =VLOOKUP(Model_Select,Data,25,FALSE) -> 0
A37: =IF(ModelNo=B37,9,"") ->  | B37: 3S40A | C37: Screen Height | D37: =TRUNC((CDIM3R40A-2.1875)*32+0.5)/32 -> -2.15625
A38: =IF(ModelNo=B38,10,"") ->  | B38: 3S40A | C38: Bottom Sash Weight | D38: =IF(ISERROR(BTM_WGT&" "&"lb"),"N/A",BTM_WGT&" "&"lb") -> N/A
A39: =IF(ModelNo=B39,11,"") ->  | B39: 3S40A | C39: Balance Size | D39: =IF(ISERROR((VLOOKUP(BTM_WGT,CFB,2,FALSE))&(VLOOKUP(BTM_WGT,CFB,3,FALSE))),"N/A",(VLOOKUP(BTM_WGT,CFB,2,FALSE))&(VLOOKUP(BTM_WGT,CFB,3,FALSE))) -> N/A
A40: =IF(ModelNo=B40,12,"") ->  | B40: 3S40A | C40: Egress Opening Width | D40: =IF(ISERROR(EW),"N/A",EW) -> N/A
A41: =IF(ModelNo=B41,13,"") ->  | B41: 3S40A | C41: Egress Opening Height | D41: =IF(ISERROR(EH),"N/A",EH) -> N/A | G41: 0204 | H41: Excalibur Picture Window | I41: 0 | J41: 0 | M41: 9 | N41: 9 | O41: 112 | P41: 96 | Q41: 154 | R41: Standard | AD41: =IF(OR(Glass=1,Glass=4,Glass=5,Glass=7,Glass=8),"<< Not Available","") ->  | AE41: =IF(RO=2,"<< Exact Size Only","") -> 
A42: =IF(ModelNo=B42,14,"") ->  | B42: 3S40A | C42: Egress Opening Area (sq.ft.) | D42: =IF(ISERROR(EO),"N/A",EO) -> N/A | G42: 0209 | H42: Excalibur 3 Lite Slider Equal Lite | I42: 0 | J42: 0 | M42: 37.25 | N42: 9 | O42: 120 | P42: 72 | Q42: 192 | R42: Standard (1/3-1/3-1/3) | V42: Half | W42: Full | AD42: =IF(OR(Glass=1,Glass=4,Glass=5,Glass=7,Glass=8),"<< Not Available","") -> 
A43: =IF(ModelNo=B43,1,"") ->  | B43: 3S10C | C43: Operating Sash Width | D43: =INTGW3R10C+2.875 -> 1.75 | G43: 02A0 | H43: Excalibur Single Hung | I43: 0 | J43: 0 | M43: 11 | N43: 20 | O43: 52 | P43: 84 | Q43: 132 | R43: Standard | S43: Oriel (2/3 - 1/3) | T43: Cottage (1/3 - 2/3) | U43: Custom | V43: Half | W43: Full | X43: Locking | AD43: =IF(OR(Glass=4,Glass=5,Glass=7,Glass=8),"<< Not Available","") -> 
A44: =IF(ModelNo=B44,2,"") ->  | B44: 3S10C | C44: Operating Sash Height | D44: =INTGH3R10C+2.875 -> -2.8125 | G44: 02A2 | H44: Excalibur 2 Lite Single Slider | I44: 0 | J44: 0 | M44: 18 | N44: 12 | O44: 84 | P44: 66 | Q44: 148 | R44: Standard | V44: Half | W44: Full | AD44: =IF(OR(Glass=4,Glass=5,Glass=7,Glass=8),"<< Not Available","") -> 
A45: =IF(ModelNo=B45,3,"") ->  | B45: 3S10C | C45: Astragal Length | D45: =TRUNC((Frame_Height-2.17)*16+0.5)/16 -> -2.125 | G45: 02A3 | H45: Excalibur 3 Lite Slider (1/4-1/2-1/4) | I45: 0 | J45: 0 | M45: 46 | N45: 12 | O45: 116 | P45: 66 | Q45: 182 | R45: Standard (1/4-1/2-1/4) | V45: Half | W45: Full | AD45: =IF(OR(Glass=4,Glass=5,Glass=7,Glass=8),"<< Not Available","") -> 
A46: =IF(ModelNo=B46,4,"") ->  | B46: 3S10C | C46: Operating Sash Glass Width | D46: =INTGW3R10C -> -1.125 | G46: 02A4 | H46: Excalibur Picture Window | I46: 0 | J46: 0 | M46: 9 | N46: 9 | O46: 96 | P46: 96 | Q46: 154 | R46: Standard | AD46: =IF(OR(Glass=1,Glass=4,Glass=5,Glass=7,Glass=8),"<< Not Available","") -> 
A47: =IF(ModelNo=B47,5,"") ->  | B47: 3S10C | C47: Operating Sash Glass Height | D47: =INTGH3R10C -> -5.6875 | G47: 02A9 | H47: Excalibur 3 Lite Slider Equal Lite | I47: 0 | J47: 0 | M47: 37.25 | N47: 12 | O47: 120 | P47: 66 | Q47: 182 | R47: Standard (1/3-1/3-1/3) | V47: Half | W47: Full | AD47: =IF(OR(Glass=4,Glass=5,Glass=7,Glass=8),"<< Not Available","") -> 
A48: =IF(ModelNo=B48,6,"") ->  | B48: 3S10C | C48: Fixed Glass Width | D48: =EXTGW3R10C -> -5.375 | G48: 3001 | H48: Mezzo Double Hung | I48: 0 | J48: 0 | M48: 12 | N48: 20 | O48: =IF(EXTSELECT=2,48,IF(EXTSELECT=3,52,"")) ->  | P48: =IF(EXTSELECT=2,84,IF(EXTSELECT=3,96,"")) ->  | Q48: =IF(EXTSELECT=2,126,IF(EXTSELECT=3,148,"")) ->  | R48: Standard | S48: Oriel (2/3 - 1/3) | T48: Cottage (1/3 - 2/3) | U48: Custom | V48: Half | W48: Full | X48: Locking | Y48: Select Reinforcement | Z48: Composite | AA48: Steel | AD48: =IF(OR(Glass=1,Glass=4,Glass=5,Glass=7,Glass=8),"<< Not Available","") -> 
A49: =IF(ModelNo=B49,7,"") ->  | B49: 3S10C | C49: Fixed Glass Height | D49: =EXTGH3R10C -> -2.8125 | G49: 3002 | H49: Mezzo Two Lite Slider | I49: 0 | J49: 0 | M49: 18.5 | N49: 11.25 | O49: =IF(EXTSELECT=2,72,IF(EXTSELECT=3,84,"")) ->  | P49: =IF(EXTSELECT=2,56,IF(EXTSELECT=3,72,"")) ->  | Q49: =IF(EXTSELECT=2,128,IF(EXTSELECT=3,156,"")) ->  | R49: Standard | V49: Half | W49: Full | Y49: Select Reinforcement | Z49: Composite | AA49: Steel | AD49: =IF(OR(Glass=1,Glass=4,Glass=5,Glass=7,Glass=8),"<< Not Available","") -> 
A50: =IF(ModelNo=B50,8,"") ->  | B50: 3S10C | C50: Screen Width | D50: =DDIM3R10C-2.1875 -> -0.75 | G50: 3003 | H50: Mezzo Three Lite Slider (1/4-1/2-1/4) | I50: 0 | J50: 0 | M50: 47.5 | N50: 11.25 | O50: =IF(EXTSELECT=2,108,IF(EXTSELECT=3,120,"")) ->  | P50: =IF(EXTSELECT=2,56,IF(EXTSELECT=3,72,"")) ->  | Q50: =IF(EXTSELECT=2,164,IF(EXTSELECT=3,192,"")) ->  | R50: Standard (1/4-1/2-1/4) | V50: Half | W50: Full | Y50: Select Reinforcement | Z50: Composite | AA50: Steel | AD50: =IF(OR(Glass=1,Glass=4,Glass=5,Glass=7,Glass=8),"<< Not Available","") -> 
A51: =IF(ModelNo=B51,9,"") ->  | B51: 3S10C | C51: Screen Height | D51: =Frame_Height-3.9375 -> -3.9375 | G51: 3004 | H51: Mezzo Picture Window | I51: 0 | J51: 0 | M51: 9.5 | N51: 9.5 | O51: 112 | P51: 96 | Q51: 154 | R51: Standard | AD51: =IF(OR(Glass=1,Glass=4,Glass=5,Glass=7,Glass=8),"<< Not Available","") -> 
A52: =IF(ModelNo=B52,10,"") ->  | B52: 3S10C | C52: Egress Opening Width | D52: =TRUNC((DDIM3R10C-4.776)*16+0.5)/16 -> -3.25 | G52: 3009 | H52: Mezzo Three Lite Slider Equal Lite | I52: 0 | J52: 0 | M52: 37.25 | N52: 11.25 | O52: =IF(EXTSELECT=2,108,IF(EXTSELECT=3,120,"")) ->  | P52: =IF(EXTSELECT=2,56,IF(EXTSELECT=3,72,"")) ->  | Q52: =IF(EXTSELECT=2,164,IF(EXTSELECT=3,192,"")) ->  | R52: Standard (1/3-1/3-1/3) | V52: Half | W52: Full | Y52: Select Reinforcement | Z52: Composite | AA52: Steel | AD52: =IF(OR(Glass=1,Glass=4,Glass=5,Glass=7,Glass=8),"<< Not Available","") -> 
A53: =IF(ModelNo=B53,11,"") ->  | B53: 3S10C | C53: Egress Opening Height | D53: =TRUNC((Frame_Height-4.158)*16+0.5)/16 -> -4.125 | G53: S140 | H53: Arched Top Single Hung (Round-Top) | I53: 0 | J53: 0 | M53: 24 | N53: 43 | O53: 52 | P53: 96 | Q53: 134 | R53: Standard | S53: Oriel (2/3 - 1/3) | T53: Cottage (1/3 - 2/3) | U53: Custom | V53: Half | Y53: Select Extrusion | Z53: Mezzo | AA53: New Construction | AB53: 0700 Series | AC53: Excalibur | AD53: =IF(OR(Glass=1,Glass=4,Glass=5,Glass=7,Glass=8),"<< Not Available","") ->  | AE53: =IF(RO=2,"<< Exact Size Only","") -> 
A54: =IF(ModelNo=B54,12,"") ->  | B54: 3S10C | C54: Egress Opening Area (sq.ft.) | D54: =(D52*D53)/144 -> 0.09309895833 | G54: S144 | H54: Arched Top Single Hung (Eyebrow) | I54: 0 | J54: 0 | M54: 20 | N54: 43 | O54: 52 | P54: 96 | Q54: 134 | R54: Standard | S54: Oriel (2/3 - 1/3) | T54: Cottage (1/3 - 2/3) | U54: Custom | V54: Half | Y54: Select Extrusion | Z54: Mezzo | AA54: New Construction | AB54: 0700 Series | AC54: Excalibur
A55: =IF(ModelNo=B55,1,"") ->  | B55: 3S21C | C55: Operating Sash Width | D55: =INTGW3R21C+2.875 -> 1.75 | G55: S146 | H55: Arched Top Single Hung (1/2 Eyebrow) | I55: 0 | J55: 0 | M55: 20 | N55: 43 | O55: 52 | P55: 96 | Q55: 134 | R55: Standard | S55: Oriel (2/3 - 1/3) | T55: Cottage (1/3 - 2/3) | U55: Custom | V55: Half | Y55: Select Extrusion | Z55: Mezzo | AA55: New Construction | AB55: 0700 Series | AC55: Excalibur
A56: =IF(ModelNo=B56,2,"") ->  | B56: 3S21C | C56: Operating Sash Height | D56: =INTGH3R21C+2.875 -> -2.6875 | G56: S140 (HP) | H56: High Performance Arched Top Single Hung (Round-Top) | I56: 0 | J56: 0 | M56: 24 | N56: 43 | O56: 52 | P56: 96 | Q56: 134 | R56: Standard | S56: Oriel (2/3 - 1/3) | T56: Cottage (1/3 - 2/3) | U56: Custom | V56: Half | Y56: Select Extrusion | Z56: Mezzo | AA56: New Construction | AB56: 0700 Series | AC56: Excalibur
A57: =IF(ModelNo=B57,3,"") ->  | B57: 3S21C | C57: Astragal Length | D57: =TRUNC((Frame_Height-2.17)*16+0.5)/16 -> -2.125 | G57: S144 (HP) | H57: High Performance Arched Top Single Hung (Eyebrow) | I57: 0 | J57: 0 | M57: 20 | N57: 43 | O57: 52 | P57: 96 | Q57: 134 | R57: Standard | S57: Oriel (2/3 - 1/3) | T57: Cottage (1/3 - 2/3) | U57: Custom | V57: Half | Y57: Select Extrusion | Z57: Mezzo | AA57: New Construction | AB57: 0700 Series | AC57: Excalibur
A58: =IF(ModelNo=B58,4,"") ->  | B58: 3S21C | C58: Operating Sash Glass Width | D58: =INTGW3R21C -> -1.125 | G58: S146 (HP) | H58: High Performance Arched Top Single Hung (1/2 Eyebrow) | I58: 0 | J58: 0 | M58: 20 | N58: 43 | O58: 52 | P58: 96 | Q58: 134 | R58: Standard | S58: Oriel (2/3 - 1/3) | T58: Cottage (1/3 - 2/3) | U58: Custom | V58: Half | Y58: Select Extrusion | Z58: Mezzo | AA58: New Construction | AB58: 0700 Series | AC58: Excalibur
A59: =IF(ModelNo=B59,5,"") ->  | B59: 3S21C | C59: Operating Sash Glass Height | D59: =INTGH3R21C -> -5.5625
A60: =IF(ModelNo=B60,6,"") ->  | B60: 3S21C | C60: Fixed Glass Width | D60: =EXTGW3R21C -> -5.375 | G60: =IF(ISERROR(VLOOKUP(Model_Select,$F$191:$G$248,2,FALSE)),"",VLOOKUP(Model_Select,$F$191:$G$248,2,FALSE)) ->  | L60: =IF(OR(ModelNo="6405",ModelNo="6406",ModelNo="6408",ModelNo="6409",ModelNo="6412",ModelNo="6422",ModelNo="8405",ModelNo="8406",ModelNo="8408",ModelNo="8409",ModelNo="8412",ModelNo="8422"),1,0) -> 0 | AD60: 1=Single Strength (2.5 mm)
A61: =IF(ModelNo=B61,7,"") ->  | B61: 3S21C | C61: Fixed Glass Height | D61: =EXTGH3R21C -> -2.8125 | G61: =IF(ISERROR(VLOOKUP(Model_Select,$F$43:$G$68,2,FALSE)),"",VLOOKUP(Model_Select,$F$43:$G$68,2,FALSE)) ->  | L61: =IF(HCONTROL=1,96,"") ->  | AD61: 2=Double Strength (3 mm)
A62: =IF(ModelNo=B62,8,"") ->  | B62: 3S21C | C62: Screen Width | D62: =DDIM3R21C-2.1875 -> -0.75 | G62: =IF(OR(Model_Select="S140",Model_Select="S144",Model_Select="S146",Model_Select="S140 (HP)",Model_Select="S144 (HP)",Model_Select="S146 (HP)"),1,0) -> 0 | AD62: 3=Triple Strength (5 mm)
A63: =IF(ModelNo=B63,9,"") ->  | B63: 3S21C | C63: Screen Height | D63: =Frame_Height-3.9375 -> -3.9375 | AD63: 4=Triple IG Single Strrength
A64: =IF(ModelNo=B64,10,"") ->  | B64: 3S21C | C64: Egress Opening Width | D64: =TRUNC((DDIM3R10C-4.776)*16+0.5)/16 -> -3.25 | AD64: 5=Triple IG Double Strength
A65: =IF(ModelNo=B65,11,"") ->  | B65: 3S21C | C65: Egress Opening Height | D65: =TRUNC((Frame_Height-4.158)*16+0.5)/16 -> -4.125 | AD65: 6=Laminated
A66: =IF(ModelNo=B66,12,"") ->  | B66: 3S21C | C66: Egress Opening Area (sq.ft.) | D66: =(D64*D65)/144 -> 0.09309895833 | AD66: 7=HP Package
A67: =IF(ModelNo=B67,1,"") ->  | B67: 8E10A | C67: Exterior Sash Width | D67: =EXTGW8R10A+1.875 -> -1.5625 | AD67: 8=Impact Laminated
A68: =IF(ModelNo=B68,2,"") ->  | B68: 8E10A | C68: Exterior Sash Height | D68: =EXTGH8R10A+1.875 -> -3.9375
A69: =IF(ModelNo=B69,3,"") ->  | B69: 8E10A | C69: Interior Sash Width | D69: =INTGW8R10A+2.875 -> -0.5625
A70: =IF(ModelNo=B70,4,"") ->  | B70: 8E10A | C70: Interior Sash Height | D70: =INTGH8R10A+2.875 -> -2.9375
A71: =IF(ModelNo=B71,5,"") ->  | B71: 8E10A | C71: Interior Glass Width | D71: =INTGW8R10A -> -3.4375
A72: =IF(ModelNo=B72,6,"") ->  | B72: 8E10A | C72: Interior Glass Height | D72: =INTGH8R10A -> -5.8125
A73: =IF(ModelNo=B73,7,"") ->  | B73: 8E10A | C73: Exterior Glass Width | D73: =EXTGW8R10A -> -3.4375
A74: =IF(ModelNo=B74,8,"") ->  | B74: 8E10A | C74: Exterior Glass Height | D74: =EXTGH8R10A -> -5.8125
A75: =IF(ModelNo=B75,9,"") ->  | B75: 8E10A | C75: Screen Width | D75: =IF(Screen="F",Frame_Width-3.6875,DDIM8R10A-1.6875) -> -1.6875
A76: =IF(ModelNo=B76,10,"") ->  | B76: 8E10A | C76: Screen Height | D76: =Frame_Height-3.1875 -> -3.1875
A77: =IF(ModelNo=B77,11,"") ->  | B77: 8E10A | C77: Egress Opening Width | D77: =TRUNC((CDIM3R10A-6)*16+0.5)/16 -> -5.9375
A78: =IF(ModelNo=B78,12,"") ->  | B78: 8E10A | C78: Egress Opening Height | D78: =TRUNC((Frame_Height-5.154)*16+0.5)/16 -> -5.0625
A79: =IF(ModelNo=B79,13,"") ->  | B79: 8E10A | C79: Egress Opening Area (sq.ft.) | D79: =(D77*D78)/144 -> 0.2087402344
A80: =IF(ModelNo=B80,1,"") ->  | B80: 8E21A | C80: Exterior Sash Width | D80: =EXTGW8R21A+1.875 -> -1.5625
A81: =IF(ModelNo=B81,2,"") ->  | B81: 8E21A | C81: Exterior Sash Height | D81: =EXTGH8R21A+1.875 -> -3.8125
A82: =IF(ModelNo=B82,3,"") ->  | B82: 8E21A | C82: Interior Sash Width | D82: =INTGW8R21A+2.875 -> -0.5625
A83: =IF(ModelNo=B83,4,"") ->  | B83: 8E21A | C83: Interior Sash Height | D83: =INTGH8R21A+2.875 -> -2.8125
A84: =IF(ModelNo=B84,5,"") ->  | B84: 8E21A | C84: Interior Glass Width | D84: =INTGW8R21A -> -3.4375
A85: =IF(ModelNo=B85,6,"") ->  | B85: 8E21A | C85: Interior Glass Height | D85: =INTGH8R21A -> -5.6875
A86: =IF(ModelNo=B86,7,"") ->  | B86: 8E21A | C86: Exterior Glass Width | D86: =EXTGW8R21A -> -3.4375
A87: =IF(ModelNo=B87,8,"") ->  | B87: 8E21A | C87: Exterior Glass Height | D87: =EXTGH8R21A -> -5.6875
A88: =IF(ModelNo=B88,9,"") ->  | B88: 8E21A | C88: Screen Width | D88: =IF(Screen="F",Frame_Width-3.6875,DDIM8R21A-1.6875) -> -1.6875
A89: =IF(ModelNo=B89,10,"") ->  | B89: 8E21A | C89: Screen Height | D89: =Frame_Height-3.1875 -> -3.1875
A90: =IF(ModelNo=B90,11,"") ->  | B90: 8E21A | C90: Egress Opening Width | D90: =TRUNC((CDIM3R21A-7.25)*16+0.5)/16 -> -7.1875
A91: =IF(ModelNo=B91,12,"") ->  | B91: 8E21A | C91: Egress Opening Height | D91: =TRUNC((Frame_Height-4.779)*16+0.5)/16 -> -4.6875
A92: =IF(ModelNo=B92,13,"") ->  | B92: 8E21A | C92: Egress Opening Area (sq.ft.) | D92: =(D90*D91)/144 -> 0.233968099
A93: =IF(ModelNo=B93,1,"") ->  | B93: 8E40A | C93: Top Sash Width | D93: =TGW8R40A+1.875 -> -3.8125
A94: =IF(ModelNo=B94,2,"") ->  | B94: 8E40A | C94: Top Sash Height | D94: =TGH8R40A+1.875 -> -1.5625
A95: =IF(ModelNo=B95,3,"") ->  | B95: 8E40A | C95: Bottom Sash Width | D95: =BGW8R40A+2.875 -> -2.8125
A96: =IF(ModelNo=B96,4,"") ->  | B96: 8E40A | C96: Bottom Sash Height | D96: =BGH8R40A+2.875 -> -0.5625
A97: =IF(ModelNo=B97,5,"") ->  | B97: 8E40A | C97: Top Glass Width | D97: =TGW8R40A -> -5.6875
A98: =IF(ModelNo=B98,6,"") ->  | B98: 8E40A | C98: Top Glass Height | D98: =TGH8R40A -> -3.4375
A99: =IF(ModelNo=B99,7,"") ->  | B99: 8E40A | C99: Bottom Glass Width | D99: =BGW8R40A -> -5.6875
A100: =IF(ModelNo=B100,8,"") ->  | B100: 8E40A | C100: Bottom Glass Height | D100: =BGH8R40A -> -3.4375
A101: =IF(ModelNo=B101,9,"") ->  | B101: 8E40A | C101: Screen Width | D101: =Frame_Width-3.6875 -> -3.6875
A102: =IF(ModelNo=B102,10,"") ->  | B102: 8E40A | C102: Screen Height | D102: =IF(Screen="F",TRUNC((Frame_Height-3.1875)*16+0.5)/16,TRUNC((CDIM8R40A-1.6875)*16+0.5)/16) -> -1.625
A103: =IF(ModelNo=B103,11,"") ->  | B103: 8E40A | C103: Top Sash Weight (Plus 5 lb) | D103: =IF(ISERROR(TOP_WGT&" "&"lb"),"N/A",TOP_WGT&" "&"lb") -> N/A
A104: =IF(ModelNo=B104,12,"") ->  | B104: 8E40A | C104: Top Balance Size | D104: =IF(ISERROR((VLOOKUP(TOP_WGT,CFB,2,FALSE))&(VLOOKUP(TOP_WGT,CFB,3,FALSE))),"N/A",(VLOOKUP(TOP_WGT,CFB,2,FALSE))&(VLOOKUP(TOP_WGT,CFB,3,FALSE))) -> N/A
A105: =IF(ModelNo=B105,13,"") ->  | B105: 8E40A | C105: Bottom Sash Weight | D105: =IF(ISERROR(BTM_WGT&" "&"lb"),"N/A",BTM_WGT&" "&"lb") -> N/A
A106: =IF(ModelNo=B106,14,"") ->  | B106: 8E40A | C106: Bottom Balance Size | D106: =IF(ISERROR((VLOOKUP(BTM_WGT,CFB,2,FALSE))&(VLOOKUP(BTM_WGT,CFB,3,FALSE))),"N/A",(VLOOKUP(BTM_WGT,CFB,2,FALSE))&(VLOOKUP(BTM_WGT,CFB,3,FALSE))) -> N/A
A107: =IF(ModelNo=B107,15,"") ->  | B107: 8E40A | C107: Egress Opening Width | D107: =IF(ISERROR(EW),"N/A",EW) -> N/A
A108: =IF(ModelNo=B108,16,"") ->  | B108: 8E40A | C108: Egress Opening Height | D108: =IF(ISERROR(EH),"N/A",EH) -> N/A
A109: =IF(ModelNo=B109,17,"") ->  | B109: 8E40A | C109: Egress Opening Area (sq.ft.) | D109: =IF(ISERROR(EO),"N/A",EO) -> N/A
A110: =IF(ModelNo=B110,1,"") ->  | B110: 8V71F | C110: Glass Width | D110: =Frame_Width-4.75 -> -4.75
A111: =IF(ModelNo=B111,2,"") ->  | B111: 8V71F | C111: Glass Height | D111: =Frame_Height-4.75 -> -4.75
A112: =IF(ModelNo=B112,3,"") ->  | B112: 8V71F | C112: Glass Area (sq.ft.) | D112: =(D110*D111)/144 -> 0.1566840278
A113: =IF(OR(ModelNo="8V71L",ModelNo="8V71R"),1,"") ->  | B113: 8V71L | C113: Sash Width | D113: =Frame_Width-1.5 -> -1.5
A114: =IF(OR(ModelNo="8V71L",ModelNo="8V71R"),2,"") ->  | B114: 8V71L | C114: Sash Height | D114: =Frame_Height-1.5 -> -1.5
A115: =IF(OR(ModelNo="8V71L",ModelNo="8V71R"),3,"") ->  | B115: 8V71L | C115: Glass Width | D115: =Frame_Width-4.75 -> -4.75
A116: =IF(OR(ModelNo="8V71L",ModelNo="8V71R"),4,"") ->  | B116: 8V71L | C116: Glass Height | D116: =Frame_Height-4.75 -> -4.75
A117: =IF(OR(ModelNo="8V71L",ModelNo="8V71R"),5,"") ->  | B117: 8V71L | C117: Screen Width | D117: =Frame_Width-4.875 -> -4.875
A118: =IF(OR(ModelNo="8V71L",ModelNo="8V71R"),6,"") ->  | B118: 8V71L | C118: Screen Height | D118: =Frame_Height-5 -> -5
A119: =IF(OR(ModelNo="8V71L",ModelNo="8V71R"),7,"") ->  | B119: 8V71L | C119: Egress Opening Width (Standard Hinge) | D119: =Frame_Width-9.625 -> -9.625
A120: =IF(OR(ModelNo="8V71L",ModelNo="8V71R"),8,"") ->  | B120: 8V71L | C120: Egress Opening Height (Standard Hinge) | D120: =Frame_Height-5.25 -> -5.25
A121: =IF(OR(ModelNo="8V71L",ModelNo="8V71R"),9,"") ->  | B121: 8V71L | C121: Egress Opening Area w/Standard Hinge (sq.ft.) | D121: =(D119*D120)/144 -> 0.3509114583
A122: =IF(OR(ModelNo="8V71L",ModelNo="8V71R"),10,"") ->  | B122: 8V71L | C122: Egress Opening Width (Egress Hinge) | D122: =Frame_Width-8 -> -8
A123: =IF(OR(ModelNo="8V71L",ModelNo="8V71R"),11,"") ->  | B123: 8V71L | C123: Egress Opening Height (Egress Hinge) | D123: =Frame_Height-5.5 -> -5.5
A124: =IF(OR(ModelNo="8V71L",ModelNo="8V71R"),12,"") ->  | B124: 8V71L | C124: Egress Opening Area w/Egress Hinge (sq.ft.) | D124: =(D122*D123)/144 -> 0.3055555556
A125: =IF(ModelNo=B125,1,"") ->  | B125: 3S55A | C125: Sash Width | D125: =Frame_Width-2.875 -> -2.875
A126: =IF(ModelNo=B126,2,"") ->  | B126: 3S55A | C126: Sash Height | D126: =Frame_Height-2.8125 -> -2.8125
A127: =IF(ModelNo=B127,3,"") ->  | B127: 3S55A | C127: Glass Width | D127: =TRUNC((Frame_Width-4.75)*16+0.5)/16 -> -4.6875
A128: =IF(ModelNo=B128,4,"") ->  | B128: 3S55A | C128: Glass Height | D128: =TRUNC((Frame_Height-4.6875)*16+0.5)/16 -> -4.625
A129: =IF(ModelNo=B129,5,"") ->  | B129: 3S55A | C129: Glass Area (sq.ft.) | D129: =(D127*D128)/144 -> 0.1505533854
A130: =IF(ModelNo=B130,6,"") ->  | B130: 3S55A | C130: Screen Width | D130: =Frame_Width-4 -> -4
A131: =IF(ModelNo=B131,7,"") ->  | B131: 3S55A | C131: Screen Height | D131: =Frame_Height-3.9375 -> -3.9375
A132: =IF(ModelNo=B132,8,"") ->  | B132: 3S55A | C132: Hopper Window Does Not Meet Egress | D132: N/A
A133: =IF(ModelNo=B133,1,"") ->  | B133: 3S56A | C133: Sash Width | D133: =Frame_Width-2.875 -> -2.875
A134: =IF(ModelNo=B134,2,"") ->  | B134: 3S56A | C134: Sash Height | D134: =Frame_Height-2.8125 -> -2.8125
A135: =IF(ModelNo=B135,3,"") ->  | B135: 3S56A | C135: Glass Width | D135: =TRUNC((Frame_Width-4.625)*16+0.5)/16 -> -4.5625
A136: =IF(ModelNo=B136,4,"") ->  | B136: 3S56A | C136: Glass Height | D136: =TRUNC((Frame_Height-4.8125)*16+0.5)/16 -> -4.75
A137: =IF(ModelNo=B137,5,"") ->  | B137: 3S56A | C137: Glass Area (sq.ft.) | D137: =(D135*D136)/144 -> 0.1504991319
A138: =IF(ModelNo=B138,6,"") ->  | B138: 3S56A | C138: Screen Width | D138: =Frame_Width-2.75 -> -2.75
A139: =IF(ModelNo=B139,7,"") ->  | B139: 3S56A | C139: Screen Height | D139: =Frame_Height-2.9375 -> -2.9375
A140: =IF(ModelNo=B140,8,"") ->  | B140: 3S56A | C140: Egress Opening Width | D140: =IFERROR(Frame_Width-4.5,"N/A") -> -4.5
A141: =IF(ModelNo=B141,9,"") ->  | B141: 3S56A | C141: Egress Opening Height | D141: =IFERROR(Frame_Height-6,"N/A") -> -6
A142: =IF(ModelNo=B142,10,"") ->  | B142: 3S56A | C142: Egress Opening Area (sq.ft.) | D142: =IFERROR((D140*D141)/144,"N/A") -> 0.1875
A143: =IF(ModelNo=B143,1,"") ->  | B143: 8V81A | C143: Sash Width | D143: =Frame_Width-1.25 -> -1.25
A144: =IF(ModelNo=B144,2,"") ->  | B144: 8V81A | C144: Sash Height | D144: =Frame_Height-1.25 -> -1.25
A145: =IF(ModelNo=B145,3,"") ->  | B145: 8V81A | C145: Glass Width | D145: =TRUNC((Frame_Width-4.75)*16+0.5)/16 -> -4.6875
A146: =IF(ModelNo=B146,4,"") ->  | B146: 8V81A | C146: Glass Height | D146: =TRUNC((Frame_Height-4.75)*16+0.5)/16 -> -4.6875
A147: =IF(ModelNo=B147,5,"") ->  | B147: 8V81A | C147: Glass Area (sq.ft.) | D147: =(D145*D146)/144 -> 0.1525878906
A148: =IF(ModelNo=B148,6,"") ->  | B148: 8V81A | C148: Screen Width | D148: =Frame_Width-4.875 -> -4.875
A149: =IF(ModelNo=B149,7,"") ->  | B149: 8V81A | C149: Screen Height | D149: =Frame_Height-5 -> -5
A150: =IF(ModelNo=B150,8,"") ->  | B150: 8V81A | C150: Awning Does not Meet Egress | D150: N/A
A151: =IF(ModelNo=B151,1,"") ->  | B151: L201 | C151: Top Sash Width | D151: =Frame_Width-3.25 -> -3.25
A152: =IF(ModelNo=B152,2,"") ->  | B152: L201 | C152: Top Sash Height | D152: =CMR!$E$26-1.5625 -> -1.5625
A153: =IF(ModelNo=B153,3,"") ->  | B153: L201 | C153: Bottom Sash Width | D153: =Frame_Width-2.25 -> -2.25
A154: =IF(ModelNo=B154,4,"") ->  | B154: L201 | C154: Bottom Sash Height | D154: =CMR!$E$27-0.5625 -> -0.5625
A155: =IF(ModelNo=B155,5,"") ->  | B155: L201 | C155: Top Glass Width | D155: =CMR!$E$29 -> -4.875
A156: =IF(ModelNo=B156,6,"") ->  | B156: L201 | C156: Top Glass Height | D156: =CMR!$E$31 -> -3.1875
A157: =IF(ModelNo=B157,7,"") ->  | B157: L201 | C157: Bottom Glass Width | D157: =CMR!$E$30 -> -3.875
A158: =IF(ModelNo=B158,8,"") ->  | B158: L201 | C158: Bottom Glass Height | D158: =CMR!$E$32 -> -2.1875
A159: =IF(ModelNo=B159,9,"") ->  | B159: L201 | C159: Screen Width | D159: =IF(Screen="L",Frame_Width-1.6875,Frame_Width-3.6875) -> -3.6875
A160: =IF(ModelNo=B160,10,"") ->  | B160: L201 | C160: Screen Height | D160: =IF(Screen="L",TRUNC((CMR!$E$27-1.375)*16+0.5)/16,IF(Screen="F",TRUNC((Frame_Height-2.875)*16+0.5)/16,TRUNC((CMR!$E$27-0.3125)*16+0.5)/16)) -> -0.25
A161: =IF(ModelNo=B161,11,"") ->  | B161: L201 | C161: Top Sash Weight (Plus 5 lb) | D161: =IF(ISERROR(TOP_WGT&" "&"lb"),"N/A",TOP_WGT&" "&"lb") -> N/A
A162: =IF(ModelNo=B162,12,"") ->  | B162: L201 | C162: Top Balance Size (C.F) | D162: =IF(ISERROR((VLOOKUP(TOP_WGT,Fusion,2,FALSE))&(VLOOKUP(TOP_WGT,Fusion,3,FALSE))),"N/A",(VLOOKUP(TOP_WGT,Fusion,2,FALSE))&(VLOOKUP(TOP_WGT,Fusion,3,FALSE))) -> N/A
A163: =IF(ModelNo=B163,13,"") ->  | B163: L201 | C163: Bottom Sash Weight | D163: =IF(ISERROR(BTM_WGT&" "&"lb"),"N/A",BTM_WGT&" "&"lb") -> N/A
A164: =IF(ModelNo=B164,14,"") ->  | B164: L201 | C164: Bottom Balance Size (C.F) | D164: =IF(ISERROR((VLOOKUP(BTM_WGT,Fusion,2,FALSE))&(VLOOKUP(BTM_WGT,Fusion,3,FALSE))),"N/A",(VLOOKUP(BTM_WGT,Fusion,2,FALSE))&(VLOOKUP(BTM_WGT,Fusion,3,FALSE))) -> N/A
A165: =IF(ModelNo=B165,15,"") ->  | B165: L201 | C165: Egress Opening Width | D165: =IF(ISERROR(EW),"N/A",EW) -> N/A
A166: =IF(ModelNo=B166,16,"") ->  | B166: L201 | C166: Egress Opening Height | D166: =IF(ISERROR(EH),"N/A",EH) -> N/A
A167: =IF(ModelNo=B167,17,"") ->  | B167: L201 | C167: Egress Opening Area (sq.ft.) | D167: =IF(ISERROR(EO),"N/A",EO) -> N/A
A168: =IF(ModelNo=B168,1,"") ->  | B168: L202 | C168: Sash Width | D168: =(Frame_Width/2)-0.625 -> -0.625
A169: =IF(ModelNo=B169,2,"") ->  | B169: L202 | C169: Sash Height | D169: =Frame_Height-3.25 -> -3.25
A170: =IF(ModelNo=B170,3,"") ->  | B170: L202 | C170: Roller Track Length | D170: =Frame_Width-1.8125 -> -1.8125
A171: =IF(ModelNo=B171,4,"") ->  | B171: L202 | C171: Glass Width | D171: =(Frame_Width/2)-2.3125 -> -2.3125
A172: =IF(ModelNo=B172,5,"") ->  | B172: L202 | C172: Glass Height | D172: =Frame_Height-4.9375 -> -4.9375
A173: =IF(ModelNo=B173,6,"") ->  | B173: L202 | C173: Screen Width | D173: =IF(Screen="F",Frame_Width-4.125,IF(Screen="L","N/A",(Frame_Width/2)-1.5)) -> -1.5
A174: =IF(ModelNo=B174,7,"") ->  | B174: L202 | C174: Screen Height | D174: =IF(Screen="H",Frame_Height-3.6875,Frame_Height-3.75) -> -3.6875
A175: =IF(ModelNo=B175,8,"") ->  | B175: L202 | C175: Egress Opening Width | D175: =(Frame_Width/2)-4.25 -> -4.25
A176: =IF(ModelNo=B176,9,"") ->  | B176: L202 | C176: Egress Opening Height | D176: =Frame_Height-4.4375 -> -4.4375
A177: =IF(ModelNo=B177,10,"") ->  | B177: L202 | C177: Egress Opening Area (sq.ft.) | D177: =(D175*D176)/144 -> 0.1309678819
A178: =IF(ModelNo=B178,1,"") ->  | B178: L203 | C178: Operating Sash Width | D178: =(TRUNC((((Frame_Width/4)+0.6875))*16+0.5)/16)-0.4375 -> 0.25
A179: =IF(ModelNo=B179,2,"") ->  | B179: L203 | C179: Operating Sash Height | D179: =Frame_Height-3.25 -> -3.25
A180: =IF(ModelNo=B180,3,"") ->  | B180: L203 | C180: Fixed Sash Width | D180: =(Frame_Width-(2*(TRUNC((((Frame_Width/4)+0.6875))*16+0.5)/16)))+0.125 -> -1.25
A181: =IF(ModelNo=B181,4,"") ->  | B181: L203 | C181: Fixed Sash Height | D181: =Frame_Height-3.25 -> -3.25
A182: =IF(ModelNo=B182,5,"") ->  | B182: L203 | C182: Roller Track Length | D182: =Frame_Width-2.3125 -> -2.3125
A183: =IF(ModelNo=B183,6,"") ->  | B183: L203 | C183: Operating Sash Glass Width | D183: =(TRUNC((Frame_Width/4+0.6875)*16+0.5)/16)-2.125 -> -1.4375
A184: =IF(ModelNo=B184,7,"") ->  | B184: L203 | C184: Operating Sash Glass Height | D184: =Frame_Height-4.9375 -> -4.9375
A185: =IF(ModelNo=B185,8,"") ->  | B185: L203 | C185: Fixed Sash Glass Width | D185: =(Frame_Width-2*(TRUNC((Frame_Width/4+0.6875)*16+0.5)/16))-1.5625 -> -2.9375
A186: =IF(ModelNo=B186,9,"") ->  | B186: L203 | C186: Fixed Sash Glass Height | D186: =Frame_Height-4.9375 -> -4.9375
A187: =IF(ModelNo=B187,10,"") ->  | B187: L203 | C187: Screen Width | D187: =IF(Screen="F",Frame_Width-4.125,IF(Screen="L","N/A",(TRUNC(((Frame_Width/4)+0.6875)*16+0.5)/16)-1.1875)) -> -0.5
A188: =IF(ModelNo=B188,11,"") ->  | B188: L203 | C188: Screen Height | D188: =Frame_Height-3.6875 -> -3.6875
A189: =IF(ModelNo=B189,12,"") ->  | B189: L203 | C189: Egress Opening Width | D189: =(Frame_Width/4)-1.5 -> -1.5
A190: =IF(ModelNo=B190,13,"") ->  | B190: L203 | C190: Egress Opening Height | D190: =Frame_Height-3.875 -> -3.875
A191: =IF(ModelNo=B191,14,"") ->  | B191: L203 | C191: Egress Opening Area (sq.ft.) | D191: =(D189*D190)/144 -> 0.04036458333
A192: =IF(ModelNo=B192,1,"") ->  | B192: L204 | C192: Glass Width | D192: =Frame_Width-3.4375 -> -3.4375
A193: =IF(ModelNo=B193,2,"") ->  | B193: L204 | C193: Glass Height | D193: =Frame_Height-3.4375 -> -3.4375
A194: =IF(ModelNo=B194,3,"") ->  | B194: L204 | C194: Glass Area (sq.ft.) | D194: =(D192*D193)/144 -> 0.08205837674
A195: =IF(ModelNo=B195,1,"") ->  | B195: L209 | C195: Operating Sash Width | D195: =(TRUNC(((Frame_Width/3)+0.1875)*16+0.5)/16)-0.4375 -> -0.25
A196: =IF(ModelNo=B196,2,"") ->  | B196: L209 | C196: Operating Sash Height | D196: =Frame_Height-3.25 -> -3.25
A197: =IF(ModelNo=B197,3,"") ->  | B197: L209 | C197: Fixed Sash Width | D197: =((TRUNC(((Frame_Width/3)+0.1875)*16+0.5)/16)-0.5625)+0.125 -> -0.25
A198: =IF(ModelNo=B198,4,"") ->  | B198: L209 | C198: Fixed Sash Height | D198: =Frame_Height-3.25 -> -3.25
A199: =IF(ModelNo=B199,5,"") ->  | B199: L209 | C199: Roller Track Length | D199: =Frame_Width-2.3125 -> -2.3125
A200: =IF(ModelNo=B200,6,"") ->  | B200: L209 | C200: Operating Sash Glass Width | D200: =(TRUNC((Frame_Width/3+0.1875)*16+0.5)/16)-2.125 -> -1.9375
... 152 more rows

Sheet Balance (hidden)
AP1: BLOCK & TACKLE BALANCE CHART | BD1: Spiral Balance | DE1: V-Series BLOCK & TACKLE BALANCE CHART
B2: CFB | F2: Curve CFB | M2: Glass Strength | O2: Weight Calculation | Y2: Egress Calculation | AN2: TOP SASH | AS2: BOTTOM SASH | BC2: Top Sash | BD2: =IF(ISERROR(VLOOKUP((TRUNC(TOP_WGT)),$BD$7:$DB$41,TOPTUBELENGTH,FALSE)),"N/A",VLOOKUP((TRUNC(TOP_WGT)),$BD$7:$DB$41,TOPTUBELENGTH,FALSE)) -> N/A | BE2: =TOPTUBELENGTH ->  | DE2: TOP SASH | DJ2: BOTTOM SASH
B3: 4 | C3: 3 | D3: RD | F3: 4 | G3: 3 | H3: BN | J3: 1 | K3: S | L3: =1.157*2 -> 2.314 | M3: Single Strength (2.5 mm) | O3: Model | P3: CDIM | Q3: Bott. Sash Height | R3: Bottom Sash Weight | S3: Top Sash Weight | T3: Bal. Loc. | U3: H+S+SS | V3: Sill | W3: EW | Y3: # of Coils | Z3: =IF(ModelNo="L201",VLOOKUP(BTM_WGT,Fusion_W,3,FALSE),VLOOKUP(BTM_WGT,CFB_W,3,FALSE)) ->  | AC3: 3S40A | AD3: Length | AE3: Weight/ft | AF3: Weight | AH3: 8S40A | AI3: Length | AJ3: Weight/ft | AK3: Weight | AN3: Sash Weight | AO3: Tube Length | AP3: Balance | AQ3: Weight | AS3: Sash Weight | AT3: Tube Length | AU3: Balance | AV3: Weight | AZ3: Tube Length | BC3: Bott. Sash | BD3: =IF(ISERROR(VLOOKUP((TRUNC(BTM_WGT)),$BD$7:$DB$41,BOTTUBELENGTH,FALSE)),"N/A",VLOOKUP((TRUNC(BTM_WGT)),$BD$7:$DB$41,BOTTUBELENGTH,FALSE)) -> N/A | BE3: =BOTTUBELENGTH ->  | BJ3: TUBE LENGTH | BZ3: TUBE LENGTH | CR3: TUBE LENGTH | DE3: Sash Weight | DF3: Tube Length | DG3: Balance | DH3: Weight | DJ3: Sash Weight | DK3: Tube Length | DL3: Balance | DM3: Weight
B4: =B3+1 -> 5 | C4: 3 | D4: RD | F4: =F3+1 -> 5 | G4: 3 | H4: BN | J4: 2 | K4: D | L4: =1.6*2 -> 3.2 | M4: Double Strength (3 mm) | O4: =ModelNo -> Select Model | P4: =VLOOKUP(ModelNo,WEIGHTCALC,2,FALSE) ->  | Q4: =VLOOKUP(ModelNo,WEIGHTCALC,3,FALSE) ->  | R4: =VLOOKUP(ModelNo,WEIGHTCALC,4,FALSE) ->  | S4: =VLOOKUP(ModelNo,WEIGHTCALC,5,FALSE) ->  | T4: =VLOOKUP(ModelNo,WEIGHTCALC,6,FALSE) ->  | U4: =VLOOKUP(ModelNo,WEIGHTCALC,7,FALSE) ->  | V4: =VLOOKUP(ModelNo,WEIGHTCALC,8,FALSE) ->  | W4: =VLOOKUP(ModelNo,WEIGHTCALC,9,FALSE) ->  | Y4: Displacement | Z4: =IF($Q$4>37.5,$Q$4-36,0) ->  | AC4: Top Top Rail | AD4: 0 | AE4: 0 | AF4: =AD4*AE4 -> 0 | AH4: Top Top Rail | AI4: =(Frame_Width-3.875)/12 -> -0.3229166667 | AJ4: 0.369 | AK4: =AI4*AJ4 -> -0.11915625 | AN4: =TRUNC(TOP_WGT) ->  | AO4: =$AN$9 -> 0 | AP4: Number | AQ4: Range | AS4: =TRUNC(BTM_WGT) ->  | AT4: =$AS$9 -> 0 | AU4: Number | AV4: Range | AZ4: Model | BA4: Top | BB4: Bott | BE4: 2 | BF4: 3 | BG4: 4 | BH4: 5 | BI4: 6 | BJ4: 7 | BK4: 8 | BL4: 9 | BM4: 10 | BN4: 11 | BO4: 12 | BP4: 13 | BQ4: 14 | BR4: 15 | BS4: 16 | BT4: 17 | BU4: 18 | BV4: 19 | BW4: 20 | BX4: 21 | BY4: 22 | BZ4: 23 | CA4: 24 | CB4: 25 | CC4: 26 | CD4: 27 | CE4: 28 | CF4: 29 | CG4: 30 | CH4: 31 | CI4: 32 | CJ4: 33 | CK4: 34 | CL4: 35 | CM4: 36 | CN4: 37 | CO4: 38 | CP4: 39 | CQ4: 40 | CR4: 41 | CS4: 42 | CT4: 43 | CU4: 44 | CV4: 45 | CW4: 46 | CX4: 47 | CY4: 48 | CZ4: 49 | DA4: 50 | DB4: 51 | DE4: =TRUNC(TOP_WGT) ->  | DF4: =TOPTUBELENGTH ->  | DG4: Number | DH4: Range | DJ4: =TRUNC(BTM_WGT) ->  | DK4: =BOTTUBELENGTH ->  | DL4: Number | DM4: Range
B5: 6 | C5: 3 | D5: RD | F5: 6 | G5: 3 | H5: BN | J5: 3 | K5: T | L5: =2.408*2 -> 4.816 | M5: Triple Strength (5 mm) | O5: 3S40A | P5: =CDIM3R40A -> 0 | Q5: =BGH3R40A+2.875 -> 0.28125 | R5: =BSW3R40A -> 0 | T5: 1.03125 | U5: 7.625 | V5: 1.537 | W5: 4.375 | Y5: Coil Loc. From CMR | Z5: =(($Z$3-1)*1.58)+$Z$4+$T$4+1.5 ->  | AC5: Top Bottom Rail | AD5: 0 | AE5: 0 | AF5: =AD5*AE5 -> 0 | AH5: Top Bottom Rail | AI5: =(Frame_Width-3.875)/12 -> -0.3229166667 | AJ5: 0.369 | AK5: -0.11915625 | AN5: Balance Size | AO5: =IF(AND(AP5>0,AQ5>0),AP5,0) ->  | AP5: =IF($AO$4<=6,6,0) -> 6 | AQ5: =IF(AND(AP5=6,$AN$4>=2,$AN$4<=5),AP5&"A",0) ->  | AS5: Balance Size | AT5: =IF(AND(AU5>0,AV5>0),AU5,0) ->  | AU5: =IF($AT$4<=6,6,0) -> 6 | AV5: =IF(AND(AU5=6,$AS$4>=2,$AS$4<=5),AU5&"A",0) ->  | AX5: Standard | AZ5: 0100 | BB5: =(INT(INT(Frame_Height/2-0.25)/2)+0.5)*2 -> -1 | BD5: Sash Weight | DE5: Balance Size | DF5: =IF(AND(DG5>0,DH5>0),DG5,0) ->  | DG5: =IF($DF$4<=8,8,0) ->  | DH5: =IF(AND(DG5=8,$DE$4>=2,$DE$4<=6),DG5&"A",0) ->  | DJ5: Balance Size | DK5: =IF(AND(DL5>0,DM5>0),DL5,0) ->  | DL5: =IF($DK$4<=8,8,0) ->  | DM5: =IF(AND(DL5=8,$DJ$4>=2,$DJ$4<=6),DL5&"A",0) -> 
B6: 7 | C6: 3 | D6: RD | F6: 7 | G6: 4 | H6: RD | J6: 4 | K6: STG | L6: =1.157*3 -> 3.471 | M6: Triple IG Single Strrength | O6: 8E40A | P6: =CDIM8R40A -> 0 | Q6: =BGH8R40A+2.875 -> -0.5625 | R6: =BSW8R40A -> 0 | S6: =TSW8R40A -> 0 | T6: 1.03125 | U6: 7.902 | V6: 2.294 | W6: 4.75 | Y6: Sash H < 37.5 | Z6: =TRUNC((Frame_Height-$Q$4-$U$4)*16+0.5)/16 ->  | AC6: Top Stile | AD6: 0 | AE6: 0 | AF6: =(AD6*AE6)/12 -> 0 | AH6: Top Stile | AI6: =(2*(DDIM8R40A-1.625))/12 -> -0.2708333333 | AJ6: 0.369 | AK6: -0.0999375 | AN6: =VLOOKUP((MAX(AO5:AO229)),AO5:AQ229,3,FALSE) ->  | AP6: 6 | AQ6: =IF(AND(AP6=6,$AN$4>=6,$AN$4<=9),AP6&"B",0) ->  | AS6: =VLOOKUP((MAX(AT5:AT229)),AT5:AV229,3,FALSE) ->  | AU6: 6 | AV6: =IF(AND(AU6=6,$AS$4>=6,$AS$4<=9),AU6&"B",0) ->  | AX6: =IF(ModelNo=Climatech_Control,"Climatech-4","Climatech") -> Climatech | AZ6: 02A0 | DE6: =VLOOKUP((MAX(DF5:DF229)),DF5:DH229,3,FALSE) ->  | DG6: =IF($DF$4<=8,8,0) ->  | DH6: =IF(AND(DG6=8,$DE$4>=7,$DE$4<=10),DG6&"B",0) ->  | DJ6: =VLOOKUP((MAX(DK5:DK229)),DK5:DM229,3,FALSE) ->  | DL6: =IF($DK$4<=8,8,0) ->  | DM6: =IF(AND(DL6=8,$DJ$4>=7,$DJ$4<=10),DL6&"B",0) -> 
B7: 8 | C7: 4 | D7: GN | F7: 8 | G7: 4 | H7: RD | J7: 5 | K7: DTG | L7: =1.6*3 -> 4.8 | M7: Triple IG Double Strength | O7: L201 | P7: =CMR!$E$27 -> 0 | Q7: =CMR!$E$27-0.5625 -> -0.5625 | R7: =$AF$45 -> 0 | S7: =$AF$44 -> 0 | T7: 1.3125 | U7: 7.319 | V7: 1.75 | W7: 4.406 | Y7: Egress Height | Z7: =IF($Z$6<(TRUNC((P4-Z5-V4)*16+0.5)/16),$Z$6,TRUNC(($P$4-$Z$5-$V$4)*16+0.5)/16) ->  | AC7: Top Rail Reinf. | AD7: 0 | AE7: 0 | AF7: 0 | AH7: Top Rail Reinf. | AI7: =(TRUNC(((Frame_Width-3.875)-6)/2)*2)/12 -> -0.6666666667 | AJ7: 0.264 | AK7: -0.176 | AP7: 6 | AQ7: =IF(AND(AP7=6,$AN$4>=10,$AN$4<=12),AP7&"C",0) ->  | AU7: 6 | AV7: =IF(AND(AU7=6,$AS$4>=10,$AS$4<=12),AU7&"C",0) ->  | AX7: =IF(ModelNo=Climatech_Control,"Climatech-SC","Climatech-2") -> Climatech-2 | AZ7: 0201 | BA7: =IF(CMR!$E$26>=Frame_Height/2-0.07,(INT(INT((Frame_Height/2-4.875)+1)/2)-0.5)*2,(INT(INT((CMR!$E$26-4.181)+1)/2)-0.5)*2) -> -5 | BB7: =IF(Frame_Height>63.6875,IF(Frame_Height<66.3125,30,(INT(INT((Frame_Height/2-0.875)+1)/2)-0.5)*2),(INT(INT((Frame_Height/2-0.875)+1)/2)-0.5)*2) -> -1 | BD7: 6 | BO7: 2R | BP7: 2R | BQ7: 2R | BR7: 2R | BS7: 2R | BT7: 2R | BU7: 2R | BV7: 2R | BW7: 2R | BX7: 2R | BY7: 2R | DG7: =IF($DF$4<=8,8,0) ->  | DH7: =IF(AND(DG7=8,$DE$4>=11,$DE$4<=13),DG7&"C",0) ->  | DL7: =IF($DK$4<=8,8,0) ->  | DM7: =IF(AND(DL7=8,$DJ$4>=11,$DJ$4<=13),DL7&"C",0) -> 
B8: 9 | C8: 5 | D8: BN | F8: 9 | G8: 5 | H8: BU | J8: 6 | K8: L | L8: =2.683*2 -> 5.366 | M8: Laminated | O8: 03A0 | P8: =CMR!$E$133 -> 0 | Q8: =CDIM03A0-1.125 -> -1.125 | R8: =$AF$191 -> 0 | S8: 0 | T8: 1.3125 | U8: 7.875 | V8: 1.875 | W8: 5.8125 | Y8: Egress Width | Z8: =Frame_Width-W4 ->  | AC8: Top Stile Reinf | AD8: 0 | AE8: 0 | AF8: 0 | AH8: Top Stile Reinf | AI8: =IF(TGH8R40A>26.625,((TRUNC((DDIM8R40A-10)/2)*2)/12)*2,0) -> 0 | AJ8: 0.264 | AK8: 0 | AN8: Top Tube length | AP8: 6 | AQ8: =IF(AND(AP8=6,$AN$4>=13,$AN$4<=15),AP8&"D",0) ->  | AS8: Bott. Tube Length | AU8: 6 | AV8: =IF(AND(AU8=6,$AS$4>=13,$AS$4<=15),AU8&"D",0) ->  | AX8: =IF(ModelNo=Climatech_Control,"Climatech-7","Climatech Plus") -> Climatech Plus | AZ8: 0301 | BA8: =IF(CMR!$E$42>=Frame_Height/2-0.07,(INT(INT((Frame_Height/2-4.875)+1)/2)-0.5)*2,(INT(INT((CMR!$E$42-4.181)+1)/2)-0.5)*2) -> -5 | BB8: =IF(Frame_Height>63.6875,IF(Frame_Height<66.3125,30,(INT(INT((Frame_Height/2-0.875)+1)/2)-0.5)*2),(INT(INT((Frame_Height/2-0.875)+1)/2)-0.5)*2) -> -1 | BD8: 7 | BN8: 2R | BO8: 2R | BP8: 2R | BQ8: 2R | BR8: 2R | BS8: 2R | BT8: 2R | BU8: 2R | BV8: 2R | BW8: 2R | BX8: 2R | BY8: 2R | BZ8: 2R | CA8: 2R | CB8: 2R | CC8: 2R | CD8: 2R | CE8: 2R | CF8: 2R | CG8: 2R | CH8: 2R | CI8: 2R | DG8: =IF(AND($DF$4<=10,$DF$4>8),10,0) ->  | DH8: =IF(AND(DG8=10,$DE$4>=2,$DE$4<=6),DG8&"A",0) ->  | DL8: =IF(AND($DK$4<=10,$DK$4>8),10,0) ->  | DM8: =IF(AND(DL8=10,$DJ$4>=2,$DJ$4<=6),DL8&"A",0) -> 
B9: 10 | C9: 5 | D9: BN | F9: 10 | G9: 5 | H9: BU | J9: 7 | K9: H | L9: =2.408*2 -> 4.816 | M9: HP Package | O9: 02A0 | P9: =CMR!$L$27 -> 0 | Q9: =CMR!$L$27-0.75 -> -0.75 | R9: =$AF$67 -> 0 | S9: =$AF$66 -> 0 | T9: 1.3125 | U9: 7.319 | V9: 1.75 | W9: 4.5 | Y9: Egress Area | Z9: =IF(E301EH>0,ROUND(((E301EH*EW)/144),3),ROUND(((EH*EW)/144),3)) ->  | AC9: Top Glass | AD9: 0 | AE9: 0 | AF9: 0 | AH9: Top Glass | AI9: =(TGW8R40A*TGH8R40A)/144 -> 0.1357693142 | AJ9: =$L$12 -> 3.2 | AK9: 0.4344618056 | AN9: =IF(OR(ModelNo="8001",ModelNo="R601"),TOPTUBELENGTH,0) -> 0 | AP9: 6 | AQ9: =IF(AND(AP9=6,$AN$4>=16,$AN$4<=20),AP9&"E",0) ->  | AS9: =IF(OR(ModelNo="8001",ModelNo="R601"),BOTTUBELENGTH,0) -> 0 | AU9: 6 | AV9: =IF(AND(AU9=6,$AS$4>=16,$AS$4<=20),AU9&"E",0) ->  | AX9: =IF(ModelNo=Climatech_Control,"Climatech-10",IF(ModelNo=Climatech_Control1,"Climatech TG2","")) ->  | AZ9: 0401 | BA9: =IF(CMR!$E$58>=Frame_Height/2-0.07,(INT(INT((Frame_Height/2-4.0625)+1)/2)-0.5)*2,(INT(INT((CMR!$E$58-4.375)+1)/2)-0.5)*2) -> -5 | BB9: =(INT(INT((Frame_Height/2-0.0625)+1)/2)-0.5)*2 -> -1 | BD9: 8 | BL9: 2R | BM9: 2R | BN9: 2R | BO9: 2R | BP9: 2R | BQ9: 2R | BR9: 2R | BS9: 2R | BT9: 2R | BU9: 2R | BV9: 2R | BW9: 2R | BX9: 2R | BY9: 2R | BZ9: 2R | CA9: 2R | CB9: 2R | CC9: 2R | CD9: 2R | CE9: 2R | CF9: 2R | CG9: 3R | CH9: 3R | CI9: 3R | DG9: =IF(AND($DF$4<=10,$DF$4>8),10,0) ->  | DH9: =IF(AND(DG9=10,$DE$4>=7,$DE$4<=10),DG9&"B",0) ->  | DL9: =IF(AND($DK$4<=10,$DK$4>8),10,0) ->  | DM9: =IF(AND(DL9=10,$DJ$4>=7,$DJ$4<=10),DL9&"B",0) -> 
B10: 11 | C10: 6 | D10: OR | F10: 11 | G10: 6 | H10: YW | J10: 8 | K10: IL | L10: =2.683*2 -> 5.366 | M10: Impact Laminated | O10: 0301 | P10: =CMR!$E$43 -> 0 | Q10: =CMR!$E$43-0.625 -> -0.625 | R10: =$AF$89 -> 0 | S10: =$AF$88 -> 0 | T10: 1.3125 | U10: 7.61812 | V10: 2.05906 | W10: 4.375 | AC10: Top Spacer | AD10: 0 | AE10: 0 | AF10: 0 | AH10: Top Spacer | AI10: =((TGW8R40A*2)+(TGH8R40A*2))/12 -> -1.520833333 | AJ10: 0.0536 | AK10: -0.08151666667 | AP10: 6 | AQ10: =IF(AND(AP10=6,$AN$4>=21,$AN$4<=24),"Dbl."&AP10&"C",0) ->  | AU10: 6 | AV10: =IF(AND(AU10=6,$AS$4>=21,$AS$4<=24),"Dbl."&AU10&"C",0) ->  | AX10: 1 | AZ10: 0501 | BA10: =IF(CMR!$L$42>=Frame_Height/2-0.07,(INT(INT((Frame_Height/2-4.75)+1)/2)-0.5)*2,(INT(INT((CMR!$L$42-4.75)+1)/2)-0.5)*2) -> -5 | BB10: =(INT(INT((Frame_Height/2-0.75)+1)/2)-0.5)*2 -> -1 | BD10: 9 | BJ10: 2R | BK10: 2R | BL10: 2R | BM10: 2R | BN10: 2R | BO10: 2R | BP10: 2R | BQ10: 2R | BR10: 2R | BS10: 2R | BT10: 2R | BU10: 3R | BV10: 3R | BW10: 3R | BX10: 3R | BY10: 3R | BZ10: 3R | CA10: 3R | CB10: 3R | CC10: 3R | CD10: 3R | CE10: 3R | CF10: 3R | CG10: 3R | CH10: 3R | CI10: 3R | DG10: =IF(AND($DF$4<=10,$DF$4>8),10,0) ->  | DH10: =IF(AND(DG10=10,$DE$4>=11,$DE$4<=13),DG10&"C",0) ->  | DL10: =IF(AND($DK$4<=10,$DK$4>8),10,0) ->  | DM10: =IF(AND(DL10=10,$DJ$4>=11,$DJ$4<=13),DL10&"C",0) -> 
B11: 12 | C11: 6 | D11: OR | F11: 12 | G11: 6 | H11: YW | M11: 2 | O11: E301(3250) | P11: =CMR!$E$43 -> 0 | Q11: =CMR!$E$43-0.625 -> -0.625 | R11: =$AF$89 -> 0 | S11: =$AF$88 -> 0 | W11: 4.375 | Y11: E301(3250) | Z11: 25.1875 | AC11: Top Hardware | AD11: 0 | AE11: 0 | AF11: 0 | AH11: Top Hardware | AI11: 1 | AJ11: 0.2 | AK11: 0.2 | AP11: 6 | AQ11: =IF(AND(AP11=6,$AN$4>=25,$AN$4<=30),"Dbl."&AP11&"D",0) ->  | AU11: 6 | AV11: =IF(AND(AU11=6,$AS$4>=25,$AS$4<=30),"Dbl."&AU11&"D",0) ->  | AX11: Glass Thickness | AZ11: 0601 | BA11: =IF(CMR!$L$58>=Frame_Height/2-0.07,(INT(INT((Frame_Height/2-4.75)+1)/2)-0.5)*2,(INT(INT((CMR!$L$58-4.75)+1)/2)-0.5)*2) -> -5 | BB11: =(INT(INT((Frame_Height/2-0.75)+1)/2)-0.5)*2 -> -1 | BD11: 10 | BJ11: 2R | BK11: 2R | BL11: 2R | BM11: 2R | BN11: 2R | BO11: 2R | BP11: 2R | BQ11: 3R | BR11: 3R | BS11: 3R | BT11: 3R | BU11: 3R | BV11: 3R | BW11: 3R | BX11: 3R | BY11: 3R | BZ11: 3R | CA11: 3R | CB11: 3R | CC11: 3R | CD11: 3R | CE11: 3R | CF11: 3R | CG11: 4R | CH11: 4R | CI11: 4R | DG11: =IF(AND($DF$4<=10,$DF$4>8),10,0) ->  | DH11: =IF(AND(DG11=10,$DE$4>=14,$DE$4<=16),DG11&"D",0) ->  | DL11: =IF(AND($DK$4<=10,$DK$4>8),10,0) ->  | DM11: =IF(AND(DL11=10,$DJ$4>=14,$DJ$4<=16),DL11&"D",0) -> 
B12: 13 | C12: 7 | D12: BU | F12: 13 | G12: 7 | H12: GN | L12: =VLOOKUP(Glass,J3:L10,3,FALSE) -> 3.2 | M12: =VLOOKUP(Glass,J3:L10,2,FALSE) -> D | O12: E301(3052) | P12: =CMR!$E$43 -> 0 | Q12: =CMR!$E$43-0.625 -> -0.625 | R12: =$AF$89 -> 0 | S12: =$AF$88 -> 0 | W12: 4.375 | Y12: E301(3052) | Z12: 26.375 | AC12: Top Bead | AD12: 0 | AE12: 0 | AF12: 0 | AH12: Top Handle Bead | AI12: =(TGW8R40A+0.235)/12 -> -0.454375 | AJ12: 0.089 | AK12: -0.040439375 | AP12: 6 | AQ12: =IF(AND(AP12=6,$AN$4>=31,$AN$4<=40),"Dbl."&AP12&"E",0) ->  | AU12: 6 | AV12: =IF(AND(AU12=6,$AS$4>=31,$AS$4<=40),"Dbl."&AU12&"E",0) ->  | AX12: =IF(Data!#REF!=1,"3/4""",IF(Data!#REF!=4,"7/8""",IF(Data!#REF!=5,"1""","13/16"""))) ->  | AZ12: 0700 | BB12: =(INT(INT(Frame_Height/2-0.25)/2)+0.5)*2 -> -1 | BD12: 11 | BJ12: 2R | BK12: 2R | BL12: 2R | BM12: 2R | BN12: 2R | BO12: 3R | BP12: 3R | BQ12: 3R | BR12: 3R | BS12: 3R | BT12: 3R | BU12: 3R | BV12: 3R | BW12: 3R | BX12: 4R | BY12: 4R | BZ12: 3R | CA12: 3R | CB12: 4R | CC12: 4R | CD12: 4R | CE12: 4R | CF12: 4R | CG12: 4R | CH12: 4R | CI12: 4R | DG12: =IF(AND($DF$4<=12,$DF$4>10),12,0) ->  | DH12: =IF(AND(DG12=12,$DE$4>=3,$DE$4<=7),DG12&"A",0) ->  | DL12: =IF(AND($DK$4<=12,$DK$4>10),12,0) ->  | DM12: =IF(AND(DL12=12,$DJ$4>=3,$DJ$4<=7),DL12&"A",0) -> 
B13: 14 | C13: 7 | D13: BU | F13: 14 | G13: 7 | H13: GN | O13: E301(2862) | P13: =CMR!$E$43 -> 0 | Q13: =CMR!$E$43-0.625 -> -0.625 | R13: =$AF$89 -> 0 | S13: =$AF$88 -> 0 | W13: 4.375 | Y13: E301(2862) | Z13: 32.3125 | AC13: Bottom Top Rail | AD13: =(Frame_Width-2.75)/12 -> -0.2291666667 | AE13: 0.473 | AF13: =AD13*AE13 -> -0.1083958333 | AH13: Top Bead | AI13: =((TGW8R40A+0.235)+((TGH8R40A-0.875)*2))/12 -> -1.173125 | AJ13: 0.065 | AK13: -0.076253125 | AP13: =IF(AND($AO$4<=8,$AO$4>6),8,0) -> 0 | AQ13: =IF(AND(AP13=8,$AN$4>=2,$AN$4<=6),AP13&"A",0) ->  | AU13: =IF(AND($AT$4<=8,$AT$4>6),8,0) -> 0 | AV13: =IF(AND(AU13=8,$AS$4>=2,$AS$4<=6),AU13&"A",0) ->  | AX13: =IF(Data!#REF!=1,"13/16""",IF(Data!#REF!=3,"1""","")) ->  | AZ13: 01HP | BB13: =(INT(INT(Frame_Height/2-0.25)/2)+0.5)*2 -> -1 | BD13: 12 | BJ13: 2R | BK13: 2R | BL13: 2R | BM13: 2R | BN13: 3R | BO13: 3R | BP13: 3R | BQ13: 3R | BR13: 4R | BS13: 4R | BT13: 4R | BU13: 4R | BV13: 4R | BW13: 4R | BX13: 4R | BY13: 4R | BZ13: 3R | CA13: 4R | CB13: 4R | CC13: 4R | CD13: 5R | CE13: 5R | CF13: 5R | CG13: 5R | CH13: 5R | CI13: 5R | CJ13: 4R | CK13: 4R | CL13: 4R | CM13: 4R | CN13: 4R | CO13: 4R | CP13: 5R | CQ13: 5R | CR13: 5R | CS13: 5R | CT13: 5R | CU13: 5R | CV13: 5R | DG13: =IF(AND($DF$4<=12,$DF$4>10),12,0) ->  | DH13: =IF(AND(DG13=12,$DE$4>=8,$DE$4<=10),DG13&"B",0) ->  | DL13: =IF(AND($DK$4<=12,$DK$4>10),12,0) ->  | DM13: =IF(AND(DL13=12,$DJ$4>=8,$DJ$4<=10),DL13&"B",0) -> 
B14: 15 | C14: 8 | D14: BK | F14: 15 | G14: 8 | H14: LG | M14: Extrusion | O14: 0401 | P14: =CMR!$E$59 -> -2.875 | Q14: =CMR!$E$59 -> -2.875 | R14: =$AF$111 -> 0 | S14: =$AF$110 -> 0 | T14: 0.6875 | U14: 7.57087 | V14: 2.00788 | W14: 4.375 | Z14: =IF(OR(ModelNo="E301(3250)",ModelNo="E301(3052)",ModelNo="E301(2862)"),VLOOKUP(ModelNo,$Y$11:$Z$13,2,FALSE),0) -> 0 | AC14: Bottom Bottom Rail | AD14: =(Frame_Width-2.75)/12 -> -0.2291666667 | AE14: 0.437 | AF14: -0.1001458333 | AH14: Bottom Top Rail | AI14: =(BGW8R40A+2.875)/12 -> -0.234375 | AJ14: 0.473 | AK14: =AI14*AJ14 -> -0.110859375 | AP14: 0 | AQ14: =IF(AND(AP14=8,$AN$4>=7,$AN$4<=10),AP14&"B",0) ->  | AU14: 0 | AV14: =IF(AND(AU14=8,$AS$4>=7,$AS$4<=10),AU14&"B",0) ->  | AX14: 1 | AZ14: 07HP | BB14: =(INT(INT(Frame_Height/2-0.25)/2)+0.5)*2 -> -1 | BD14: 13 | BJ14: 2R | BK14: 2R | BL14: 2R | BM14: 2R | BN14: 3R | BO14: 3R | BP14: 3R | BQ14: 3R | BR14: 4R | BS14: 4R | BT14: 4R | BU14: 4R | BV14: 4R | BW14: 4R | BX14: 5R | BY14: 5R | BZ14: 4R | CA14: 4R | CB14: 4R | CC14: 5R | CD14: 5R | CE14: 5R | CF14: 5R | CG14: 5R | CH14: 5R | CI14: 5R | CJ14: 4R | CK14: 4R | CL14: 4R | CM14: 4R | CN14: 4R | CO14: 5R | CP14: 5R | CQ14: 5R | CR14: 5R | CS14: 5R | CT14: 5R | CU14: 5R | CV14: 5R | DG14: =IF(AND($DF$4<=12,$DF$4>10),12,0) ->  | DH14: =IF(AND(DG14=12,$DE$4>=11,$DE$4<=16),DG14&"C",0) ->  | DL14: =IF(AND($DK$4<=12,$DK$4>10),12,0) ->  | DM14: =IF(AND(DL14=12,$DJ$4>=11,$DJ$4<=16),DL14&"C",0) -> 
B15: 16 | C15: 8 | D15: BK | F15: 16 | G15: 8 | H15: LG | L15: 1 | M15: =IF(EXT_1=0,"",EXT_1) ->  | O15: 0501 | P15: =CMR!$L$43 -> 0 | Q15: =CMR!$L$43-1.3125 -> -1.3125 | R15: =$AF$135 -> 0 | S15: =$AF$134 -> 0 | T15: 1.875 | U15: 9.014 | V15: 2.955 | W15: 5.375 | AC15: Bottom Stile | AD15: =((CDIM3R40A+0.25)*2)/12 -> 0.04166666667 | AE15: 0.437 | AF15: 0.01820833333 | AH15: Bottom Bottom Rail | AI15: =(BGW8R40A+2.875)/12 -> -0.234375 | AJ15: 0.437 | AK15: -0.102421875 | AP15: 0 | AQ15: =IF(AND(AP15=8,$AN$4>=11,$AN$4<=13),AP15&"C",0) ->  | AU15: 0 | AV15: =IF(AND(AU15=8,$AS$4>=11,$AS$4<=13),AU15&"C",0) ->  | AZ15: 0901 | BA15: =IF(CMR!$E$74>=Frame_Height/2-0.07,(INT(INT((Frame_Height/2-3.625)+1)/2)-0.5)*2,(INT(INT((CMR!$E$74-3.625)+1)/2)-0.5)*2) -> -5 | BB15: =(INT(INT((Frame_Height/2-0.625)+1)/2)-0.5)*2 -> -1 | BD15: 14 | BJ15: 2R | BK15: 2R | BL15: 2R | BM15: 2R | BN15: 3R | BO15: 3R | BP15: 3R | BQ15: 4R | BR15: 4R | BS15: 4R | BT15: 4R | BU15: 4R | BV15: 5R | BW15: 5R | BX15: 5R | BY15: 5R | BZ15: 4R | CA15: 4R | CB15: 5R | CC15: 5R | CD15: 5R | CE15: 6R | CF15: 6R | CG15: 6R | CH15: 6R | CI15: 6R | CJ15: 4R | CK15: 5R | CL15: 5R | CM15: 5R | CN15: 5R | CO15: 5R | CP15: 5R | CQ15: 5R | CR15: 5R | CS15: 5R | CT15: 6R | CU15: 6R | CV15: 6R | CW15: 6R | CX15: 6R | DG15: =IF(AND($DF$4<=12,$DF$4>10),12,0) ->  | DH15: =IF(AND(DG15=12,$DE$4>=17,$DE$4<=18),DG15&"D",0) ->  | DL15: =IF(AND($DK$4<=12,$DK$4>10),12,0) ->  | DM15: =IF(AND(DL15=12,$DJ$4>=17,$DJ$4<=18),DL15&"D",0) -> 
B16: 17 | C16: 9 | D16: WT | F16: 17 | G16: 9 | H16: NAT | L16: 2 | M16: =IF(EXT_2=0,"",EXT_2) ->  | O16: B501 | P16: =CMR!$L$43 -> 0 | Q16: =CMR!$L$43-1.3125 -> -1.3125 | R16: =$AF$135 -> 0 | S16: =$AF$134 -> 0 | T16: 1.875 | U16: 9.014 | V16: 2.955 | W16: 5.375 | Y16: V100 | Z16: =Frame_Height-(CMR!$L$99-0.844)-3.64625 -> -2.80225 | AC16: Bottom Rail Reinf. | AD16: =(TRUNC(((AD13*12)-6)/2)*2)/12 -> -0.6666666667 | AE16: 0.4344 | AF16: -0.2896 | AH16: Bottom Stile | AI16: =(2*(BGH8R40A+2.875))/12 -> -0.09375 | AJ16: 0.437 | AK16: -0.04096875 | AP16: 0 | AQ16: =IF(AND(AP16=8,$AN$4>=14,$AN$4<=15),AP16&"D",0) ->  | AU16: 0 | AV16: =IF(AND(AU16=8,$AS$4>=14,$AS$4<=15),AU16&"D",0) ->  | AZ16: 09A1 | BA16: =IF(CMR!$E$74>=Frame_Height/2-0.07,(INT(INT((Frame_Height/2-3.625)+1)/2)-0.5)*2,(INT(INT((CMR!$E$74-3.625)+1)/2)-0.5)*2) -> -5 | BB16: =(INT(INT((Frame_Height/2-0.625)+1)/2)-0.5)*2 -> -1 | BD16: 15 | BJ16: 2R | BK16: 2R | BL16: 2R | BM16: 2R | BN16: 3R | BO16: 4R | BP16: 4R | BQ16: 4R | BR16: 5R | BS16: 5R | BT16: 5R | BU16: 5R | BV16: 5R | BW16: 5R | BX16: 6R | BY16: 6R | BZ16: 5R | CA16: 5R | CB16: 5R | CC16: 6R | CD16: 6R | CE16: 6R | CF16: 6R | CG16: 6R | CH16: 6R | CI16: 6R | CJ16: 4R | CK16: 5R | CL16: 5R | CM16: 5R | CN16: 5R | CO16: 5R | CP16: 5R | CQ16: 5R | CR16: 5R | CS16: 6R | CT16: 6R | CU16: 6R | CV16: 6R | CW16: 6R | CX16: 6R | DG16: =IF(AND($DF$4<=12,$DF$4>10),12,0) ->  | DH16: =IF(AND(DG16=12,$DE$4>=19,$DE$4<=21),DG16&"E",0) ->  | DL16: =IF(AND($DK$4<=12,$DK$4>10),12,0) ->  | DM16: =IF(AND(DL16=12,$DJ$4>=19,$DJ$4<=21),DL16&"E",0) -> 
B17: 18 | C17: 9 | D17: WT | F17: 18 | G17: 9 | H17: NAT | L17: 3 | M17: =IF(EXT_3=0,"",EXT_3) ->  | O17: U501 | P17: =CMR!$L$43 -> 0 | Q17: =CMR!$L$43-1.3125 -> -1.3125 | R17: =$AF$135 -> 0 | S17: =$AF$134 -> 0 | T17: 1.875 | U17: 9.014 | V17: 2.955 | W17: 5.375 | Y17: V101 | Z17: =Frame_Height-(CMR!$L$115-0.3125)-4.948 -> -4.6355 | AC17: Bottom Stile Reinf. | AD17: =IF(OR(CMR!$E$16>=28.5,ModelNo="01HP",ModelNo="07HP",ModelNo="S140 (HP)",ModelNo="S144 (HP)",ModelNo="S146 (HP)"),(((CMR!$E$11-1.625)/2)*2)/12,0) -> 0 | AF17: 0 | AH17: Bottom Rail Reinf. | AI17: =(TRUNC(((Frame_Width-2.875)-6)/2)*2)/12 -> -0.6666666667 | AJ17: 0.4344 | AK17: -0.2896 | AP17: 0 | AQ17: =IF(AND(AP17=8,$AN$4>=16,$AN$4<=18),AP17&"E",0) ->  | AU17: 0 | AV17: =IF(AND(AU17=8,$AS$4>=16,$AS$4<=18),AU17&"E",0) ->  | AZ17: 09B1 | BA17: =IF(CMR!$E$74>=Frame_Height/2-0.07,(INT(INT((Frame_Height/2-3.625)+1)/2)-0.5)*2,(INT(INT((CMR!$E$74-3.625)+1)/2)-0.5)*2) -> -5 | BB17: =(INT(INT((Frame_Height/2-0.625)+1)/2)-0.5)*2 -> -1 | BD17: 16 | BJ17: 2R | BK17: 2R | BL17: 2R | BM17: 2R | BN17: 3R | BO17: 4R | BP17: 4R | BQ17: 4R | BR17: 5R | BS17: 5R | BT17: 5R | BU17: 5R | BV17: 6R | BW17: 6R | BX17: 6R | BY17: 6R | BZ17: 5R | CA17: 5R | CB17: 6R | CC17: 6R | CD17: 6R | CE17: 6R | CF17: 7R | CG17: 7R | CH17: 7R | CI17: 7R | CJ17: 5R | CK17: 5R | CL17: 5R | CM17: 5R | CN17: 5R | CO17: 6R | CP17: 6R | CQ17: 6R | CR17: 6R | CS17: 6R | CT17: 7R | CU17: 7R | CV17: 7R | CW17: 7R | CX17: 7R | CY17: 7R | CZ17: 7R | DG17: =IF(AND($DF$4<=14,$DF$4>12),14,0) ->  | DH17: =IF(AND(DG17=14,$DE$4>=3,$DE$4<=7),DG17&"A",0) ->  | DL17: =IF(AND($DK$4<=14,$DK$4>12),14,0) ->  | DM17: =IF(AND(DL17=14,$DJ$4>=3,$DJ$4<=7),DL17&"A",0) -> 
B18: 19 | C18: 10 | D18: PK | F18: 19 | G18: 10 | H18: PK | L18: 4 | M18: =IF(EXT_4=0,"",EXT_4) ->  | O18: 0601 | P18: =CMR!$L$59 -> -2.875 | Q18: =CMR!$L$59-0.9375 -> -3.8125 | R18: =$AK$25 -> 0 | S18: =$AK$24 -> 0 | T18: 1.875 | U18: 8.75 | V18: 2.689 | W18: 5.375 | Y18: V200 | Z18: =Frame_Height-(TRUNC(((CMR!$L$124-0.8125)*32+0.5))/32-0.0625)-4.047 -> -3.20325 | AC18: Bottom Glass | AD18: =(BGW3R40A*BGH3R40A)/144 -> 0.1001925998 | AE18: =$L$12 -> 3.2 | AF18: =IF(AND(Frame_Width=35.5,Frame_Height=59.5),($AD$18*$AE$18)-2.25,$AD$18*$AE$18) -> 0.3206163194 | AG18: * | AH18: Bottom Stile Reinf. | AI18: =IF(CMR!$L$64>26.1875,((TRUNC((CMR!$L$59-4)/2)*2)/12)*2,0) -> 0 | AK18: 0 | AP18: 0 | AQ18: =IF(AND(AP18=8,$AN$4>=19,$AN$4<=20),"Dbl."&AP18&"B",0) ->  | AU18: 0 | AV18: =IF(AND(AU18=8,$AS$4>=19,$AS$4<=20),"Dbl."&AU18&"B",0) ->  | AZ18: B501 | BA18: =IF(CMR!$L$42>=Frame_Height/2-0.07,(INT(INT((Frame_Height/2-4.75)+1)/2)-0.5)*2,(INT(INT((CMR!$L$42-4.75)+1)/2)-0.5)*2) -> -5 | BB18: =(INT(INT((Frame_Height/2-0.75)+1)/2)-0.5)*2 -> -1 | BD18: 17 | BJ18: 2R | BK18: 3R | BL18: 3R | BM18: 3R | BN18: 4R | BO18: 4R | BP18: 4R | BQ18: 5R | BR18: 5R | BS18: 5R | BT18: 5R | BU18: 6R | BV18: 6R | BW18: 6R | BX18: 7R | BY18: 7R | BZ18: 5R | CA18: 6R | CB18: 6R | CC18: 7R | CD18: 7R | CE18: 7R | CF18: 7R | CG18: 7R | CH18: 7R | CI18: 7R | CJ18: 5R | CK18: 5R | CL18: 6R | CM18: 6R | CN18: 6R | CO18: 6R | CP18: 6R | CQ18: 6R | CR18: 6R | CS18: 7R | CT18: 7R | CU18: 7R | CV18: 7R | CW18: 7R | CX18: 7R | CY18: 7R | CZ18: 7R | DH18: =IF(AND(DG18=14,$DE$4>=8,$DE$4<=10),DG18&"B",0) ->  | DM18: =IF(AND(DL18=14,$DJ$4>=8,$DJ$4<=10),DL18&"B",0) -> 
B19: 20 | C19: 10 | D19: PK | F19: 20 | G19: 10 | H19: PK | L19: 5 | M19: =IF(EXT_5=0,"",EXT_5) ->  | O19: B601 | P19: =CMR!$L$59 -> -2.875 | Q19: =CMR!$L$59-0.9375 -> -3.8125 | R19: =$AK$25 -> 0 | S19: =$AK$24 -> 0 | T19: 1.875 | U19: 8.75 | V19: 2.689 | W19: 5.375 | Z19: =IF(OR(ModelNo="V100",ModelNo="V101",ModelNo="V200"),VLOOKUP(ModelNo,$Y$16:$Z$18,2,FALSE),0) -> 0 | AC19: Bottom Spacer | AD19: =((BGW3R40A*2)+(BGH3R40A*2))/12 -> -1.359375 | AE19: 0.0536 | AF19: -0.0728625 | AH19: Bottom Glass | AI19: =(BGW8R40A*BGH8R40A)/144 -> 0.1357693142 | AJ19: =$L$12 -> 3.2 | AK19: 0.4344618056 | AP19: 0 | AQ19: =IF(AND(AP19=8,$AN$4>=21,$AN$4<=26),"Dbl."&AP19&"C",0) ->  | AU19: 0 | AV19: =IF(AND(AU19=8,$AS$4>=21,$AS$4<=26),"Dbl."&AU19&"C",0) ->  | AZ19: U501 | BA19: =IF(CMR!$L$42>=Frame_Height/2-0.07,(INT(INT((Frame_Height/2-4.75)+1)/2)-0.5)*2,(INT(INT((CMR!$L$42-4.75)+1)/2)-0.5)*2) -> -5 | BB19: =(INT(INT((Frame_Height/2-0.75)+1)/2)-0.5)*2 -> -1 | BD19: 18 | BJ19: 3R | BK19: 3R | BL19: 3R | BM19: 3R | BN19: 4R | BO19: 5R | BP19: 5R | BQ19: 5R | BR19: 5R | BS19: 5R | BT19: 5R | BU19: 6R | BV19: 7R | BW19: 7R | BX19: 7R | BY19: 7R | BZ19: 6R | CA19: 6R | CB19: 7R | CC19: 7R | CD19: 7R | CE19: 7R | CF19: 8R | CG19: 8R | CH19: 8R | CI19: 8R | CJ19: 6R | CK19: 6R | CL19: 6R | CM19: 6R | CN19: 6R | CO19: 7R | CP19: 7R | CQ19: 7R | CR19: 7R | CS19: 7R | CT19: 8R | CU19: 8R | CV19: 8R | CW19: 8R | CX19: 8R | CY19: 8R | CZ19: 8R | DA19: 8R | DB19: 8R | DH19: =IF(AND(DG19=14,$DE$4>=11,$DE$4<=16),DG19&"C",0) ->  | DM19: =IF(AND(DL19=14,$DJ$4>=11,$DJ$4<=16),DL19&"C",0) -> 
B20: 21 | C20: 10 | D20: PK | F20: 21 | G20: 56 | H20: BU | M20: 1 | N20: =VLOOKUP(EXTSELECT,L15:M19,2,FALSE) ->  | O20: U601 | P20: =CMR!$L$59 -> -2.875 | Q20: =CMR!$L$59-0.9375 -> -3.8125 | R20: =$AK$25 -> 0 | S20: =$AK$24 -> 0 | T20: 1.875 | U20: 8.75 | V20: 2.689 | W20: 5.375 | Z20: =IF(VEH>0,ROUND(((VEH*EW)/144),3)) -> FALSE | AC20: Bottom Hardware | AD20: 1 | AE20: 0.36 | AF20: 0.36 | AH20: Bottom Spacer | AI20: =((BGW8R40A*2)+(BGH8R40A*2))/12 -> -1.520833333 | AJ20: 0.0536 | AK20: -0.08151666667 | AP20: 0 | AQ20: =IF(AND(AP20=8,$AN$4>=27,$AN$4<=32),"Dbl."&AP20&"D",0) ->  | AU20: 0 | AV20: =IF(AND(AU20=8,$AS$4>=27,$AS$4<=32),"Dbl."&AU20&"D",0) ->  | AZ20: B601 | BA20: =IF(CMR!$L$58>=Frame_Height/2-0.07,(INT(INT((Frame_Height/2-4.75)+1)/2)-0.5)*2,(INT(INT((CMR!$L$58-4.75)+1)/2)-0.5)*2) -> -5 | BB20: =(INT(INT((Frame_Height/2-0.75)+1)/2)-0.5)*2 -> -1 | BD20: 19 | BJ20: 2B | BK20: 3R | BL20: 3R | BM20: 3R | BN20: 4R | BO20: 2B | BP20: 2B | BQ20: 3B | BR20: 3B | BS20: 3B | BT20: 6R | BU20: 7R | BV20: 7R | BW20: 7R | BX20: 7R | BY20: 7R | BZ20: 6R | CA20: 7R | CB20: 7R | CC20: 8R | CD20: 8R | CE20: 8R | CF20: 8R | CG20: 8R | CH20: 8R | CI20: 8R | CJ20: 6R | CK20: 6R | CL20: 7R | CM20: 7R | CN20: 7R | CO20: 7R | CP20: 7R | CQ20: 8R | CR20: 8R | CS20: 8R | CT20: 8R | CU20: 8R | CV20: 8R | CW20: 8R | CX20: 8R | CY20: 8R | CZ20: 8R | DA20: 8R | DB20: 8R | DH20: =IF(AND(DG20=14,$DE$4>=17,$DE$4<=19),DG20&"D",0) ->  | DM20: =IF(AND(DL20=14,$DJ$4>=17,$DJ$4<=19),DL20&"D",0) -> 
B21: 22 | C21: 8/4 | D21: BU | F21: 22 | G21: 56 | H21: BU | M21: =IF($M$20=1,0,IF($M$20=5,1.75,IF($M$20=2,2.40625,1))) -> 0 | O21: 0700 | P21: =CMR!$E$11 -> 0 | Q21: =CMR!$E$11+0.125 -> 0.125 | R21: =$AF$23 -> 0 | S21: =$AF$22 -> 0 | T21: 1.03125 | U21: 3.074 | V21: 1.537 | W21: 3.0625 | AC21: Bottom Bead | AD21: =(((BGW3R40A+0.235)*2)+((BGH3R40A-0.875)*2))/12 -> -1.466041667 | AE21: 0.065 | AF21: -0.09529270833 | AH21: Bottom Hardware | AI21: 1 | AJ21: 0.36 | AK21: 0.36 | AP21: 0 | AQ21: =IF(AND(AP21=8,$AN$4>=33,$AN$4<=36),"Dbl."&AP21&"E",0) ->  | AU21: 0 | AV21: =IF(AND(AU21=8,$AS$4>=33,$AS$4<=36),"Dbl."&AU21&"E",0) ->  | AZ21: U601 | BA21: =IF(CMR!$L$58>=Frame_Height/2-0.07,(INT(INT((Frame_Height/2-4.75)+1)/2)-0.5)*2,(INT(INT((CMR!$L$58-4.75)+1)/2)-0.5)*2) -> -5 | BB21: =(INT(INT((Frame_Height/2-0.75)+1)/2)-0.5)*2 -> -1 | BD21: 20 | BJ21: 3B | BK21: 3B | BL21: 3B | BM21: 3B | BN21: 3B | BO21: 3B | BP21: 3B | BQ21: 3B | BR21: 4B | BS21: 4B | BT21: 4B | BU21: 5B | BV21: 5B | BW21: 6B | BX21: 7B | BY21: 7B | BZ21: 7R | CA21: 7R | CB21: 8R | CC21: 8R | CD21: 8R | CE21: 8R | CF21: 8R | CG21: 9R | CH21: 9R | CI21: 9R | CJ21: 7R | CK21: 7R | CL21: 7R | CM21: 7R | CN21: 7R | CO21: 8R | CP21: 8R | CQ21: 8R | CR21: 8R | CS21: 8R | CT21: 9R | CU21: 9R | CV21: 9R | CW21: 9R | CX21: 9R | CY21: 9R | CZ21: 9R | DA21: 9R | DB21: 9R | DH21: =IF(AND(DG21=14,$DE$4>=20,$DE$4<=22),DG21&"E",0) ->  | DM21: =IF(AND(DL21=14,$DJ$4>=20,$DJ$4<=22),DL21&"E",0) -> 
B22: 23 | C22: 8/4 | D22: BU | F22: 23 | G22: 66 | H22: YW | M22: =IF(AND(EXTSELECT=1,OR(SELECTEXT="Select Reinforcement",SELECTEXT="Select Extrusion")),"<< Must Select","") ->  | O22: 07HP | P22: =CMR!$L$11 -> 0 | Q22: =CMR!$L$11+0.125 -> 0.125 | R22: =$AF$23 -> 0 | S22: =$AF$22 -> 0 | T22: 1.03125 | U22: 3.168 | V22: 1.631 | W22: 3.0625 | AE22: Top Sash | AF22: 0 | AH22: Bottom Keeper Bead | AI22: =(BGW8R40A-0.235)/12 -> -0.4935416667 | AJ22: 0.109 | AK22: -0.05379604167 | AP22: =IF(AND($AO$4<=10,$AO$4>8),10,0) -> 0 | AQ22: =IF(AND(AP22=10,$AN$4>=1,$AN$4<=6),AP22&"A",0) ->  | AU22: =IF(AND($AT$4<=10,$AT$4>8),10,0) -> 0 | AV22: =IF(AND(AU22=10,$AS$4>=1,$AS$4<=6),AU22&"A",0) ->  | AZ22: R601 | BA22: =IF(CMR!$L$74>=Frame_Height/2-0.07,(INT(INT((Frame_Height/2-4.75)+0.25)/2))*2,(INT(INT((CMR!$L$74-4.75)+0.25)/2))*2) -> -6 | BB22: =(INT(INT((Frame_Height/2-2.75)+0.25)/2)*2) -> -4 | BD22: 21 | BJ22: 3B | BK22: 3B | BL22: 3B | BM22: 3B | BN22: 3B | BO22: 3B | BP22: 3B | BQ22: 4B | BR22: 5B | BS22: 5B | BT22: 5B | BU22: 5B | BV22: 5B | BW22: 7B | BX22: 7B | BY22: 7B | BZ22: 8R | CA22: 8R | CB22: 8R | CC22: 9R | CD22: 9R | CE22: 9R | CF22: 9R | CG22: 9R | CH22: 9R | CI22: 10R | CJ22: 7R | CK22: 7R | CL22: 8R | CM22: 8R | CN22: 8R | CO22: 8R | CP22: 8R | CQ22: 9R | CR22: 9R | CS22: 9R | CT22: 9R | CU22: 9R | CV22: 9R | CW22: 9R | CX22: 9R | CY22: 9R | CZ22: 9R | DA22: 9R | DB22: 9R | DH22: =IF(AND(DG22=14,$DE$4>=23,$DE$4<=25),DG22&"F",0) ->  | DM22: =IF(AND(DL22=14,$DJ$4>=23,$DJ$4<=25),DL22&"F",0) -> 
B23: 24 | C23: 8/4 | D23: BU | F23: 24 | G23: 66 | H23: YW | M23: =IF(AND(EXT_CONTROL=0,W>0,H>0,LEG>0),"<< Not a Valid Entry",IF(AND(EXT_CONTROL=1,W>0,H>0,LEG=0),"<< Need Leg Height",IF(AND(OR(ModelNo="S140",ModelNo="S140 (HP)"),W>0,H>0,LEG<>(Frame_Height-(Frame_Width/2))),"<< Leg Should be"&" "&(Frame_Height-(Frame_Width/2)),""))) ->  | O23: 0901 | P23: =CMR!$E$75 -> 0 | Q23: =CMR!$E$75-0.6875 -> -0.6875 | R23: =$AK$49 -> 0 | S23: =$AK$48 -> 0 | T23: 0.9375 | U23: 7.927 | V23: 2.125 | W23: 4.0625 | AE23: Bottom Sash | AF23: =IF(ModelNo="3S40A",TRUNC(SUM(AF13:AF21)),0) -> 0 | AH23: Bottom Bead | AI23: =((BGW8R40A+0.235)+((BGH8R40A+0.875)*2))/12 -> -0.8814583333 | AJ23: 0.074 | AK23: -0.06522791667 | AP23: 0 | AQ23: =IF(AND(AP23=10,$AN$4>=7,$AN$4<=10),AP23&"B",0) ->  | AU23: 0 | AV23: =IF(AND(AU23=10,$AS$4>=7,$AS$4<=10),AU23&"B",0) ->  | AZ23: 8001 | BA23: =IF(CMR!$L$74>=Frame_Height/2-0.07,(INT(INT((Frame_Height/2-4.75)+0.25)/2))*2,(INT(INT((CMR!$L$74-4.75)+0.25)/2))*2) -> -6 | BB23: =(INT(INT((Frame_Height/2-2.75)+0.25)/2)*2) -> -4 | BD23: 22 | BJ23: 3B | BK23: 3B | BL23: 3B | BM23: 3B | BN23: 4B | BO23: 4B | BP23: 4B | BQ23: 4B | BR23: 5B | BS23: 5B | BT23: 5B | BU23: 5B | BV23: 5B | BW23: 7B | BX23: 8B | BY23: 8B | BZ23: 9R | CA23: 9R | CB23: 9R | CC23: 9R | CD23: 9R | CE23: 9R | CF23: 9R | CG23: 10R | CH23: 10R | CI23: 10R | CJ23: 8R | CK23: 8R | CL23: 8R | CM23: 8R | CN23: 8R | CO23: 9R | CP23: 9R | CQ23: 9R | CR23: 9R | CS23: 9R | CT23: 10R | CU23: 10R | CV23: 10R | CW23: 10R | CX23: 10R | CY23: 10R | CZ23: 10R | DA23: 10R | DB23: 10R | DG23: =IF(AND($DF$4<=16,$DF$4>14),16,0) ->  | DH23: =IF(AND(DG23=16,$DE$4>=3,$DE$4<=7),DG23&"A",0) ->  | DL23: =IF(AND($DK$4<=16,$DK$4>14),16,0) ->  | DM23: =IF(AND(DL23=16,$DJ$4>=3,$DJ$4<=7),DL23&"A",0) -> 
B24: 25 | C24: 8/4 | D24: BU | F24: 25 | G24: 67 | H24: GN | M24: Type | O24: 09A1 | P24: =CMR!$E$75 -> 0 | Q24: =CMR!$E$75-0.6875 -> -0.6875 | R24: =$AK$49 -> 0 | S24: =$AK$48 -> 0 | T24: 0.9375 | U24: 7.927 | V24: 2.125 | W24: 4.0625 | AJ24: Top Sash | AK24: =IF(ModelNo="8E40A",TRUNC(SUM(AK4:AK13))+5,0) -> 0 | AP24: 0 | AQ24: =IF(AND(AP24=10,$AN$4>=11,$AN$4<=13),AP24&"C",0) ->  | AU24: 0 | AV24: =IF(AND(AU24=10,$AS$4>=11,$AS$4<=13),AU24&"C",0) ->  | AZ24: V100 | BB24: =FLOOR(Frame_Height/2-2,2) -> -2 | BD24: 23 | BJ24: 3B | BK24: 3B | BL24: 3B | BM24: 3B | BN24: 4B | BO24: 4B | BP24: 5B | BQ24: 5B | BR24: 5B | BS24: 5B | BT24: 5B | BU24: 6B | BV24: 6B | BW24: 7B | BX24: 8B | BY24: 8B | BZ24: 9R | CA24: 9R | CB24: 9R | CC24: 10R | CD24: 10R | CE24: 10R | CF24: 10R | CG24: 10R | CH24: 11R | CI24: 11R | CJ24: 8R | CK24: 8R | CL24: 8R | CM24: 9R | CN24: 9R | CO24: 9R | CP24: 9R | CQ24: 9R | CR24: 9R | CS24: 10R | CT24: 10R | CU24: 10R | CV24: 10R | CW24: 10R | CX24: 10R | CY24: 10R | CZ24: 10R | DA24: 10R | DB24: 11R | DH24: =IF(AND(DG24=16,$DE$4>=8,$DE$4<=10),DG24&"B",0) ->  | DM24: =IF(AND(DL24=16,$DJ$4>=8,$DJ$4<=10),DL24&"B",0) -> 
B25: 26 | C25: 8/6 | D25: BN | F25: 26 | G25: 67 | H25: GN | L25: 1 | M25: =IF(TYPE1>"",TYPE1,"") ->  | O25: 09B1 | P25: =CMR!$E$75 -> 0 | Q25: =CMR!$E$75-0.6875 -> -0.6875 | R25: =$AK$49 -> 0 | S25: =$AK$48 -> 0 | T25: 0.9375 | U25: 7.927 | V25: 2.125 | W25: 4.0625 | AC25: 0201 | AD25: Length | AE25: Weight/ft | AF25: Weight | AJ25: Bottom Sash | AK25: =IF(ModelNo="8E40A",TRUNC(SUM(AK14:AK23)),0) -> 0 | AP25: 0 | AQ25: =IF(AND(AP25=10,$AN$4>=14,$AN$4<=16),AP25&"D",0) ->  | AU25: 0 | AV25: =IF(AND(AU25=10,$AS$4>=14,$AS$4<=16),AU25&"D",0) ->  | AZ25: V101 | BA25: =IF(CMR!$L$115>=Frame_Height/2-0.07,(INT(INT((Frame_Height/2-4.75))/2))*2,(INT(INT((CMR!$L$115-4.75))/2))*2) -> -6 | BB25: =(INT(INT((Frame_Height/2-2.75)+0.25)/2)*2) -> -4 | BD25: 24 | BJ25: 4B | BK25: 4B | BL25: 4B | BM25: 4B | BN25: 4B | BO25: 4B | BP25: 5B | BQ25: 5B | BR25: 5B | BS25: 5B | BT25: 5B | BU25: 6B | BV25: 6B | BW25: 8R | BX25: 9B | BY25: 9B | BZ25: 10R | CA25: 10R | CB25: 10R | CC25: 11R | CD25: 11R | CE25: 11R | CF25: 11R | CG25: 11R | CH25: 12R | CI25: 12R | CJ25: 8R | CK25: 8R | CL25: 9R | CM25: 9R | CN25: 9R | CO25: 9R | CP25: 10R | CQ25: 10R | CR25: 10R | CS25: 10R | CT25: 11R | CU25: 11R | CV25: 11R | CW25: 11R | CX25: 11R | CY25: 11R | CZ25: 11R | DA25: 11R | DB25: 12R | DH25: =IF(AND(DG25=16,$DE$4>=11,$DE$4<=16),DG25&"C",0) ->  | DM25: =IF(AND(DL25=16,$DJ$4>=11,$DJ$4<=16),DL25&"C",0) -> 
B26: 27 | C26: 8/6 | D26: BN | F26: 27 | G26: 77 | H26: LG | L26: 2 | M26: =IF(TYPE2>"",TYPE2,"") ->  | O26: 09L1 | P26: =CMR!$E$75 -> 0 | Q26: =CMR!$E$75-0.6875 -> -0.6875 | R26: =$AK$49 -> 0 | S26: =$AK$48 -> 0 | T26: 0.9375 | U26: 7.927 | V26: 2.125 | W26: 4.0625 | AC26: Top Top Rail | AD26: =(Frame_Width-3.25)/12 -> -0.2708333333 | AE26: 0.257 | AF26: =AD26*AE26 -> -0.06960416667 | AP26: 0 | AQ26: =IF(AND(AP26=10,$AN$4>=17,$AN$4<=19),AP26&"E",0) ->  | AU26: 0 | AV26: =IF(AND(AU26=10,$AS$4>=17,$AS$4<=19),AU26&"E",0) ->  | AZ26: V200 | BB26: =FLOOR(Frame_Height/2-2,2) -> -2 | BD26: 25 | BK26: 4B | BL26: 4B | BM26: 4B | BN26: 4B | BO26: 4B | BP26: 5B | BQ26: 6B | BR26: 6B | BS26: 6B | BT26: 6B | BU26: 6B | BV26: 6B | BW26: 8B | BX26: 9B | BY26: 9B | BZ26: 10R | CA26: 10R | CB26: 11R | CC26: 11R | CD26: 11R | CE26: 11R | CF26: 11R | CG26: 11R | CH26: 12R | CI26: 12R | CJ26: 9R | CK26: 9R | CL26: 9R | CM26: 9R | CN26: 9R | CO26: 10R | CP26: 10R | CQ26: 10R | CR26: 10R | CS26: 11R | CT26: 11R | CU26: 11R | CV26: 11R | CW26: 11R | CX26: 11R | CY26: 11R | CZ26: 11R | DA26: 12R | DB26: 13R | DH26: =IF(AND(DG26=16,$DE$4>=17,$DE$4<=19),DG26&"D",0) ->  | DM26: =IF(AND(DL26=16,$DJ$4>=17,$DJ$4<=19),DL26&"D",0) -> 
B27: 28 | C27: 8/6 | D27: BN | F27: 28 | G27: 77 | H27: LG | M27: =IF(TYPE3>"",TYPE3,"") ->  | O27: i201 | P27: =CMR!$E$27 -> 0 | Q27: =CMR!$E$27-0.5625 -> -0.5625 | R27: =$AK$144 -> 0 | S27: =$AK$143 -> 0 | T27: 1.25 | U27: 7.3125 | V27: 1.75 | W27: 4.406 | AC27: Top Bottom Rail | AD27: =(Frame_Width-3.25)/12 -> -0.2708333333 | AE27: 0.273 | AF27: -0.0739375 | AH27: 0901 | AI27: Length | AJ27: Weight/ft | AK27: Weight | AP27: 0 | AQ27: =IF(AND(AP27=10,$AN$4=20),"Dbl."&AP27&"B",0) ->  | AU27: 0 | AV27: =IF(AND(AU27=10,$AS$4=20),"Dbl."&AU27&"B",0) ->  | AZ27: =ModelNo -> Select Model | BA27: =VLOOKUP($AZ$27,$AZ$5:$BB$26,2,FALSE) ->  | BB27: =VLOOKUP($AZ$27,$AZ$5:$BB$26,3,FALSE) ->  | BD27: 26 | BL27: 4B | BM27: 4B | BN27: 4B | BO27: 4B | BP27: 6B | BQ27: 6B | BR27: 6B | BS27: 6B | BT27: 6B | BU27: 6B | BV27: 7B | BW27: 9B | BX27: 9B | BY27: 9B | BZ27: 11R | CA27: 11R | CB27: 11R | CC27: 12R | CD27: 12R | CE27: 12R | CF27: 12R | CG27: 12R | CH27: 13R | CI27: 13R | CJ27: 9R | CK27: 9R | CL27: 10R | CM27: 10R | CN27: 10R | CO27: 10R | CP27: 10R | CQ27: 10R | CR27: 11R | CS27: 11R | CT27: 12R | CU27: 12R | CV27: 12R | CW27: 12R | CX27: 12R | CY27: 12R | CZ27: 12R | DA27: 13R | DB27: 14R | DH27: =IF(AND(DG27=16,$DE$4>=20,$DE$4<=22),DG27&"E",0) ->  | DM27: =IF(AND(DL27=16,$DJ$4>=20,$DJ$4<=22),DL27&"E",0) -> 
B28: 29 | C28: 8/6 | D28: BN | F28: 29 | G28: 78 | H28: OR | M28: =IF(TYPE4>"",TYPE4,"") ->  | O28: 3100 | P28: =CMR!$E$91 -> 0 | Q28: =TRUNC(((CMR!$E$91-0.375)*32+0.5))/32 -> -0.34375 | R28: =$AK$121 -> 0 | S28: 0 | T28: 1.25 | U28: 3.42977 | V28: 2.42977 | W28: 4.86 | AC28: Top Stile | AD28: =(2*(CMR!$E$26-1.5625))/12 -> -0.2604166667 | AE28: 0.233 | AF28: -0.06067708333 | AH28: Top Top Rail | AI28: =(Frame_Width-3.4375)/12 -> -0.2864583333 | AJ28: 0.352 | AK28: =AI28*AJ28 -> -0.1008333333 | AP28: 0 | AQ28: =IF(AND(AP28=10,$AN$4>=21,$AN$4<=26),"Dbl."&AP28&"C",0) ->  | AU28: 0 | AV28: =IF(AND(AU28=10,$AS$4>=21,$AS$4<=26),"Dbl."&AU28&"C",0) ->  | BD28: 27 | BR28: 6B | BS28: 6B | BT28: 6B | BU28: 7B | BV28: 7B | BW28: 9B | BX28: 10B | BY28: 10B | BZ28: 11R | CA28: 11R | CB28: 12R | CC28: 12R | CD28: 12R | CE28: 12R | CF28: 12R | CG28: 12R | CH28: 13R | CI28: 13R | CJ28: 9R | CK28: 10R | CL28: 10R | CM28: 10R | CN28: 10R | CO28: 11R | CP28: 11R | CQ28: 11R | CR28: 12R | CS28: 12R | CT28: 12R | CU28: 12R | CV28: 12R | CW28: 12R | CX28: 12R | CY28: 13R | CZ28: 13R | DA28: 14R | DB28: 14R | DH28: =IF(AND(DG28=16,$DE$4>=23,$DE$4<=24),DG28&"F",0) ->  | DM28: =IF(AND(DL28=16,$DJ$4>=23,$DJ$4<=24),DL28&"F",0) -> 
B29: 30 | C29: 8/8 | D29: RD | F29: 30 | G29: 78 | H29: OR | L29: 1 | M29: =VLOOKUP(TYPE,L25:M26,2,FALSE) ->  | O29: R601 | P29: =CMR!$L$75 -> 0 | Q29: =CMR!$L$75-0.65625 -> -0.65625 | R29: =$AK$73 -> 0 | S29: =$AK$72 -> 0 | W29: 5.9375 | AC29: Top Rail Reinf. | AD29: =(TRUNC(((Frame_Width-3.25)-6)/2)*2)/12 -> -0.6666666667 | AE29: 0.299 | AF29: -0.1993333333 | AH29: Top Bottom Rail | AI29: =(Frame_Width-3.4375)/12 -> -0.2864583333 | AJ29: 0.344 | AK29: -0.09854166667 | AP29: 0 | AQ29: =IF(AND(AP29=10,$AN$4>=27,$AN$4<=32),"Dbl."&AP29&"D",0) ->  | AU29: 0 | AV29: =IF(AND(AU29=10,$AS$4>=27,$AS$4<=32),"Dbl."&AU29&"D",0) ->  | BD29: 28 | BR29: 6B | BS29: 6B | BT29: 7B | BU29: 8B | BV29: 8B | BW29: 9B | BX29: 10B | BY29: 10B | BZ29: 12R | CA29: 12R | CB29: 12R | CC29: 12R | CD29: 12R | CE29: 12R | CF29: 12R | CG29: 13R | CH29: 13R | CI29: 13R | CJ29: 10R | CK29: 10R | CL29: 11R | CM29: 11R | CN29: 11R | CO29: 11R | CP29: 12R | CQ29: 12R | CR29: 12R | CS29: 12R | CT29: 13R | CU29: 13R | CV29: 13R | CW29: 13R | CX29: 13R | CY29: 13R | CZ29: 14R | DA29: 14R | DB29: 15R | DH29: =IF(AND(DG29=16,$DE$4>=25,$DE$4<=27),DG29&"G",0) ->  | DM29: =IF(AND(DL29=16,$DJ$4>=25,$DJ$4<=27),DL29&"G",0) -> 
B30: 31 | C30: 8/8 | D30: RD | F30: 31 | G30: 88 | H30: WT | O30: 8001 | P30: =CMR!$L$75 -> 0 | Q30: =INT((CMR!$L$75-0.811-0.0625)*32+0.5)/32 -> -0.875 | R30: =$AK$73 -> 0 | S30: =$AK$72 -> 0 | W30: 5.9375 | AC30: Top Stile Reinf | AD30: =IF(CMR!$E$31>26.6875,((TRUNC((CMR!$E$26-9.5)/2)*2)/12)*2,0) -> 0 | AE30: 0.299 | AF30: 0 | AH30: Top Stile | AI30: =(2*(CMR!$E$74-0.8125))/12 -> -0.1354166667 | AJ30: 0.218 | AK30: -0.02952083333 | AP30: 0 | AQ30: =IF(AND(AP30=10,$AN$4>=33,$AN$4<=38),"Dbl."&AP30&"E",0) ->  | AU30: 0 | AV30: =IF(AND(AU30=10,$AS$4>=33,$AS$4<=38),"Dbl."&AU30&"E",0) ->  | BD30: 29 | BT30: 4H | BU30: 4H | BV30: 8B | BW30: 10B | BX30: 10B | BY30: 10B | BZ30: 12R | CA30: 12R | CB30: 13R | CC30: 13R | CD30: 13R | CE30: 13R | CF30: 13R | CG30: 13R | CH30: 13R | CI30: 13R | CJ30: 10R | CK30: 11R | CL30: 11R | CM30: 11R | CN30: 11R | CO30: 12R | CP30: 12R | CQ30: 12R | CR30: 12R | CS30: 13R | CT30: 13R | CU30: 13R | CV30: 13R | CW30: 13R | CX30: 13R | CY30: 14R | CZ30: 14R | DA30: 15R | DB30: 16R | DG30: =IF(AND($DF$4<=18,$DF$4>16),18,0) ->  | DH30: =IF(AND(DG30=18,$DE$4>=4,$DE$4<=9),DG30&"A",0) ->  | DL30: =IF(AND($DK$4<=18,$DK$4>16),18,0) ->  | DM30: =IF(AND(DL30=18,$DJ$4>=4,$DJ$4<=9),DL30&"A",0) -> 
B31: 32 | C31: 8/8 | D31: RD | F31: 32 | G31: 88 | H31: WT | M31: Opening | O31: S140 | P31: =CDIMS140 ->  | Q31: =Data!$D$993 -> 0 | R31: =IF(EXTSELECT=2,BSW03A0,IF(EXTSELECT=5,$AF$67,$AF$23)) -> 0 | S31: 0 | T31: =IF(OR(EXTSELECT=2,EXTSELECT=5),1.3125,1.03125) -> 1.03125 | U31: =IF(EXTSELECT=5,1.75,IF(EXTSELECT=2,2.40625,1.537)) -> 1.537 | V31: =IF(EXTSELECT=5,1.75,IF(EXTSELECT=2,1.875,1.537)) -> 1.537 | W31: =IF(EXTSELECT=2,4.406,IF(EXTSELECT=5,4.5,3.0625)) -> 3.0625 | AC31: Top Glass | AD31: =(CMR!$E$29*CMR!$E$31)/144 -> 0.1079101562 | AE31: =$L$12 -> 3.2 | AF31: 0.3453125 | AH31: Top Rail Reinf. | AI31: =(ROUND(Frame_Width-13,2))/12 -> -1.083333333 | AJ31: 0.146 | AK31: -0.1581666667 | AP31: =IF(AND($AO$4<=12,$AO$4>10),12,0) -> 0 | AQ31: =IF(AND(AP31=12,$AN$4>=3,$AN$4<=7),AP31&"A",0) ->  | AU31: =IF(AND($AT$4<=12,$AT$4>10),12,0) -> 0 | AV31: =IF(AND(AU31=12,$AS$4>=3,$AS$4<=7),AU31&"A",0) ->  | BD31: 30 | BT31: 4H | BU31: 4H | BV31: 4H | BW31: 4H | BX31: 5H | BY31: 5H | BZ31: 5H | CA31: 5H | CB31: 5H | CC31: 5H | CD31: 6H | CE31: 6H | CF31: 6H | CG31: 6H | CH31: 7H | CI31: 7H | CJ31: 10R | CK31: 11R | CL31: 11R | CM31: 12R | CN31: 12R | CO31: 13R | CP31: 13R | CQ31: 13R | CR31: 13R | CS31: 14R | CT31: 14R | CU31: 14R | CV31: 14R | CW31: 14R | CX31: 14R | CY31: 14R | CZ31: 15R | DA31: 15R | DB31: 17R | DH31: =IF(AND(DG31=18,$DE$4>=10,$DE$4<=13),DG31&"B",0) ->  | DM31: =IF(AND(DL31=18,$DJ$4>=10,$DJ$4<=13),DL31&"B",0) -> 
B32: 33 | C32: 8/8 | D32: RD | F32: 33 | G32: 89 | H32: NAT | L32: 1 | M32: Exact Size | O32: S144 | Q32: =Data!$D$993 -> 0 | R32: 0 | S32: 0 | T32: 1.03125 | U32: 1.537 | V32: 1.537 | W32: 3.0625 | AC32: Top Spacer | AD32: =((CMR!$E$29*2)+(CMR!$E$31*2))/12 -> -1.34375 | AE32: 0.0536 | AF32: -0.072025 | AH32: Top Stile Reinf | AJ32: 0.146 | AK32: 0 | AP32: 0 | AQ32: =IF(AND(AP32=12,$AN$4>=8,$AN$4<=10),AP32&"B",0) ->  | AU32: 0 | AV32: =IF(AND(AU32=12,$AS$4>=8,$AS$4<=10),AU32&"B",0) ->  | BD32: 31 | BT32: 4H | BU32: 4H | BV32: 4H | BW32: 5H | BX32: 5H | BY32: 5H | BZ32: 6H | CA32: 6H | CB32: 6H | CC32: 6H | CD32: 6H | CE32: 6H | CF32: 7H | CG32: 7H | CH32: 7H | CI32: 7H | CJ32: 8H | CK32: 8H | CL32: 9H | CM32: 9H | CN32: 9H | CO32: 9H | CP32: 10H | CQ32: 10H | CR32: 10H | CS32: 10H | CT32: 11H | CU32: 11H | CV32: 11H | CW32: 11H | CX32: 12H | CY32: 12H | CZ32: 12H | DA32: 12H | DB32: 12H | DH32: =IF(AND(DG32=18,$DE$4>=14,$DE$4<=18),DG32&"C",0) ->  | DM32: =IF(AND(DL32=18,$DJ$4>=14,$DJ$4<=18),DL32&"C",0) -> 
B33: 34 | C33: 9/9 | D33: PU | F33: 34 | G33: 89 | H33: NAT | L33: 2 | M33: Rough Opening | O33: S146 | Q33: =Data!$D$993 -> 0 | R33: 0 | S33: 0 | T33: 1.03125 | U33: 1.537 | V33: 1.537 | W33: 3.0625 | AC33: Top Hardware | AD33: 1 | AE33: 0.2 | AF33: 0.2 | AH33: Top Glass | AI33: =(CMR!$E$77*CMR!$E$79)/144 -> 0.1387532552 | AJ33: =$L$12 -> 3.2 | AK33: 0.4440104167 | AP33: 0 | AQ33: =IF(AND(AP33=12,$AN$4>=11,$AN$4<=16),AP33&"C",0) ->  | AU33: 0 | AV33: =IF(AND(AU33=12,$AS$4>=11,$AS$4<=16),AU33&"C",0) ->  | BD33: 32 | BT33: 4H | BU33: 4H | BV33: 4H | BW33: 5H | BX33: 5H | BY33: 5H | BZ33: 6H | CA33: 6H | CB33: 6H | CC33: 6H | CD33: 6H | CE33: 6H | CF33: 7H | CG33: 7H | CH33: 7H | CI33: 7H | CJ33: 8H | CK33: 8H | CL33: 9H | CM33: 9H | CN33: 9H | CO33: 9H | CP33: 10H | CQ33: 10H | CR33: 10H | CS33: 10H | CT33: 11H | CU33: 11H | CV33: 11H | CW33: 11H | CX33: 12H | CY33: 12H | CZ33: 12H | DA33: 12H | DB33: 12H | DH33: =IF(AND(DG33=18,$DE$4>=19,$DE$4<=21),DG33&"D",0) ->  | DM33: =IF(AND(DL33=18,$DJ$4>=19,$DJ$4<=21),DL33&"D",0) -> 
B34: 35 | C34: 9/9 | D34: PU | F34: 35 | G34: 99 | H34: PU | L34: 1 | M34: =VLOOKUP(RO,L32:M33,2,FALSE) -> Exact Size | O34: S140 (HP) | Q34: =Data!$D$993 -> 0 | R34: 0 | S34: 0 | T34: 1.03125 | U34: 1.537 | V34: 1.537 | W34: 3.0625 | AC34: Top Bead | AD34: =(((Frame_Width-4.3125)*2)+((CMR!$E$26-2.625)*2))/12 -> -1.15625 | AE34: 0.028 | AF34: -0.032375 | AH34: Top Spacer | AI34: =((CMR!$E$77*2)+(CMR!$E$79*2))/12 -> -1.541666667 | AJ34: 0.0536 | AK34: -0.08263333333 | AP34: 0 | AQ34: =IF(AND(AP34=12,$AN$4>=17,$AN$4<=18),AP34&"D",0) ->  | AU34: 0 | AV34: =IF(AND(AU34=12,$AS$4>=17,$AS$4<=18),AU34&"D",0) ->  | BD34: 33 | BT34: 5H | BU34: 5H | BV34: 5H | BW34: 5H | BX34: 6H | BY34: 6H | BZ34: 6H | CA34: 6H | CB34: 6H | CC34: 6H | CD34: 7H | CE34: 7H | CF34: 7H | CG34: 7H | CH34: 8H | CI34: 8H | CJ34: 9H | CK34: 9H | CL34: 10H | CM34: 10H | CN34: 10H | CO34: 10H | CP34: 11H | CQ34: 11H | CR34: 11H | CS34: 11H | CT34: 12H | CU34: 12H | CV34: 12H | CW34: 12H | CX34: 13H | CY34: 13H | CZ34: 13H | DA34: 13H | DB34: 13H | DH34: =IF(AND(DG34=18,$DE$4>=22,$DE$4<=24),DG34&"E",0) ->  | DM34: =IF(AND(DL34=18,$DJ$4>=22,$DJ$4<=24),DL34&"E",0) -> 
B35: 36 | C35: 9/9 | D35: PU | F35: 36 | G35: 99 | H35: PU | O35: S144 (HP) | Q35: =Data!$D$993 -> 0 | R35: 0 | S35: 0 | T35: 1.03125 | U35: 1.537 | V35: 1.537 | W35: 3.0625 | AC35: Bottom Top Rail | AD35: =(Frame_Width-2.25)/12 -> -0.1875 | AE35: 0.246 | AF35: =AD35*AE35 -> -0.046125 | AH35: Top Hardware | AI35: 1 | AJ35: 0.24 | AK35: 0.24 | AP35: 0 | AQ35: =IF(AND(AP35=12,$AN$4>=19,$AN$4<=21),AP35&"E",0) ->  | AU35: 0 | AV35: =IF(AND(AU35=12,$AS$4>=19,$AS$4<=21),AU35&"E",0) ->  | BD35: 34 | BT35: 5H | BU35: 5H | BV35: 5H | BW35: 6H | BX35: 6H | BY35: 6H | BZ35: 6H | CA35: 6H | CB35: 6H | CC35: 6H | CD35: 7H | CE35: 7H | CF35: 7H | CG35: 7H | CH35: 8H | CI35: 8H | CJ35: 9H | CK35: 9H | CL35: 10H | CM35: 10H | CN35: 10H | CO35: 10H | CP35: 11H | CQ35: 11H | CR35: 11H | CS35: 11H | CT35: 12H | CU35: 12H | CV35: 12H | CW35: 12H | CX35: 13H | CY35: 13H | CZ35: 13H | DA35: 13H | DB35: 14H | DH35: =IF(AND(DG35=18,$DE$4>=25,$DE$4<=26),DG35&"F",0) ->  | DM35: =IF(AND(DL35=18,$DJ$4>=25,$DJ$4<=26),DL35&"F",0) -> 
B36: 37 | C36: 9/9 | D36: PU | F36: 37 | G36: 766 | H36: BU | L36: =IF(OR(ModelNo="0100",ModelNo="01HP",ModelNo="0102",ModelNo="0103",ModelNo="0104",ModelNo="0109",ModelNo="0151",ModelNo="0152",ModelNo="0153",ModelNo="0154",ModelNo="0155",ModelNo="0170",ModelNo="0171",ModelNo="0172",ModelNo="0173",ModelNo="S174",ModelNo="S175",ModelNo="0179",ModelNo="0301"),1,0) -> 0 | M36: Screen | O36: S146 (HP) | Q36: =Data!$D$993 -> 0 | R36: 0 | S36: 0 | T36: 1.03125 | U36: 1.537 | V36: 1.537 | W36: 3.0625 | AC36: Bottom Bottom Rail | AD36: =(Frame_Width-2.25)/12 -> -0.1875 | AE36: 0.257 | AF36: -0.0481875 | AH36: Top Handle Bead | AI36: =(Frame_Width-5.9375)/12 -> -0.4947916667 | AJ36: 0.078 | AK36: -0.03859375 | AP36: 0 | AQ36: =IF(AND(AP36=12,$AN$4>=22,$AN$4<=32),"Dbl."&AP36&"C",0) ->  | AU36: 0 | AV36: =IF(AND(AU36=12,$AS$4>=22,$AS$4<=32),"Dbl."&AU36&"C",0) ->  | BD36: 35 | BT36: 5H | BU36: 5H | BV36: 5H | BW36: 6H | BX36: 6H | BY36: 6H | BZ36: 7H | CA36: 7H | CB36: 7H | CC36: 7H | CD36: 7H | CE36: 7H | CF36: 8H | CG36: 8H | CH36: 9H | CI36: 9H | CJ36: 10H | CK36: 10H | CL36: 10H | CM36: 10H | CN36: 11H | CO36: 11H | CP36: 11H | CQ36: 11H | CR36: 12H | CS36: 12H | CT36: 13H | CU36: 13H | CV36: 13H | CW36: 13H | CX36: 14H | CY36: 14H | CZ36: 14H | DA36: 14H | DB36: 15H | DH36: =IF(AND(DG36=18,$DE$4>=27,$DE$4<=29),DG36&"G",0) ->  | DM36: =IF(AND(DL36=18,$DJ$4>=27,$DJ$4<=29),DL36&"G",0) -> 
B37: 38 | C37: 10/10 | D37: PK | F37: 38 | G37: 766 | H37: BU | L37: 1 | M37: =IF(SCREEN1>"",SCREEN1,"") ->  | O37: V100 | P37: =CMR!$L$100 -> 0 | Q37: =TRUNC(((CMR!$L$100-0.844)*32+0.5))/32 -> -0.8125 | R37: =AF157 -> 0 | S37: =AF156 -> 0 | U37: 1 | V37: 2 | W37: 4.625 | AC37: Bottom Stile | AD37: =(2*(CMR!$E$27-0.5625))/12 -> -0.09375 | AE37: 0.233 | AF37: -0.02184375 | AH37: Top Bead | AI37: =((Frame_Width-5.9375)+((CMR!$E$74-3.0625)*2))/12 -> -1.005208333 | AJ37: 0.078 | AK37: -0.07840625 | AO37: =IF(AND(AP37>0,AQ37>0),AP37,0) ->  | AP37: 0 | AQ37: =IF(AND(AP37=12,$AN$4>=33,$AN$4<=36),"Dbl."&AP37&"D",0) ->  | AU37: 0 | AV37: =IF(AND(AU37=12,$AS$4>=33,$AS$4<=36),"Dbl."&AU37&"D",0) ->  | BD37: 36 | BT37: 5H | BU37: 5H | BV37: 5H | BW37: 6H | BX37: 6H | BY37: 6H | BZ37: 7H | CA37: 7H | CB37: 7H | CC37: 7H | CD37: 7H | CE37: 7H | CF37: 8H | CG37: 8H | CH37: 9H | CI37: 9H | CJ37: 10H | CK37: 10H | CL37: 10H | CM37: 10H | CN37: 11H | CO37: 11H | CP37: 11H | CQ37: 11H | CR37: 12H | CS37: 12H | CT37: 13H | CU37: 13H | CV37: 13H | CW37: 13H | CX37: 14H | CY37: 14H | CZ37: 14H | DA37: 14H | DB37: 15H | DH37: =IF(AND(DG37=18,$DE$4>=30,$DE$4<=32),DG37&"H",0) ->  | DM37: =IF(AND(DL37=18,$DJ$4>=30,$DJ$4<=32),DL37&"H",0) -> 
B38: 39 | C38: 10/10 | D38: PK | F38: 39 | G38: 866 | H38: YW | L38: 2 | M38: =IF(SCREEN2>"",SCREEN2,"") ->  | O38: V101 | P38: =CMR!$L$116 -> 0 | Q38: =TRUNC(((CMR!$L$116-0.3125)*32+0.5))/32 -> -0.28125 | R38: =AF179 -> 0 | S38: =AF178 -> 0 | U38: 1 | V38: 2 | W38: 4.625 | AC38: Bottom Rail Reinf. | AD38: =(TRUNC(((Frame_Width-2.25)-6)/2)*2)/12 -> -0.6666666667 | AE38: 0.37 | AF38: -0.2466666667 | AH38: Bottom Top Rail | AI38: =(Frame_Width-3)/12 -> -0.25 | AJ38: 0.429 | AK38: -0.10725 | AP38: 0 | AQ38: =IF(AND(AP38=12,$AN$4>=37,$AN$4<=42),"Dbl."&AP38&"E",0) ->  | AU38: 0 | AV38: =IF(AND(AU38=12,$AS$4>=37,$AS$4<=42),"Dbl."&AU38&"E",0) ->  | BD38: 37 | BT38: 6H | BU38: 6H | BV38: 6H | BW38: 7H | BX38: 7H | BY38: 7H | BZ38: 7H | CA38: 7H | CB38: 7H | CC38: 7H | CD38: 8H | CE38: 8H | CF38: 9H | CG38: 9H | CH38: 10H | CI38: 10H | CJ38: 11H | CK38: 11H | CL38: 11H | CM38: 11H | CN38: 12H | CO38: 12H | CP38: 12H | CQ38: 12H | CR38: 13H | CS38: 13H | CT38: 14H | CU38: 14H | CV38: 14H | CW38: 14H | CX38: 15H | CY38: 15H | CZ38: 15H | DA38: 15H | DB38: 16H | DG38: =IF(AND($DF$4<=20,$DF$4>18),20,0) ->  | DH38: =IF(AND(DG38=20,$DE$4>=5,$DE$4<=10),DG38&"A",0) ->  | DL38: =IF(AND($DK$4<=20,$DK$4>18),20,0) ->  | DM38: =IF(AND(DL38=20,$DJ$4>=5,$DJ$4<=10),DL38&"A",0) -> 
B39: 40 | C39: 10/10 | D39: PK | F39: 40 | G39: 866 | H39: YW | L39: 3 | M39: =IF(SCREEN3>"",SCREEN3,"") ->  | O39: V200 | P39: =CMR!$L$125 -> 0 | Q39: =TRUNC(((CMR!$L$125-0.8125)*32+0.5))/32-0.0625 -> -0.84375 | R39: =AK167 -> 0 | S39: =AK166 -> 0 | U39: 1 | V39: 1.818 | W39: 4.625 | AC39: Bottom Stile Reinf. | AD39: =IF(CMR!$E$32>27.6875,((TRUNC((CMR!$E$27-4.5)/2)*2)/12)*2,0) -> 0 | AE39: 0.299 | AF39: 0 | AH39: Bottom Bottom Rail | AI39: =(Frame_Width-3)/12 -> -0.25 | AJ39: 0.429 | AK39: -0.10725 | AP39: =IF(AND($AO$4<=14,$AO$4>12),14,0) -> 0 | AQ39: =IF(AND(AP39=14,$AN$4>=3,$AN$4<=7),AP39&"A",0) ->  | AU39: =IF(AND($AT$4<=14,$AT$4>12),14,0) -> 0 | AV39: =IF(AND(AU39=14,$AS$4>=3,$AS$4<=7),AU39&"A",0) ->  | BD39: 38 | BT39: 6H | BU39: 6H | BV39: 6H | BW39: 7H | BX39: 7H | BY39: 7H | BZ39: 7H | CA39: 7H | CB39: 7H | CC39: 7H | CD39: 8H | CE39: 8H | CF39: 9H | CG39: 9H | CH39: 10H | CI39: 10H | CJ39: 11H | CK39: 11H | CL39: 11H | CM39: 11H | CN39: 12H | CO39: 12H | CP39: 12H | CQ39: 12H | CR39: 13H | CS39: 13H | CT39: 14H | CU39: 14H | CV39: 14H | CW39: 14H | CX39: 15H | CY39: 15H | CZ39: 16H | DA39: 16H | DB39: 17H | DH39: =IF(AND(DG39=20,$DE$4>=11,$DE$4<=14),DG39&"B",0) ->  | DM39: =IF(AND(DL39=20,$DJ$4>=11,$DJ$4<=14),DL39&"B",0) -> 
B40: 41 | C40: 10/10 | D40: PK | F40: 41 | G40: 777 | H40: GN | L40: 1 | M40: =IF(Screen_Type=3,"L",IF(Screen_Type=2,"F","H")) -> H | O40: P601 | P40: =CMR!$L$91 -> 0 | Q40: =CMR!$L$91-1.0625 -> -1.0625 | R40: =$AK$97 -> 0 | S40: =$AK$96 -> 0 | W40: 5.9375 | AC40: Bottom Glass | AD40: =(CMR!$E$30*CMR!$E$32)/144 -> 0.05886501736 | AE40: =$L$12 -> 3.2 | AF40: 0.1883680556 | AH40: Bottom Stile | AI40: =(2*(CMR!$E$75-0.8125))/12 -> -0.1354166667 | AJ40: 0.233 | AK40: -0.03155208333 | AP40: 0 | AQ40: =IF(AND(AP40=14,$AN$4>=8,$AN$4<=10),AP40&"B",0) ->  | AU40: 0 | AV40: =IF(AND(AU40=14,$AS$4>=8,$AS$4<=10),AU40&"B",0) ->  | BD40: 39 | BT40: 6H | BU40: 6H | BV40: 7H | BW40: 7H | BX40: 7H | BY40: 7H | BZ40: 7H | CA40: 7H | CB40: 8H | CC40: 8H | CD40: 8H | CE40: 8H | CF40: 9H | CG40: 9H | CH40: 10H | CI40: 10H | CJ40: 11H | CK40: 11H | CL40: 12H | CM40: 12H | CN40: 13H | CO40: 13H | CP40: 13H | CQ40: 13H | CR40: 14H | CS40: 14H | CT40: 15H | CU40: 15H | CV40: 15H | CW40: 15H | CX40: 16H | CY40: 16H | CZ40: 17H | DA40: 17H | DB40: 17H | DH40: =IF(AND(DG40=20,$DE$4>=15,$DE$4<=18),DG40&"C",0) ->  | DM40: =IF(AND(DL40=20,$DJ$4>=15,$DJ$4<=18),DL40&"C",0) -> 
B41: 42 | C41: 6/8/8 | D41: GN | F41: 42 | G41: 777 | H41: GN | O41: 9001 | P41: =CMR!$L$91 -> 0 | Q41: =CMR!$L$91-1.0625 -> -1.0625 | R41: =$AK$97 -> 0 | S41: =$AK$96 -> 0 | W41: 5.9375 | AC41: Bottom Spacer | AD41: =((CMR!$E$30*2)+(CMR!$E$32*2))/12 -> -1.010416667 | AE41: 0.0536 | AF41: -0.05415833333 | AH41: Bottom Rail Reinf. | AI41: =(ROUND(Frame_Width-13,2))/12 -> -1.083333333 | AJ41: 0.146 | AK41: -0.1581666667 | AP41: 0 | AQ41: =IF(AND(AP41=14,$AN$4>=11,$AN$4<=16),AP41&"C",0) ->  | AU41: 0 | AV41: =IF(AND(AU41=14,$AS$4>=11,$AS$4<=16),AU41&"C",0) ->  | BD41: 40 | BT41: 6H | BU41: 7H | BV41: 7H | BW41: 7H | BX41: 7H | BY41: 7H | BZ41: 7H | CA41: 7H | CB41: 8H | CC41: 8H | CD41: 8H | CE41: 8H | CF41: 9H | CG41: 9H | CH41: 10H | CI41: 10H | CJ41: 11H | CK41: 11H | CL41: 12H | CM41: 12H | CN41: 13H | CO41: 13H | CP41: 13H | CQ41: 13H | CR41: 14H | CS41: 14H | CT41: 15H | CU41: 15H | CV41: 15H | CW41: 15H | CX41: 16H | CY41: 16H | CZ41: 17H | DA41: 17H | DB41: 17H | DH41: =IF(AND(DG41=20,$DE$4>=19,$DE$4<=22),DG41&"D",0) ->  | DM41: =IF(AND(DL41=20,$DJ$4>=19,$DJ$4<=22),DL41&"D",0) -> 
B42: 43 | C42: 6/8/8 | D42: GN | F42: 43 | G42: 877 | H42: LG | O42: 3001 | P42: =CMR!$E$117 -> 0 | Q42: =CMR!$E$117-0.625 -> -0.625 | R42: =$AK$189 -> 0 | S42: =$AK$188 -> 0 | T42: 1.3125 | U42: 7.875 | V42: 1.875 | W42: 5.25 | AC42: Bottom Hardware | AD42: 1 | AE42: 0.36 | AF42: 0.36 | AH42: Bottom Stile Reinf. | AJ42: 0.146 | AK42: 0 | AP42: 0 | AQ42: =IF(AND(AP42=14,$AN$4>=17,$AN$4<=19),AP42&"D",0) ->  | AU42: 0 | AV42: =IF(AND(AU42=14,$AS$4>=17,$AS$4<=19),AU42&"D",0) ->  | DH42: =IF(AND(DG42=20,$DE$4>=23,$DE$4<=26),DG42&"E",0) ->  | DM42: =IF(AND(DL42=20,$DJ$4>=23,$DJ$4<=26),DL42&"E",0) -> 
B43: 44 | C43: 6/8/8 | D43: GN | F43: 44 | G43: 877 | H43: LG | AC43: Bottom Bead | AD43: =(((Frame_Width-3.3125)*2)+((CMR!$E$27-1.625)*2))/12 -> -0.8229166667 | AE43: 0.028 | AF43: -0.02304166667 | AH43: Bottom Glass | AI43: =(CMR!$E$78*CMR!$E$80)/144 -> 0.1387532552 | AJ43: =$L$12 -> 3.2 | AK43: 0.4440104167 | AP43: 0 | AQ43: =IF(AND(AP43=14,$AN$4>=20,$AN$4<=22),AP43&"E",0) ->  | AU43: 0 | AV43: =IF(AND(AU43=14,$AS$4>=20,$AS$4<=22),AU43&"E",0) ->  | DH43: =IF(AND(DG43=20,$DE$4>=27,$DE$4<=30),DG43&"F",0) ->  | DM43: =IF(AND(DL43=20,$DJ$4>=27,$DJ$4<=30),DL43&"F",0) -> 
B44: 45 | C44: 6/8/8 | D44: GN | F44: 45 | G44: 878 | H44: OR | AE44: Top Sash | AF44: =IF(OR(ModelNo="0201",ModelNo="L201"),(TRUNC((SUM(AF26:AF34))))+5,0) -> 0 | AH44: Bottom Spacer | AI44: =((CMR!$E$78*2)+(CMR!$E$80*2))/12 -> -1.541666667 | AJ44: 0.0536 | AK44: -0.08263333333 | AP44: 0 | AQ44: =IF(AND(AP44=14,$AN$4>=23,$AN$4<=25),AP44&"F",0) ->  | AU44: 0 | AV44: =IF(AND(AU44=14,$AS$4>=23,$AS$4<=25),AU44&"F",0) ->  | DH44: =IF(AND(DG44=20,$DE$4>=31,$DE$4<=34),DG44&"G",0) ->  | DM44: =IF(AND(DL44=20,$DJ$4>=31,$DJ$4<=34),DL44&"G",0) -> 
B45: 46 | C45: 8/8/8 | D45: OR | F45: 46 | G45: 878 | H45: OR | AE45: Bottom Sash | AF45: =IF(OR(ModelNo="0201",ModelNo="L201"),TRUNC((SUM(AF35:AF43))),0) -> 0 | AH45: Bottom Hardware | AI45: 1 | AJ45: 0.322 | AK45: 0.322 | AP45: 0 | AQ45: =IF(AND(AP45=14,$AN$4>=26,$AN$4<=28),AP45&"G",0) ->  | AU45: 0 | AV45: =IF(AND(AU45=14,$AS$4>=26,$AS$4<=28),AU45&"G",0) ->  | DG45: =IF(AND($DF$4<=22,$DF$4>20),22,0) ->  | DH45: =IF(AND(DG45=22,$DE$4>=5,$DE$4<=10),DG45&"A",0) ->  | DL45: =IF(AND($DK$4<=22,$DK$4>20),22,0) ->  | DM45: =IF(AND(DL45=22,$DJ$4>=5,$DJ$4<=10),DL45&"A",0) -> 
B46: 47 | C46: 8/8/8 | D46: OR | F46: 47 | G46: 888 | H46: WT | AH46: Bottom Keeper Bead | AI46: =(Frame_Width-5.9375)/12 -> -0.4947916667 | AJ46: 0.078 | AK46: -0.03859375 | AP46: 0 | AQ46: =IF(AND(AP46=14,$AN$4>=29,$AN$4<=31),AP46&"H",0) ->  | AU46: 0 | AV46: =IF(AND(AU46=14,$AS$4>=29,$AS$4<=31),AU46&"H",0) ->  | DH46: =IF(AND(DG46=22,$DE$4>=11,$DE$4<=16),DG46&"B",0) ->  | DM46: =IF(AND(DL46=22,$DJ$4>=11,$DJ$4<=16),DL46&"B",0) -> 
B47: 48 | C47: 8/8/8 | D47: OR | F47: 48 | G47: 888 | H47: WT | AC47: 02A0 | AD47: Length | AE47: Weight/ft | AF47: Weight | AH47: Bottom Bead | AI47: =((Frame_Width-5.9375)+((CMR!$E$75-3.0625)*2))/12 -> -1.005208333 | AJ47: 0.078 | AK47: -0.07840625 | AP47: 0 | AQ47: =IF(AND(AP47=14,$AN$4>=32,$AN$4<=34),AP47&"I",0) ->  | AU47: 0 | AV47: =IF(AND(AU47=14,$AS$4>=32,$AS$4<=34),AU47&"I",0) ->  | DH47: =IF(AND(DG47=22,$DE$4>=17,$DE$4<=21),DG47&"C",0) ->  | DM47: =IF(AND(DL47=22,$DJ$4>=17,$DJ$4<=21),DL47&"C",0) -> 
B48: 49 | C48: 8/8/8 | D48: OR | F48: 49 | G48: 889 | H48: BN | AC48: Top Top Rail | AD48: 0 | AE48: 0 | AF48: =AD48*AE48 -> 0 | AJ48: Top Sash | AK48: =IF(OR(ModelNo="0901",ModelNo="09A1",ModelNo="09B1",ModelNo="09L1"),(TRUNC((SUM(AK28:AK37))))+5,0) -> 0 | AP48: 0 | AQ48: =IF(AND(AP48=14,$AN$4>=35,$AN$4<=38),"Dbl."&AP48&"D",0) ->  | AU48: 0 | AV48: =IF(AND(AU48=14,$AS$4>=35,$AS$4<=38),"Dbl."&AU48&"D",0) ->  | DH48: =IF(AND(DG48=22,$DE$4>=22,$DE$4<=24),DG48&"D",0) ->  | DM48: =IF(AND(DL48=22,$DJ$4>=22,$DJ$4<=24),DL48&"D",0) -> 
B49: 50 | C49: 8/9/9 | D49: BK | F49: 50 | G49: 889 | H49: BN | AC49: Top Bottom Rail | AD49: 0 | AE49: 0 | AF49: 0 | AJ49: Bottom Sash | AK49: =IF(OR(ModelNo="0901",ModelNo="09A1",ModelNo="09B1",ModelNo="09L1"),TRUNC((SUM(AK38:AK47))),0) -> 0 | AP49: 0 | AQ49: =IF(AND(AP49=14,$AN$4>=39,$AN$4<=44),"Dbl."&AP49&"E",0) ->  | AU49: 0 | AV49: =IF(AND(AU49=14,$AS$4>=39,$AS$4<=44),"Dbl."&AU49&"E",0) ->  | DH49: =IF(AND(DG49=22,$DE$4>=25,$DE$4<=27),DG49&"E",0) ->  | DM49: =IF(AND(DL49=22,$DJ$4>=25,$DJ$4<=27),DL49&"E",0) -> 
B50: 51 | C50: 8/9/9 | D50: BK | F50: 51 | G50: 899 | H50: RD | AC50: Top Stile | AD50: 0 | AE50: 0 | AF50: 0 | AP50: 0 | AQ50: =IF(AND(AP50=14,$AN$4>=45,$AN$4<=50),"Dbl."&AP50&"F",0) ->  | AU50: 0 | AV50: =IF(AND(AU50=14,$AS$4>=45,$AS$4<=50),"Dbl."&AU50&"F",0) ->  | DH50: =IF(AND(DG50=22,$DE$4>=28,$DE$4<=30),DG50&"F",0) ->  | DM50: =IF(AND(DL50=22,$DJ$4>=28,$DJ$4<=30),DL50&"F",0) -> 
B51: 52 | C51: 8/9/9 | D51: BK | F51: 52 | G51: 899 | H51: RD | AC51: Top Rail Reinf. | AD51: 0 | AE51: 0 | AF51: 0 | AH51: 8001 | AI51: Length | AJ51: Weight/ft | AK51: Weight | AP51: 0 | AQ51: =IF(AND(AP51=14,$AN$4>=51,$AN$4<=56),"Dbl."&AP51&"G",0) ->  | AU51: 0 | AV51: =IF(AND(AU51=14,$AS$4>=51,$AS$4<=56),"Dbl."&AU51&"G",0) ->  | DH51: =IF(AND(DG51=22,$DE$4>=31,$DE$4<=34),DG51&"G",0) ->  | DM51: =IF(AND(DL51=22,$DJ$4>=31,$DJ$4<=34),DL51&"G",0) -> 
B52: 53 | C52: 8/9/9 | D52: BK | F52: 53 | G52: 999 | H52: NAT | AC52: Top Stile Reinf | AD52: 0 | AE52: 0 | AF52: 0 | AH52: Top Top Rail | AI52: =(Data!$D$842)/12 -> 0 | AJ52: 0.341 | AK52: =AI52*AJ52 -> 0 | AP52: 0 | AQ52: =IF(AND(AP52=14,$AN$4>=57,$AN$4<=62),"Dbl."&AP52&"H",0) ->  | AU52: 0 | AV52: =IF(AND(AU52=14,$AS$4>=57,$AS$4<=62),"Dbl."&AU52&"H",0) ->  | DH52: =IF(AND(DG52=22,$DE$4>=35,$DE$4<=37),DG52&"H",0) ->  | DM52: =IF(AND(DL52=22,$DJ$4>=35,$DJ$4<=37),DL52&"H",0) -> 
B53: 54 | C53: 9/9/10 | D53: PU | F53: 54 | G53: 999 | H53: NAT | AC53: Top Glass | AD53: 0 | AE53: 0 | AF53: 0 | AH53: Top Bottom Rail | AI53: =(Data!$D$842)/12 -> 0 | AJ53: 0.384 | AK53: 0 | AP53: 0 | AQ53: =IF(AND(AP53=14,$AN$4>=63,$AN$4<=68),"Dbl."&AP53&"I",0) ->  | AU53: 0 | AV53: =IF(AND(AU53=14,$AS$4>=63,$AS$4<=68),"Dbl."&AU53&"I",0) ->  | DG53: =IF(AND($DF$4<=24,$DF$4>22),24,0) ->  | DH53: =IF(AND(DG53=24,$DE$4>=6,$DE$4<=10),DG53&"A",0) ->  | DL53: =IF(AND($DK$4<=24,$DK$4>22),24,0) ->  | DM53: =IF(AND(DL53=24,$DJ$4>=6,$DJ$4<=10),DL53&"A",0) -> 
B54: 55 | C54: 9/9/10 | D54: PU | F54: 55 | G54: 6679 | H54: BU | AC54: Top Spacer | AD54: 0 | AE54: 0 | AF54: 0 | AH54: Top Stile | AI54: =(Data!$D$843*2)/12 -> 0 | AJ54: 0.311 | AK54: 0 | AP54: =IF(AND($AO$4<=16,$AO$4>14),16,0) -> 0 | AQ54: =IF(AND(AP54=16,$AN$4>=3,$AN$4<=7),AP54&"A",0) ->  | AU54: =IF(AND($AT$4<=16,$AT$4>14),16,0) -> 0 | AV54: =IF(AND(AU54=16,$AS$4>=3,$AS$4<=7),AU54&"A",0) ->  | DH54: =IF(AND(DG54=24,$DE$4>=11,$DE$4<=17),DG54&"B",0) ->  | DM54: =IF(AND(DL54=24,$DJ$4>=11,$DJ$4<=17),DL54&"B",0) -> 
B55: 56 | C55: 9/9/10 | D55: PU | F55: 56 | G55: 6679 | H55: BU | AC55: Top Hardware | AD55: 0 | AE55: 0 | AF55: 0 | AH55: Top Stile Reinf. | AI55: =IF(CMR!$L$79>26.75,TRUNC((CMR!$L$74-9.5)/2)*2,0) -> 0 | AJ55: 0 | AK55: 0 | AP55: 0 | AQ55: =IF(AND(AP55=16,$AN$4>=8,$AN$4<=10),AP55&"B",0) ->  | AU55: 0 | AV55: =IF(AND(AU55=16,$AS$4>=8,$AS$4<=10),AU55&"B",0) ->  | DH55: =IF(AND(DG55=24,$DE$4>=18,$DE$4<=22),DG55&"C",0) ->  | DM55: =IF(AND(DL55=24,$DJ$4>=18,$DJ$4<=22),DL55&"C",0) -> 
B56: 57 | C56: 9/9/10 | D56: PU | F56: 57 | G56: 6779 | H56: LG | AC56: Top Bead | AD56: 0 | AE56: 0 | AF56: 0 | AH56: Keeper Bead | AI56: =(INT((Data!$D$842-1.197)*32+0.5)/32)/12 -> -0.09895833333 | AJ56: 0.097 | AK56: -0.009598958333 | AP56: 0 | AQ56: =IF(AND(AP56=16,$AN$4>=11,$AN$4<=16),AP56&"C",0) ->  | AU56: 0 | AV56: =IF(AND(AU56=16,$AS$4>=11,$AS$4<=16),AU56&"C",0) ->  | DH56: =IF(AND(DG56=24,$DE$4>=23,$DE$4<=25),DG56&"D",0) ->  | DM56: =IF(AND(DL56=24,$DJ$4>=23,$DJ$4<=25),DL56&"D",0) -> 
B57: 58 | C57: 10/10/10 | D57: PK | F57: 58 | G57: 6779 | H57: LG | AC57: Bottom Top Rail | AD57: =(Frame_Width-2.25)/12 -> -0.1875 | AE57: 0.241 | AF57: =AD57*AE57 -> -0.0451875 | AH57: Top Glass | AI57: =(CMR!$L$77*CMR!$L$79)/144 -> 0.1357693142 | AJ57: =$L$12 -> 3.2 | AK57: 0.4344618056 | AP57: 0 | AQ57: =IF(AND(AP57=16,$AN$4>=17,$AN$4<=19),AP57&"D",0) ->  | AU57: 0 | AV57: =IF(AND(AU57=16,$AS$4>=17,$AS$4<=19),AU57&"D",0) ->  | DH57: =IF(AND(DG57=24,$DE$4>=26,$DE$4<=28),DG57&"E",0) ->  | DM57: =IF(AND(DL57=24,$DJ$4>=26,$DJ$4<=28),DL57&"E",0) -> 
B58: 59 | C58: 10/10/10 | D58: PK | F58: 59 | G58: 7779 | H58: WT | AC58: Bottom Bottom Rail | AD58: =(Frame_Width-2.25)/12 -> -0.1875 | AE58: 0.25 | AF58: -0.046875 | AH58: Top Spacer | AI58: =((CMR!$L$77*2)+(CMR!$L$79*2))/12 -> -1.520833333 | AJ58: 0.034 | AK58: -0.05170833333 | AP58: 0 | AQ58: =IF(AND(AP58=16,$AN$4>=20,$AN$4<=22),AP58&"E",0) ->  | AU58: 0 | AV58: =IF(AND(AU58=16,$AS$4>=20,$AS$4<=22),AU58&"E",0) ->  | DH58: =IF(AND(DG58=24,$DE$4>=29,$DE$4<=30),DG58&"F",0) ->  | DM58: =IF(AND(DL58=24,$DJ$4>=29,$DJ$4<=30),DL58&"F",0) -> 
B59: 60 | C59: 10/10/10 | D59: PK | F59: 60 | G59: 7779 | H59: WT | AC59: Bottom Stile | AD59: =((CMR!L27-0.75)*2)/12 -> -0.125 | AE59: 0.23 | AF59: -0.02875 | AH59: Top Hardware | AI59: 1 | AJ59: 0.2 | AK59: 0.2 | AP59: 0 | AQ59: =IF(AND(AP59=16,$AN$4>=23,$AN$4<=24),AP59&"F",0) ->  | AU59: 0 | AV59: =IF(AND(AU59=16,$AS$4>=23,$AS$4<=24),AU59&"F",0) ->  | DH59: =IF(AND(DG59=24,$DE$4>=31,$DE$4<=34),DG59&"G",0) ->  | DM59: =IF(AND(DL59=24,$DJ$4>=31,$DJ$4<=34),DL59&"G",0) -> 
B60: 61 | C60: 10/10/10 | D60: PK | F60: 61 | G60: 6799 | H60: OR | AC60: Bottom Rail Reinf. | AD60: =(TRUNC(((AD57*12)-6)/2)*2)/12 -> -0.6666666667 | AE60: 0.328 | AF60: -0.2186666667 | AH60: Top Handle Bead | AI60: =AI56 -> -0.09895833333 | AJ60: 0.097 | AK60: -0.009598958333 | AP60: 0 | AQ60: =IF(AND(AP60=16,$AN$4>=25,$AN$4<=28),AP60&"G",0) ->  | AU60: 0 | AV60: =IF(AND(AU60=16,$AS$4>=25,$AS$4<=28),AU60&"G",0) ->  | DH60: =IF(AND(DG60=24,$DE$4>=35,$DE$4<=37),DG60&"H",0) ->  | DM60: =IF(AND(DL60=24,$DJ$4>=35,$DJ$4<=37),DL60&"H",0) -> 
B61: 62 | C61: 8/8/8/8 | D61: BN | F61: 62 | G61: 6799 | H61: OR | AC61: Bottom Stile Reinf. | AD61: =IF(CMR!$L$32>=27.5,(((CMR!$L$32-4.5)/2)*2)/12,0) -> 0 | AE61: 0.238 | AF61: 0 | AH61: Top Vert. Bead | AI61: =(2*(INT((Data!$D$843-1.197)*32+0.5)/32))/12 -> -0.1979166667 | AJ61: 0.097 | AK61: -0.01919791667 | AP61: 0 | AQ61: =IF(AND(AP61=16,$AN$4>=29,$AN$4<=31),AP61&"H",0) ->  | AU61: 0 | AV61: =IF(AND(AU61=16,$AS$4>=29,$AS$4<=31),AU61&"H",0) ->  | DG61: =IF(AND($DF$4<=26,$DF$4>24),26,0) ->  | DH61: =IF(AND(DG61=26,$DE$4>=6,$DE$4<=11),DG61&"A",0) ->  | DL61: =IF(AND($DK$4<=26,$DK$4>24),26,0) ->  | DM61: =IF(AND(DL61=26,$DJ$4>=6,$DJ$4<=11),DL61&"A",0) -> 
B62: 63 | C62: 8/8/8/8 | D62: BN | F62: 63 | G62: 7799 | H62: BN | AC62: Bottom Glass | AD62: =(CMR!$L$30*CMR!$L$32)/144 -> 0.06391059028 | AE62: =$L$12 -> 3.2 | AF62: 0.2045138889 | AH62: Bottom Top Rail | AI62: =(Data!$D$844)/12 -> 0 | AJ62: 0.428 | AK62: 0 | AP62: 0 | AQ62: =IF(AND(AP62=16,$AN$4>=32,$AN$4<=34),AP62&"I",0) ->  | AU62: 0 | AV62: =IF(AND(AU62=16,$AS$4>=32,$AS$4<=34),AU62&"I",0) ->  | DH62: =IF(AND(DG62=26,$DE$4>=12,$DE$4<=17),DG62&"B",0) ->  | DM62: =IF(AND(DL62=26,$DJ$4>=12,$DJ$4<=17),DL62&"B",0) -> 
B63: 64 | C63: 8/8/8/8 | D63: BN | F63: 64 | G63: 7799 | H63: BN | AC63: Bottom Spacer | AD63: =((CMR!$L$30*2)+(CMR!$L$32*2))/12 -> -1.041666667 | AE63: 0.0536 | AF63: -0.05583333333 | AH63: Bottom Bottom Rail | AI63: =(Data!$D$844)/12 -> 0 | AJ63: 0.443 | AK63: 0 | AP63: 0 | AQ63: =IF(AND(AP63=16,$AN$4>=35,$AN$4<=36),"Dbl."&AP63&"D",0) ->  | AU63: 0 | AV63: =IF(AND(AU63=16,$AS$4>=35,$AS$4<=36),"Dbl."&AU63&"D",0) ->  | DH63: =IF(AND(DG63=26,$DE$4>=18,$DE$4<=22),DG63&"C",0) ->  | DM63: =IF(AND(DL63=26,$DJ$4>=18,$DJ$4<=22),DL63&"C",0) -> 
B64: 65 | C64: 8/8/8/8 | D64: BN | F64: 65 | G64: 7899 | H64: GN | AC64: Bottom Hardware | AD64: 1 | AE64: 0.36 | AF64: 0.36 | AH64: Bottom Stile | AI64: =(2*(Data!$D$845))/12 -> 0 | AJ64: 0.378 | AK64: 0 | AP64: 0 | AQ64: =IF(AND(AP64=16,$AN$4>=37,$AN$4<=44),"Dbl."&AP64&"E",0) ->  | AU64: 0 | AV64: =IF(AND(AU64=16,$AS$4>=37,$AS$4<=44),"Dbl."&AU64&"E",0) ->  | DH64: =IF(AND(DG64=26,$DE$4>=23,$DE$4<=26),DG64&"D",0) ->  | DM64: =IF(AND(DL64=26,$DJ$4>=23,$DJ$4<=26),DL64&"D",0) -> 
B65: 66 | C65: 8/8/9/9 | D65: RD | F65: 66 | G65: 7899 | H65: GN | AC65: Bottom Bead | AD65: =(((Frame_Width-3.3125)*2)+((CMR!$L$27-1.8125)*2))/12 -> -0.8541666667 | AE65: 0.028 | AF65: -0.02391666667 | AH65: Lock Rail Reinf. | AI65: =(INT((Data!$D$844-6)/2)*2)/12 -> -0.5 | AJ65: 0.3184 | AK65: -0.1592 | AP65: 0 | AQ65: =IF(AND(AP65=16,$AN$4>=45,$AN$4<=48),"Dbl."&AP65&"F",0) ->  | AU65: 0 | AV65: =IF(AND(AU65=16,$AS$4>=45,$AS$4<=48),"Dbl."&AU65&"F",0) ->  | DH65: =IF(AND(DG65=26,$DE$4>=27,$DE$4<=30),DG65&"E",0) ->  | DM65: =IF(AND(DL65=26,$DJ$4>=27,$DJ$4<=30),DL65&"E",0) -> 
B66: 67 | C66: 8/8/9/9 | D66: RD | F66: 67 | G66: 8899 | H66: RD | AE66: Top Sash | AF66: =IF(ModelNo="02A0",ROUND((SUM(AF48:AF56)),0),0) -> 0 | AH66: Bottom Stile Reinf. | AI66: =IF(CMR!$L$80>27.75,TRUNC((CMR!$L$75-4.5)/2)*2,0) -> 0 | AJ66: 0 | AK66: 0 | AP66: 0 | AQ66: =IF(AND(AP66=16,$AN$4>=49,$AN$4<=56),"Dbl."&AP66&"G",0) ->  | AU66: 0 | AV66: =IF(AND(AU66=16,$AS$4>=49,$AS$4<=56),"Dbl."&AU66&"G",0) ->  | DH66: =IF(AND(DG66=26,$DE$4>=31,$DE$4<=34),DG66&"F",0) ->  | DM66: =IF(AND(DL66=26,$DJ$4>=31,$DJ$4<=34),DL66&"F",0) -> 
B67: 68 | C67: 8/8/9/9 | D67: RD | F67: 68 | G67: 8899 | H67: RD | AE67: Bottom Sash | AF67: =IF(OR(ModelNo="02A0",ModelNo="S140",ModelNo="S144",ModelNo="S146",ModelNo="S140 (HP)",ModelNo="S144 (HP)",ModelNo="S146 (HP)"),TRUNC((SUM(AF57:AF65))),0) -> 0 | AH67: Bottom Glass | AI67: =(CMR!$L$78*CMR!$L$80)/144 -> 0.1357693142 | AJ67: =$L$12 -> 3.2 | AK67: 0.4344618056 | AP67: 0 | AQ67: =IF(AND(AP67=16,$AN$4>=57,$AN$4<=62),"Dbl."&AP67&"H",0) ->  | AU67: 0 | AV67: =IF(AND(AU67=16,$AS$4>=57,$AS$4<=62),"Dbl."&AU67&"H",0) ->  | DH67: =IF(AND(DG67=26,$DE$4>=35,$DE$4<=38),DG67&"G",0) ->  | DM67: =IF(AND(DL67=26,$DJ$4>=35,$DJ$4<=38),DL67&"G",0) -> 
B68: 69 | C68: 8/8/9/9 | D68: RD | F68: 69 | G68: 8999 | H68: YW | AH68: Bottom Spacer | AI68: =((CMR!$L$78*2)+(CMR!$L$80*2))/12 -> -1.520833333 | AJ68: 0.034 | AK68: -0.05170833333 | AP68: 0 | AQ68: =IF(AND(AP68=16,$AN$4>=63,$AN$4<=68),"Dbl."&AP68&"I",0) ->  | AU68: 0 | AV68: =IF(AND(AU68=16,$AS$4>=63,$AS$4<=68),"Dbl."&AU68&"I",0) ->  | DH68: =IF(AND(DG68=26,$DE$4>=39,$DE$4<=42),DG68&"H",0) ->  | DM68: =IF(AND(DL68=26,$DJ$4>=39,$DJ$4<=42),DL68&"H",0) -> 
B69: 70 | C69: 9/9/9/9 | D69: PU | F69: 70 | G69: 8999 | H69: YW | AC69: 0301 | AD69: Length | AE69: Weight/ft | AF69: Weight | AH69: Bottom Hardware | AI69: 1 | AJ69: 0.36 | AK69: 0.36 | AO69: =IF(AND(AP69>0,AQ69>0),AP69,0) ->  | AP69: =IF(AND($AO$4<=18,$AO$4>16),18,0) -> 0 | AQ69: =IF(AND(AP69=18,$AN$4>=4,$AN$4<=9),AP69&"A",0) ->  | AT69: =IF(AND(AU69>0,AV69>0),AU69,0) ->  | AU69: =IF(AND($AT$4<=18,$AT$4>16),18,0) -> 0 | AV69: =IF(AND(AU69=18,$AS$4>=4,$AS$4<=9),AU69&"A",0) ->  | DF69: =IF(AND(DG69>0,DH69>0),DG69,0) ->  | DG69: =IF(AND($DF$4<=28,$DF$4>26),28,0) ->  | DH69: =IF(AND(DG69=28,$DE$4>=7,$DE$4<=12),DG69&"A",0) ->  | DK69: =IF(AND(DL69>0,DM69>0),DL69,0) ->  | DL69: =IF(AND($DK$4<=28,$DK$4>26),28,0) ->  | DM69: =IF(AND(DL69=28,$DJ$4>=7,$DJ$4<=12),DL69&"A",0) -> 
B70: 71 | C70: 9/9/9/9 | D70: PU | F70: 71 | G70: 9999 | H70: PU | AC70: Top Top Rail | AD70: =(Frame_Width-3.25)/12 -> -0.2708333333 | AE70: 0.257 | AF70: =AD70*AE70 -> -0.06960416667 | AH70: Bott. Hor. Bead | AI70: =(2*(INT((Data!$D$844-2.197)*32+0.5)/32))/12 -> -0.3645833333 | AJ70: 0.097 | AK70: -0.03536458333 | AP70: 0 | AQ70: =IF(AND(AP70=18,$AN$4>=10,$AN$4<=13),AP70&"B",0) ->  | AU70: 0 | AV70: =IF(AND(AU70=18,$AS$4>=10,$AS$4<=13),AU70&"B",0) ->  | DH70: =IF(AND(DG70=28,$DE$4>=13,$DE$4<=18),DG70&"B",0) ->  | DM70: =IF(AND(DL70=28,$DJ$4>=13,$DJ$4<=18),DL70&"B",0) -> 
B71: 72 | C71: 9/9/9/9 | D71: PU | F71: 72 | G71: 9999 | H71: PU | AC71: Top Bottom Rail | AD71: =(Frame_Width-3.25)/12 -> -0.2708333333 | AE71: 0.273 | AF71: -0.0739375 | AH71: Bottom Vert. Bead | AI71: =(2*(INT((Data!$D$845-2.197)*32+0.5)/32))/12 -> -0.3645833333 | AJ71: 0.097 | AK71: -0.03536458333 | AP71: 0 | AQ71: =IF(AND(AP71=18,$AN$4>=14,$AN$4<=18),AP71&"C",0) ->  | AU71: 0 | AV71: =IF(AND(AU71=18,$AS$4>=14,$AS$4<=18),AU71&"C",0) ->  | DH71: =IF(AND(DG71=28,$DE$4>=19,$DE$4<=23),DG71&"C",0) ->  | DM71: =IF(AND(DL71=28,$DJ$4>=19,$DJ$4<=23),DL71&"C",0) -> 
B72: 73 | C72: 9/9/9/9 | D72: PU | AC72: Top Stile | AD72: =(2*(CMR!$E$42-1.625))/12 -> -0.2708333333 | AE72: 0.233 | AF72: -0.06310416667 | AJ72: Top Sash | AK72: =IF(OR(ModelNo="8001",ModelNo="R601"),(TRUNC((SUM(AK52:AK61))))+6.5,0) -> 0 | AP72: 0 | AQ72: =IF(AND(AP72=18,$AN$4>=19,$AN$4<=21),AP72&"D",0) ->  | AU72: 0 | AV72: =IF(AND(AU72=18,$AS$4>=19,$AS$4<=21),AU72&"D",0) ->  | DH72: =IF(AND(DG72=28,$DE$4>=24,$DE$4<=28),DG72&"D",0) ->  | DM72: =IF(AND(DL72=28,$DJ$4>=24,$DJ$4<=28),DL72&"D",0) -> 
B73: 74 | C73: 9/9/9/9 | D73: PU | AC73: Top Rail Reinf. | AD73: =(TRUNC(((Frame_Width-3.25)-6)/2)*2)/12 -> -0.6666666667 | AE73: 0.299 | AF73: -0.1993333333 | AJ73: Bottom Sash | AK73: =IF(OR(ModelNo="8001",ModelNo="R601"),TRUNC((SUM(AK62:AK71))),0) -> 0 | AP73: 0 | AQ73: =IF(AND(AP73=18,$AN$4>=22,$AN$4<=24),AP73&"E",0) ->  | AU73: 0 | AV73: =IF(AND(AU73=18,$AS$4>=22,$AS$4<=24),AU73&"E",0) ->  | DH73: =IF(AND(DG73=28,$DE$4>=29,$DE$4<=32),DG73&"E",0) ->  | DM73: =IF(AND(DL73=28,$DJ$4>=29,$DJ$4<=32),DL73&"E",0) -> 
F74: 4 | G74: 3 | H74: 1 | AC74: Top Stile Reinf | AD74: =IF(CMR!$E$47>26.6875,((TRUNC((CMR!$E$42-9.5)/2)*2)/12)*2,0) -> 0 | AE74: 0.299 | AF74: 0 | AP74: 0 | AQ74: =IF(AND(AP74=18,$AN$4>=25,$AN$4<=26),AP74&"F",0) ->  | AU74: 0 | AV74: =IF(AND(AU74=18,$AS$4>=25,$AS$4<=26),AU74&"F",0) ->  | DH74: =IF(AND(DG74=28,$DE$4>=33,$DE$4<=36),DG74&"F",0) ->  | DM74: =IF(AND(DL74=28,$DJ$4>=33,$DJ$4<=36),DL74&"F",0) -> 
F75: =F74+1 -> 5 | G75: 3 | H75: 1 | AC75: Top Glass | AD75: =(CMR!$E$45*CMR!$E$47)/144 -> 0.05126953125 | AE75: =$L$12 -> 3.2 | AF75: 0.1640625 | AH75: 9001 | AI75: Length | AJ75: Weight/ft | AK75: Weight | AP75: 0 | AQ75: =IF(AND(AP75=18,$AN$4>=27,$AN$4<=29),AP75&"G",0) ->  | AU75: 0 | AV75: =IF(AND(AU75=18,$AS$4>=27,$AS$4<=29),AU75&"G",0) ->  | DH75: =IF(AND(DG75=28,$DE$4>=37,$DE$4<=40),DG75&"G",0) ->  | DM75: =IF(AND(DL75=28,$DJ$4>=37,$DJ$4<=40),DL75&"G",0) -> 
B76: 4 | C76: 3 | D76: 1 | F76: 6 | G76: 3 | H76: 1 | AC76: Top Spacer | AD76: =((CMR!$E$45*2)+(CMR!$E$47*2))/12 -> -0.90625 | AE76: 0.0536 | AF76: -0.048575 | AH76: Top Top Rail | AI76: =(Frame_Width-4.9375)/12 -> -0.4114583333 | AJ76: 0.369 | AK76: =AI76*AJ76 -> -0.151828125 | AP76: 0 | AQ76: =IF(AND(AP76=18,$AN$4>=30,$AN$4<=32),AP76&"H",0) ->  | AU76: 0 | AV76: =IF(AND(AU76=18,$AS$4>=30,$AS$4<=32),AU76&"H",0) ->  | DH76: =IF(AND(DG76=28,$DE$4>=41,$DE$4<=43),DG76&"H",0) ->  | DM76: =IF(AND(DL76=28,$DJ$4>=41,$DJ$4<=43),DL76&"H",0) -> 
B77: =B76+1 -> 5 | C77: 3 | D77: 1 | F77: 7 | G77: 4 | H77: 1 | AC77: Top Hardware | AD77: 1 | AE77: 0.2 | AF77: 0.2 | AH77: Top Bottom Rail | AI77: =(Frame_Width-4.9375)/12 -> -0.4114583333 | AJ77: 0.369 | AK77: -0.151828125 | AP77: 0 | AQ77: =IF(AND(AP77=18,$AN$4>=33,$AN$4<=34),AP77&"I",0) ->  | AU77: 0 | AV77: =IF(AND(AU77=18,$AS$4>=33,$AS$4<=34),AU77&"I",0) ->  | DH77: =IF(AND(DG77=28,$DE$4>=44,$DE$4<=45),DG77&"I",0) ->  | DM77: =IF(AND(DL77=28,$DJ$4>=44,$DJ$4<=45),DL77&"I",0) -> 
B78: 6 | C78: 3 | D78: 1 | F78: 8 | G78: 4 | H78: 1 | AC78: Top Bead | AD78: =(((Frame_Width-4.3125)*2)+((CMR!$E$42-2.6875)*2))/12 -> -1.166666667 | AE78: 0.028 | AF78: -0.03266666667 | AH78: Top Stile | AI78: =(2*(CMR!$L$90-2.0625))/12 -> -0.34375 | AJ78: 0.369 | AK78: -0.12684375 | AP78: 0 | AQ78: =IF(AND(AP78=18,$AN$4>=35,$AN$4<=36),"Dbl."&AP78&"C",0) ->  | AU78: 0 | AV78: =IF(AND(AU78=18,$AS$4>=35,$AS$4<=36),"Dbl."&AU78&"C",0) ->  | DG78: =IF(AND($DF$4<=30,$DF$4>28),30,0) ->  | DH78: =IF(AND(DG78=30,$DE$4>=8,$DE$4<=13),DG78&"A",0) ->  | DL78: =IF(AND($DK$4<=30,$DK$4>28),30,0) ->  | DM78: =IF(AND(DL78=30,$DJ$4>=8,$DJ$4<=13),DL78&"A",0) -> 
B79: 7 | C79: 3 | D79: 1 | F79: 9 | G79: 5 | H79: 1 | AC79: Bottom Top Rail | AD79: =(Frame_Width-2.25)/12 -> -0.1875 | AE79: 0.246 | AF79: -0.046125 | AH79: Top Rail Reinf. | AI79: =IF((INT((Frame_Width-9.9375)/2)*2)>12,(INT((Frame_Width-9.9375)/2)*2)/12,0) -> 0 | AJ79: 0.165 | AK79: 0 | AP79: 0 | AQ79: =IF(AND(AP79=18,$AN$4>=37,$AN$4<=42),"Dbl."&AP79&"D",0) ->  | AU79: 0 | AV79: =IF(AND(AU79=18,$AS$4>=37,$AS$4<=42),"Dbl."&AU79&"D",0) ->  | DH79: =IF(AND(DG79=30,$DE$4>=14,$DE$4<=19),DG79&"B",0) ->  | DM79: =IF(AND(DL79=30,$DJ$4>=14,$DJ$4<=19),DL79&"B",0) -> 
B80: 8 | C80: 4 | D80: 1 | F80: 10 | G80: 5 | H80: 1 | P80: FALSE | Q80: AC SASH CALCULATOR | AC80: Bottom Bottom Rail | AD80: =(Frame_Width-2.25)/12 -> -0.1875 | AE80: 0.257 | AF80: -0.0481875 | AH80: Keeper Bead | AI80: =(Frame_Width-4.59375)/12 -> -0.3828125 | AJ80: 0.096 | AK80: -0.03675 | AP80: 0 | AQ80: =IF(AND(AP80=18,$AN$4>=43,$AN$4<=48),"Dbl."&AP80&"E",0) ->  | AU80: 0 | AV80: =IF(AND(AU80=18,$AS$4>=43,$AS$4<=48),"Dbl."&AU80&"E",0) ->  | DH80: =IF(AND(DG80=30,$DE$4>=20,$DE$4<=24),DG80&"C",0) ->  | DM80: =IF(AND(DL80=30,$DJ$4>=20,$DJ$4<=24),DL80&"C",0) -> 
B81: 9 | C81: 5 | D81: 1 | F81: 11 | G81: 6 | H81: 1 | P81: Model | Q81: Head+4 | R81: Sill | S81: Center of Astragal | T81: Top Sash Width | U81: Sash Height | V81: CMR | AC81: Bottom Stile | AD81: =(2*(CMR!$E$43-0.625))/12 -> -0.1041666667 | AE81: 0.233 | AF81: -0.02427083333 | AH81: Top Glass | AI81: =(CMR!$L$93*CMR!$L$95)/144 -> 0.1357693142 | AJ81: =$L$12 -> 3.2 | AK81: 0.4344618056 | AP81: 0 | AQ81: =IF(AND(AP81=18,$AN$4>=49,$AN$4<=52),"Dbl."&AP81&"F",0) ->  | AU81: 0 | AV81: =IF(AND(AU81=18,$AS$4>=49,$AS$4<=52),"Dbl."&AU81&"F",0) ->  | DH81: =IF(AND(DG81=30,$DE$4>=25,$DE$4<=29),DG81&"D",0) ->  | DM81: =IF(AND(DL81=30,$DJ$4>=25,$DJ$4<=29),DL81&"D",0) -> 
B82: 10 | C82: 5 | D82: 1 | F82: 12 | G82: 6 | H82: 1 | P82: =ModelNo -> Select Model | Q82: =IF(ISERROR(VLOOKUP(ModelNo,ACTABLE,2,FALSE)),"",VLOOKUP(ModelNo,ACTABLE,2,FALSE)) ->  | R82: =IF(ISERROR(VLOOKUP(ModelNo,ACTABLE,3,FALSE)),"",VLOOKUP(ModelNo,ACTABLE,3,FALSE)) ->  | S82: =IF(ISERROR(VLOOKUP(ModelNo,ACTABLE,4,FALSE)),"",VLOOKUP(ModelNo,ACTABLE,4,FALSE)) ->  | T82: =IF(ISERROR(VLOOKUP(ModelNo,ACTABLE,5,FALSE)),"",VLOOKUP(ModelNo,ACTABLE,5,FALSE)) ->  | U82: =IF(ISERROR(VLOOKUP(ModelNo,ACTABLE,6,FALSE)),"",VLOOKUP(ModelNo,ACTABLE,6,FALSE)) ->  | V82: =IF(ISERROR(VLOOKUP(ModelNo,ACTABLE,7,FALSE)),"",VLOOKUP(ModelNo,ACTABLE,7,FALSE)) ->  | AC82: Bottom Rail Reinf. | AD82: =(TRUNC(((Frame_Width-2.25)-6)/2)*2)/12 -> -0.6666666667 | AE82: 0.37 | AF82: -0.2466666667 | AH82: Top Spacer | AI82: =((CMR!$L$93*2)+(CMR!$L$95*2))/12 -> -1.520833333 | AJ82: 0.0536 | AK82: -0.08151666667 | AP82: 0 | AQ82: =IF(AND(AP82=18,$AN$4>=53,$AN$4<=58),"Dbl."&AP82&"G",0) ->  | AU82: 0 | AV82: =IF(AND(AU82=18,$AS$4>=53,$AS$4<=58),"Dbl."&AU82&"G",0) ->  | DH82: =IF(AND(DG82=30,$DE$4>=30,$DE$4<=33),DG82&"E",0) ->  | DM82: =IF(AND(DL82=30,$DJ$4>=30,$DJ$4<=33),DL82&"E",0) -> 
B83: 11 | C83: 6 | D83: 1 | F83: 13 | G83: 7 | H83: 1 | P83: 3S40A | Q83: 5.25 | R83: 2.222 | S83: 1.0625 | V83: =INT((Frame_Height-(R83+0.5+ACHEIGHT+S83))*16+0.5)/16 -> -3.8125 | AC83: Bottom Stile Reinf. | AD83: =IF(CMR!$E$48>27.6875,((TRUNC((CMR!$E$43-4.5)/2)*2)/12)*2,0) -> 0 | AE83: 0.299 | AF83: 0 | AH83: Top Hardware | AI83: 1 | AJ83: 0.2 | AK83: 0.2 | AP83: 0 | AQ83: =IF(AND(AP83=18,$AN$4>=59,$AN$4<=64),"Dbl."&AP83&"H",0) ->  | AU83: 0 | AV83: =IF(AND(AU83=18,$AS$4>=59,$AS$4<=64),"Dbl."&AU83&"H",0) ->  | DH83: =IF(AND(DG83=30,$DE$4>=34,$DE$4<=37),DG83&"F",0) ->  | DM83: =IF(AND(DL83=30,$DJ$4>=34,$DJ$4<=37),DL83&"F",0) -> 
B84: 12 | C84: 6 | D84: 1 | F84: 14 | G84: 7 | H84: 1 | P84: 8E40A | Q84: 5.375 | R84: 2.294 | S84: 1.1875 | T84: =TGW8R40A+1.875 -> -3.8125 | U84: =INT((Frame_Height-(Q84+R84+0.5+ACHEIGHT))*16+0.5)/16 -> -8.1875 | AC84: Bottom Glass | AD84: =(CMR!$E$46*CMR!$E$48)/144 -> 0.09898546007 | AE84: =$L$12 -> 3.2 | AF84: 0.3167534722 | AH84: Top Handle Bead | AI84: =(Frame_Width-6.59375)/12 -> -0.5494791667 | AJ84: 0.089 | AK84: -0.04890364583 | AP84: 0 | AQ84: =IF(AND(AP84=18,$AN$4>=65,$AN$4<=68),"Dbl."&AP84&"I",0) ->  | AU84: 0 | AV84: =IF(AND(AU84=18,$AS$4>=65,$AS$4<=68),"Dbl."&AU84&"I",0) ->  | DH84: =IF(AND(DG84=30,$DE$4>=38,$DE$4<=40),DG84&"G",0) ->  | DM84: =IF(AND(DL84=30,$DJ$4>=38,$DJ$4<=40),DL84&"G",0) -> 
B85: 13 | C85: 7 | D85: 1 | F85: 15 | G85: 8 | H85: 1 | P85: L201 | Q85: 5.569 | R85: 1.75 | T85: =Frame_Width-3.25 -> -3.25 | U85: =INT((Frame_Height-(Q85+R85+0.5+ACHEIGHT))*16+0.5)/16 -> -7.8125 | AC85: Bottom Spacer | AD85: =((CMR!$E$46*2)+(CMR!$E$48*2))/12 -> -1.354166667 | AE85: 0.0536 | AF85: -0.07258333333 | AH85: Top Bead | AI85: =((CMR!$L$90-4.25)*2)/12 -> -0.7083333333 | AJ85: 0.064 | AK85: -0.04533333333 | AP85: =IF(AND($AO$4<=20,$AO$4>18),20,0) -> 0 | AQ85: =IF(AND(AP85=20,$AN$4>=5,$AN$4<=10),AP85&"A",0) ->  | AU85: =IF(AND($AT$4<=20,$AT$4>18),20,0) -> 0 | AV85: =IF(AND(AU85=20,$AS$4>=5,$AS$4<=10),AU85&"A",0) ->  | DH85: =IF(AND(DG85=30,$DE$4>=41,$DE$4<=43),DG85&"H",0) ->  | DM85: =IF(AND(DL85=30,$DJ$4>=41,$DJ$4<=43),DL85&"H",0) -> 
B86: 14 | C86: 7 | D86: 1 | F86: 16 | G86: 8 | H86: 1 | P86: 03A0 | R86: 1.875 | S86: 0.625 | T86: =Frame_Width-3.125 -> -3.125 | V86: =INT((Frame_Height-(R86+0.5+ACHEIGHT+S86))*16+0.5)/16 -> -3 | AC86: Bottom Hardware | AD86: 1 | AE86: 0.36 | AF86: 0.36 | AH86: Bottom Top Rail | AI86: =(Frame_Width-3.9375)/12 -> -0.328125 | AJ86: 0.473 | AK86: -0.155203125 | AP86: 0 | AQ86: =IF(AND(AP86=20,$AN$4>=11,$AN$4<=14),AP86&"B",0) ->  | AU86: 0 | AV86: =IF(AND(AU86=20,$AS$4>=11,$AS$4<=14),AU86&"B",0) ->  | DH86: =IF(AND(DG86=30,$DE$4>=44,$DE$4<=45),DG86&"I",0) ->  | DM86: =IF(AND(DL86=30,$DJ$4>=44,$DJ$4<=45),DL86&"I",0) -> 
B87: 15 | C87: 8 | D87: 1 | F87: 17 | G87: 9 | H87: 1 | P87: 02A0 | R87: 1.75 | S87: 0.625 | T87: =Frame_Width-2.25 -> -2.25 | V87: =INT((Frame_Height-(R87+0.5+ACHEIGHT+S87))*16+0.5)/16 -> -2.875 | AC87: Bottom Bead | AD87: =(((Frame_Width-3.3125)*2)+((CMR!$E$43-1.6875)*2))/12 -> -0.8333333333 | AE87: 0.028 | AF87: -0.02333333333 | AH87: Bottom Bottom Rail | AI87: =(Frame_Width-3.9375)/12 -> -0.328125 | AJ87: 0.437 | AK87: -0.143390625 | AP87: 0 | AQ87: =IF(AND(AP87=20,$AN$4>=15,$AN$4<=18),AP87&"C",0) ->  | AU87: 0 | AV87: =IF(AND(AU87=20,$AS$4>=15,$AS$4<=18),AU87&"C",0) ->  | DG87: =IF(AND($DF$4<=32,$DF$4>30),32,0) ->  | DH87: =IF(AND(DG87=32,$DE$4>=8,$DE$4<=14),DG87&"A",0) ->  | DL87: =IF(AND($DK$4<=32,$DK$4>30),32,0) ->  | DM87: =IF(AND(DL87=32,$DJ$4>=8,$DJ$4<=14),DL87&"A",0) -> 
B88: 16 | C88: 8 | D88: 1 | F88: 18 | G88: 9 | H88: 1 | P88: 0201 | Q88: 5.569 | R88: 1.75 | T88: =Frame_Width-3.25 -> -3.25 | U88: =INT((Frame_Height-(Q88+R88+0.5+ACHEIGHT))*16+0.5)/16 -> -7.8125 | AE88: Top Sash | AF88: =IF(OR(ModelNo="0301",ModelNo="E301(3250)",ModelNo="E301(3052)",ModelNo="E301(2862)"),(TRUNC((SUM(AF70:AF78))))+5,0) -> 0 | AH88: Bottom Stile | AI88: =(2*(CMR!$L$91-1.0625))/12 -> -0.1770833333 | AJ88: 0.437 | AK88: -0.07738541667 | AP88: 0 | AQ88: =IF(AND(AP88=20,$AN$4>=19,$AN$4<=22),AP88&"D",0) ->  | AU88: 0 | AV88: =IF(AND(AU88=20,$AS$4>=19,$AS$4<=22),AU88&"D",0) ->  | DH88: =IF(AND(DG88=32,$DE$4>=15,$DE$4<=20),DG88&"B",0) ->  | DM88: =IF(AND(DL88=32,$DJ$4>=15,$DJ$4<=20),DL88&"B",0) -> 
B89: 17 | C89: 9 | D89: 1 | F89: 19 | G89: 10 | H89: 1 | P89: 0301 | Q89: 5.559 | R89: 2.059 | T89: =Frame_Width-3.25 -> -3.25 | U89: =INT((Frame_Height-(Q89+R89+0.5+ACHEIGHT))*16+0.5)/16 -> -8.125 | AE89: Bottom Sash | AF89: =IF(OR(ModelNo="0301",ModelNo="E301(3250)",ModelNo="E301(3052)",ModelNo="E301(2862)"),TRUNC((SUM(AF79:AF87))),0) -> 0 | AH89: Bottom Rail Reinf. | AI89: =IF((INT((Frame_Width-8.9375)/2)*2)>12,(INT((Frame_Width-8.9375)/2)*2)/12,0) -> 0 | AJ89: 0.179 | AK89: 0 | AP89: 0 | AQ89: =IF(AND(AP89=20,$AN$4>=23,$AN$4<=26),AP89&"E",0) ->  | AU89: 0 | AV89: =IF(AND(AU89=20,$AS$4>=23,$AS$4<=26),AU89&"E",0) ->  | DH89: =IF(AND(DG89=32,$DE$4>=21,$DE$4<=25),DG89&"C",0) ->  | DM89: =IF(AND(DL89=32,$DJ$4>=21,$DJ$4<=25),DL89&"C",0) -> 
B90: 18 | C90: 9 | D90: 1 | F90: 20 | G90: 10 | H90: 1 | P90: 0401 | Q90: 5.5 | R90: 2.008 | T90: =Frame_Width-3.25 -> -3.25 | U90: =INT((Frame_Height-(Q90+R90+0.5+ACHEIGHT))*16+0.5)/16 -> -8 | AH90: Bottom Stile Reinf. | AI90: 0 | AJ90: 0 | AK90: 0 | AP90: 0 | AQ90: =IF(AND(AP90=20,$AN$4>=27,$AN$4<=30),AP90&"F",0) ->  | AU90: 0 | AV90: =IF(AND(AU90=20,$AS$4>=27,$AS$4<=30),AU90&"F",0) ->  | DH90: =IF(AND(DG90=32,$DE$4>=26,$DE$4<=30),DG90&"D",0) ->  | DM90: =IF(AND(DL90=32,$DJ$4>=26,$DJ$4<=30),DL90&"D",0) -> 
B91: 19 | C91: 10 | D91: 1 | F91: 21 | G91: 56 | H91: 2 | P91: =IF(ModelNo="0501","0501",IF(ModelNo="B501","B501",IF(ModelNo="U501","U501","0501"))) -> 0501 | Q91: 6.059 | R91: 2.955 | T91: =Frame_Width-4.25 -> -4.25 | U91: =INT((Frame_Height-(Q91+R91+0.5+ACHEIGHT))*16+0.5)/16 -> -9.5 | AC91: 0401 | AD91: Length | AE91: Weight/ft | AF91: Weight | AH91: Bottom Glass | AI91: =(CMR!$L$94*CMR!$L$96)/144 -> 0.1357693142 | AJ91: =$L$12 -> 3.2 | AK91: 0.4344618056 | AP91: 0 | AQ91: =IF(AND(AP91=20,$AN$4>=31,$AN$4<=34),AP91&"G",0) ->  | AU91: 0 | AV91: =IF(AND(AU91=20,$AS$4>=31,$AS$4<=34),AU91&"G",0) ->  | DH91: =IF(AND(DG91=32,$DE$4>=31,$DE$4<=34),DG91&"E",0) ->  | DM91: =IF(AND(DL91=32,$DJ$4>=31,$DJ$4<=34),DL91&"E",0) -> 
B92: 20 | C92: 10 | D92: 1 | F92: 22 | G92: 56 | H92: 2 | P92: =IF(ModelNo="0601","0601",IF(ModelNo="B601","B601",IF(ModelNo="U601","U601","0601"))) -> 0601 | Q92: 6.059 | R92: 2.689 | T92: =Frame_Width-4.25 -> -4.25 | U92: =INT((Frame_Height-(Q92+R92+0.5+ACHEIGHT))*16+0.5)/16 -> -9.25 | AC92: Top Top Rail | AD92: =(Frame_Width-3.25)/12 -> -0.2708333333 | AE92: 0.334 | AF92: =AD92*AE92 -> -0.09045833333 | AH92: Bottom Spacer | AI92: =((CMR!$L$94*2)+(CMR!$L$96*2))/12 -> -1.520833333 | AJ92: 0.0536 | AK92: -0.08151666667 | AP92: 0 | AQ92: =IF(AND(AP92=20,$AN$4>=35,$AN$4<=37),AP92&"H",0) ->  | AU92: 0 | AV92: =IF(AND(AU92=20,$AS$4>=35,$AS$4<=37),AU92&"H",0) ->  | DH92: =IF(AND(DG92=32,$DE$4>=35,$DE$4<=37),DG92&"F",0) ->  | DM92: =IF(AND(DL92=32,$DJ$4>=35,$DJ$4<=37),DL92&"F",0) -> 
B93: 21 | C93: 10 | D93: 1 | F93: 23 | G93: 66 | H93: 2 | P93: 0700 | R93: 1.537 | S93: 1.0625 | T93: =Frame_Width-2.3125 -> -2.3125 | V93: =INT((Frame_Height-(R93+0.5+ACHEIGHT+S93))*16+0.5)/16 -> -3.125 | AC93: Top Bottom Rail | AD93: =(Frame_Width-3.25)/12 -> -0.2708333333 | AE93: 0.295 | AF93: -0.07989583333 | AH93: Bottom Hardware | AI93: 1 | AJ93: 0.36 | AK93: 0.36 | AP93: 0 | AQ93: =IF(AND(AP93=20,$AN$4>=38,$AN$4<=40),AP93&"I",0) ->  | AU93: 0 | AV93: =IF(AND(AU93=20,$AS$4>=38,$AS$4<=40),AU93&"I",0) ->  | DH93: =IF(AND(DG93=32,$DE$4>=38,$DE$4<=40),DG93&"G",0) ->  | DM93: =IF(AND(DL93=32,$DJ$4>=38,$DJ$4<=40),DL93&"G",0) -> 
B94: 22 | C94: 8/4 | D94: 2 | F94: 24 | G94: 66 | H94: 2 | P94: 07HP | R94: 1.537 | S94: 1.1875 | T94: =Frame_Width-2.3125 -> -2.3125 | V94: =INT((Frame_Height-(R94+0.5+ACHEIGHT+S94))*16+0.5)/16 -> -3.25 | AC94: Top Stile | AD94: =(2*(CMR!$E$58-1))/12 -> 0.07291666667 | AE94: 0.27 | AF94: 0.0196875 | AH94: Bott. Handle Bead | AI94: =(Frame_Width-6.59375)/12 -> -0.5494791667 | AJ94: 0.089 | AK94: -0.04890364583 | AP94: 0 | AQ94: =IF(AND(AP94=20,$AN$4>=41,$AN$4<=44),"Dbl."&AP94&"D",0) ->  | AU94: 0 | AV94: =IF(AND(AU94=20,$AS$4>=41,$AS$4<=44),"Dbl."&AU94&"D",0) ->  | DH94: =IF(AND(DG94=32,$DE$4>=41,$DE$4<=43),DG94&"H",0) ->  | DM94: =IF(AND(DL94=32,$DJ$4>=41,$DJ$4<=43),DL94&"H",0) -> 
B95: 23 | C95: 8/4 | D95: 2 | F95: 25 | G95: 67 | H95: 2 | P95: =IF(ModelNo="0901","0901",IF(ModelNo="09A1","09A1",IF(ModelNo="09B1","09B1","0901"))) -> 0901 | Q95: 5.75 | R95: 2.125 | T95: =Frame_Width-3.4375 -> -3.4375 | U95: =INT((Frame_Height-(Q95+R95+0.5+ACHEIGHT))*16+0.5)/16 -> -8.375 | AC95: Top Rail Reinf. | AD95: =(TRUNC(((Frame_Width-3.25)-6)/2)*2)/12 -> -0.6666666667 | AE95: 0.274 | AF95: -0.1826666667 | AH95: Bottom Bead | AI95: =((Frame_Width-6.59375)+((CMR!$L$91-3.71875)*2))/12 -> -1.169270833 | AJ95: 0.064 | AK95: -0.07483333333 | AP95: 0 | AQ95: =IF(AND(AP95=20,$AN$4>=45,$AN$4<=52),"Dbl."&AP95&"E",0) ->  | AU95: 0 | AV95: =IF(AND(AU95=20,$AS$4>=45,$AS$4<=52),"Dbl."&AU95&"E",0) ->  | DH95: =IF(AND(DG95=32,$DE$4>=44,$DE$4<=45),DG95&"I",0) ->  | DM95: =IF(AND(DL95=32,$DJ$4>=44,$DJ$4<=45),DL95&"I",0) -> 
B96: 24 | C96: 8/4 | D96: 2 | F96: 26 | G96: 67 | H96: 2 | P96: 09L1 | Q96: 5.75 | R96: 2.125 | T96: =Frame_Width-3.4375 -> -3.4375 | U96: =INT((Frame_Height-(Q96+R96+0.5+ACHEIGHT))*16+0.5)/16 -> -8.375 | AC96: Top Stile Reinf | AD96: =IF(CMR!$E$63>27.25,((TRUNC((CMR!$E$58-8)/2)*2)/12)*2,0) -> 0 | AE96: 0.274 | AF96: 0 | AJ96: Top Sash | AK96: =IF(OR(ModelNo="9001",ModelNo="P601"),(TRUNC((SUM(AK76:AK85))))+5,0) -> 0 | AP96: 0 | AQ96: =IF(AND(AP96=20,$AN$4>=53,$AN$4<=60),"Dbl."&AP96&"F",0) ->  | AU96: 0 | AV96: =IF(AND(AU96=20,$AS$4>=53,$AS$4<=60),"Dbl."&AU96&"F",0) ->  | DG96: =IF(AND($DF$4<=34,$DF$4>32),34,0) ->  | DH96: =IF(AND(DG96=34,$DE$4>=11,$DE$4<=16),DG96&"A",0) ->  | DL96: =IF(AND($DK$4<=34,$DK$4>32),34,0) ->  | DM96: =IF(AND(DL96=34,$DJ$4>=11,$DJ$4<=16),DL96&"A",0) -> 
B97: 25 | C97: 8/4 | D97: 2 | F97: 27 | G97: 77 | H97: 2 | P97: 8001 | Q97: 6.375 | R97: 2.5 | T97: =Frame_Width-4.9375 -> -4.9375 | U97: =INT((Frame_Height-(Q97+R97+0.5+ACHEIGHT))*16+0.5)/16 -> -9.375 | AC97: Top Glass | AD97: =(CMR!$E$61*CMR!$E$63)/144 -> 0.04443359375 | AE97: =$L$12 -> 3.2 | AF97: 0.1421875 | AJ97: Bottom Sash | AK97: =IF(OR(ModelNo="9001",ModelNo="9601"),TRUNC((SUM(AK86:AK95))),0) -> 0 | AP97: 0 | AQ97: =IF(AND(AP97=20,$AN$4>=61,$AN$4<=68),"Dbl."&AP97&"G",0) ->  | AU97: 0 | AV97: =IF(AND(AU97=20,$AS$4>=61,$AS$4<=68),"Dbl."&AU97&"G",0) ->  | DH97: =IF(AND(DG97=34,$DE$4>=17,$DE$4<=22),DG97&"B",0) ->  | DM97: =IF(AND(DL97=34,$DJ$4>=17,$DJ$4<=22),DL97&"B",0) -> 
B98: 26 | C98: 8/6 | D98: 2 | F98: 28 | G98: 77 | H98: 2 | P98: R601 | Q98: 6.375 | R98: 2.5 | T98: =Frame_Width-4.9375 -> -4.9375 | U98: =INT((Frame_Height-(Q98+R98+0.5+ACHEIGHT))*16+0.5)/16 -> -9.375 | AC98: Top Spacer | AD98: =((CMR!$E$61*2)+(CMR!$E$63*2))/12 -> -1.135416667 | AE98: 0.0536 | AF98: -0.06085833333 | AP98: 0 | AQ98: =IF(AND(AP98=20,$AN$4>=69,$AN$4<=74),"Dbl."&AP98&"H",0) ->  | AU98: 0 | AV98: =IF(AND(AU98=20,$AS$4>=69,$AS$4<=74),"Dbl."&AU98&"H",0) ->  | DH98: =IF(AND(DG98=34,$DE$4>=23,$DE$4<=27),DG98&"C",0) ->  | DM98: =IF(AND(DL98=34,$DJ$4>=23,$DJ$4<=27),DL98&"C",0) -> 
B99: 27 | C99: 8/6 | D99: 2 | F99: 29 | G99: 78 | H99: 2 | P99: S140 | R99: =IF(EXTSELECT=2,1.75,1.537) -> 1.537 | S99: 1.0625 | T99: =IF(EXTSELECT=2,Frame_Width-2.25,Frame_Width-2.3125) -> -2.3125 | V99: =IF(EXTSELECT=2,INT((Frame_Height-(R99+0.5+ACHEIGHT+S99))*16+0.5)/16,INT((Frame_Height-(R99+0.5+ACHEIGHT+S99))*16+0.5)/16) -> -3.125 | AC99: Top Hardware | AD99: 1 | AE99: 0.2 | AF99: 0.2 | AH99: 3100 | AI99: Length | AJ99: Weight/ft | AK99: Weight | AP99: 0 | AQ99: =IF(AND(AP99=20,$AN$4>=75,$AN$4<=80),"Dbl."&AP99&"I",0) ->  | AU99: 0 | AV99: =IF(AND(AU99=20,$AS$4>=75,$AS$4<=80),"Dbl."&AU99&"I",0) ->  | DH99: =IF(AND(DG99=34,$DE$4>=28,$DE$4<=32),DG99&"D",0) ->  | DM99: =IF(AND(DL99=34,$DJ$4>=28,$DJ$4<=32),DL99&"D",0) -> 
B100: 28 | C100: 8/6 | D100: 2 | F100: 30 | G100: 78 | H100: 2 | P100: S144 | R100: 1.537 | S100: 1.0625 | T100: -2.3125 | V100: -3.125 | AC100: Top Bead | AD100: =(((Frame_Width-4.344)*2)+((CMR!$E$58-3.656)*2))/12 -> -1.09375 | AE100: 0.06 | AF100: -0.065625 | AH100: Top Top Rail | AI100: 0 | AJ100: 0 | AK100: =AI100*AJ100 -> 0 | AP100: =IF(AND($AO$4<=22,$AO$4>20),22,0) -> 0 | AQ100: =IF(AND(AP100=22,$AN$4>=5,$AN$4<=10),AP100&"A",0) ->  | AU100: =IF(AND($AT$4<=22,$AT$4>20),22,0) -> 0 | AV100: =IF(AND(AU100=22,$AS$4>=5,$AS$4<=10),AU100&"A",0) ->  | DH100: =IF(AND(DG100=34,$DE$4>=33,$DE$4<=34),DG100&"E",0) ->  | DM100: =IF(AND(DL100=34,$DJ$4>=33,$DJ$4<=34),DL100&"E",0) -> 
B101: 29 | C101: 8/6 | D101: 2 | F101: 31 | G101: 88 | H101: 2 | P101: S146 | R101: 1.537 | S101: 1.0625 | T101: -2.3125 | V101: -3.125 | AC101: Bottom Top Rail | AD101: =(Frame_Width-2.25)/12 -> -0.1875 | AE101: 0.355 | AF101: -0.0665625 | AH101: Top Bottom Rail | AI101: 0 | AJ101: 0 | AK101: =AI101*AJ101 -> 0 | AO101: =IF(AND(AP101>0,AQ101>0),AP101,0) ->  | AP101: 0 | AQ101: =IF(AND(AP101=22,$AN$4>=11,$AN$4<=16),AP101&"B",0) ->  | AU101: 0 | AV101: =IF(AND(AU101=22,$AS$4>=11,$AS$4<=16),AU101&"B",0) ->  | DH101: =IF(AND(DG101=34,$DE$4>=35,$DE$4<=37),DG101&"F",0) ->  | DM101: =IF(AND(DL101=34,$DJ$4>=35,$DJ$4<=37),DL101&"F",0) -> 
B102: 30 | C102: 8/8 | D102: 2 | F102: 32 | G102: 88 | H102: 2 | P102: S140 (HP) | R102: 1.537 | S102: 1.1875 | T102: -2.3125 | V102: -3.25 | AC102: Bottom Bottom Rail | AD102: =(Frame_Width-2.25)/12 -> -0.1875 | AE102: 0.379 | AF102: -0.0710625 | AH102: Top Stile | AI102: 0 | AJ102: 0 | AK102: =(AI102*AJ102)/12 -> 0 | AP102: 0 | AQ102: =IF(AND(AP102=22,$AN$4>=17,$AN$4<=21),AP102&"C",0) ->  | AU102: 0 | AV102: =IF(AND(AU102=22,$AS$4>=17,$AS$4<=21),AU102&"C",0) ->  | DH102: =IF(AND(DG102=34,$DE$4>=38,$DE$4<=40),DG102&"G",0) ->  | DM102: =IF(AND(DL102=34,$DJ$4>=38,$DJ$4<=40),DL102&"G",0) -> 
B103: 31 | C103: 8/8 | D103: 2 | F103: 33 | G103: 89 | H103: 2 | P103: S144 (HP) | R103: 1.537 | S103: 1.1875 | T103: -2.3125 | V103: -3.25 | AC103: Bottom Stile | AD103: =(2*(CMR!$E$59))/12 -> -0.4791666667 | AE103: 0.315 | AF103: -0.1509375 | AH103: Top Rail Reinf. | AI103: 0 | AJ103: 0 | AK103: 0 | AP103: 0 | AQ103: =IF(AND(AP103=22,$AN$4>=22,$AN$4<=24),AP103&"D",0) ->  | AU103: 0 | AV103: =IF(AND(AU103=22,$AS$4>=22,$AS$4<=24),AU103&"D",0) ->  | DH103: =IF(AND(DG103=34,$DE$4>=41,$DE$4<=43),DG103&"H",0) ->  | DM103: =IF(AND(DL103=34,$DJ$4>=41,$DJ$4<=43),DL103&"H",0) -> 
B104: 32 | C104: 8/8 | D104: 2 | F104: 34 | G104: 89 | H104: 2 | P104: S146 (HP) | R104: 1.537 | S104: 1.1875 | T104: -2.3125 | V104: -3.25 | AC104: Bottom Rail Reinf. | AD104: =(TRUNC(((Frame_Width-2.25)-6)/2)*2)/12 -> -0.6666666667 | AE104: 0.596 | AF104: -0.3973333333 | AH104: Top Stile Reinf | AI104: 0 | AJ104: 0 | AK104: 0 | AP104: 0 | AQ104: =IF(AND(AP104=22,$AN$4>=25,$AN$4<=27),AP104&"E",0) ->  | AU104: 0 | AV104: =IF(AND(AU104=22,$AS$4>=25,$AS$4<=27),AU104&"E",0) ->  | DH104: =IF(AND(DG104=34,$DE$4>=44,$DE$4<=45),DG104&"I",0) ->  | DM104: =IF(AND(DL104=34,$DJ$4>=44,$DJ$4<=45),DL104&"I",0) -> 
B105: 33 | C105: 8/8 | D105: 2 | F105: 35 | G105: 99 | H105: 2 | P105: 3100 | R105: 2.43 | S105: 0.1875 | T105: =TRUNC((Frame_Width-2.14315)*32+0.5)/32 -> -2.125 | V105: =INT((Frame_Height-(R105+0.5+ACHEIGHT+S105))*16+0.5)/16 -> -3.125 | AC105: Bottom Stile Reinf. | AD105: =IF(CMR!$E$64>27.25,((TRUNC((CMR!$E$59-3.75)/2)*2)/12)*2,0) -> 0 | AE105: 0.274 | AF105: 0 | AH105: Top Glass | AI105: 0 | AJ105: 0 | AK105: 0 | AP105: 0 | AQ105: =IF(AND(AP105=22,$AN$4>=28,$AN$4<=30),AP105&"F",0) ->  | AU105: 0 | AV105: =IF(AND(AU105=22,$AS$4>=28,$AS$4<=30),AU105&"F",0) ->  | DG105: =IF(AND($DF$4<=36,$DF$4>34),36,0) ->  | DH105: =IF(AND(DG105=36,$DE$4>=11,$DE$4<=16),DG105&"A",0) ->  | DL105: =IF(AND($DK$4<=36,$DK$4>34),36,0) ->  | DM105: =IF(AND(DL105=36,$DJ$4>=11,$DJ$4<=16),DL105&"A",0) -> 
B106: 34 | C106: 9/9 | D106: 2 | F106: 36 | G106: 99 | H106: 2 | P106: 9001 | Q106: 6.375 | R106: 2.75 | T106: =Frame_Width-4.9375 -> -4.9375 | U106: =INT((Frame_Height-(Q106+R106+0.5+ACHEIGHT))*16+0.5)/16 -> -9.625 | AC106: Bottom Glass | AD106: =(CMR!$E$62*CMR!$E$64)/144 -> 0.1049804688 | AE106: =$L$12 -> 3.2 | AF106: 0.3359375 | AH106: Top Spacer | AI106: 0 | AJ106: 0 | AK106: 0 | AP106: 0 | AQ106: =IF(AND(AP106=22,$AN$4>=31,$AN$4<=34),AP106&"G",0) ->  | AU106: 0 | AV106: =IF(AND(AU106=22,$AS$4>=31,$AS$4<=34),AU106&"G",0) ->  | DH106: =IF(AND(DG106=36,$DE$4>=17,$DE$4<=22),DG106&"B",0) ->  | DM106: =IF(AND(DL106=36,$DJ$4>=17,$DJ$4<=22),DL106&"B",0) -> 
B107: 35 | C107: 9/9 | D107: 2 | F107: 37 | G107: 766 | H107: 3 | P107: P601 | Q107: 6.375 | R107: 2.75 | T107: =Frame_Width-4.9375 -> -4.9375 | U107: =INT((Frame_Height-(Q107+R107+0.5+ACHEIGHT))*16+0.5)/16 -> -9.625 | AC107: Bottom Spacer | AD107: =((CMR!$E$62*2)+(CMR!$E$64*2))/12 -> -1.364583333 | AE107: 0.0536 | AF107: -0.07314166667 | AH107: Top Hardware | AI107: 0 | AJ107: 0 | AK107: 0 | AP107: 0 | AQ107: =IF(AND(AP107=22,$AN$4>=35,$AN$4<=37),AP107&"H",0) ->  | AU107: 0 | AV107: =IF(AND(AU107=22,$AS$4>=35,$AS$4<=37),AU107&"H",0) ->  | DH107: =IF(AND(DG107=36,$DE$4>=23,$DE$4<=27),DG107&"C",0) ->  | DM107: =IF(AND(DL107=36,$DJ$4>=23,$DJ$4<=27),DL107&"C",0) -> 
B108: 36 | C108: 9/9 | D108: 2 | F108: 38 | G108: 766 | H108: 3 | P108: V100 | R108: 2.006 | S108: 1 | T108: =TRUNC((Frame_Width-2.188)*32+0.5)/32 -> -2.15625 | V108: =INT((Frame_Height-(R108+0.5+ACHEIGHT+S108))*16+0.5)/16 -> -3.5 | AC108: Bottom Hardware | AD108: 1 | AE108: 0.36 | AF108: 0.36 | AH108: Top Bead | AI108: 0 | AJ108: 0 | AK108: 0 | AP108: 0 | AQ108: =IF(AND(AP108=22,$AN$4>=38,$AN$4<=40),AP108&"I",0) ->  | AU108: 0 | AV108: =IF(AND(AU108=22,$AS$4>=38,$AS$4<=40),AU108&"I",0) ->  | DH108: =IF(AND(DG108=36,$DE$4>=28,$DE$4<=32),DG108&"D",0) ->  | DM108: =IF(AND(DL108=36,$DJ$4>=28,$DJ$4<=32),DL108&"D",0) -> 
B109: 37 | C109: 9/9 | D109: 2 | F109: 39 | G109: 866 | H109: 3 | P109: V101 | Q109: 1 | R109: 2.006 | T109: =Frame_Width-3.4375 -> -3.4375 | U109: =INT((Frame_Height-(Q109+R109+0.5+ACHEIGHT))*16+0.5)/16 -> -3.5 | AC109: Bottom Bead | AD109: =(((Frame_Width-4.344)*2)+((CMR!$E$59-3.656)*2))/12 -> -1.8125 | AE109: 0.06 | AF109: -0.10875 | AH109: Bottom Top Rail | AI109: =(TRUNC((Frame_Width-2.14315)*32+0.5)/32)/12 -> -0.1770833333 | AJ109: 0.331 | AK109: =AI109*AJ109 -> -0.05861458333 | AP109: 0 | AQ109: =IF(AND(AP109=22,$AN$4>=41,$AN$4<=42),"Dbl."&AP109&"C",0) ->  | AU109: 0 | AV109: =IF(AND(AU109=22,$AS$4>=41,$AS$4<=42),"Dbl."&AU109&"C",0) ->  | DH109: =IF(AND(DG109=36,$DE$4>=33,$DE$4<=34),DG109&"E",0) ->  | DM109: =IF(AND(DL109=36,$DJ$4>=33,$DJ$4<=34),DL109&"E",0) -> 
B110: 38 | C110: 10/10 | D110: 2 | F110: 40 | G110: 866 | H110: 3 | P110: V200 | R110: 2.006 | S110: 0.4375 | T110: =TRUNC((Frame_Width-2.188)*32+0.5)/32 -> -2.15625 | V110: =INT((Frame_Height-(R110+0.5+ACHEIGHT+S110))*16+0.5)/16 -> -2.9375 | AE110: Top Sash | AF110: =IF(ModelNo="0401",(TRUNC((SUM(AF92:AF100))))+5,0) -> 0 | AH110: Bottom Bottom Rail | AI110: =(TRUNC((Frame_Width-2.14315)*32+0.5)/32)/12 -> -0.1770833333 | AJ110: 0.316 | AK110: =AI110*AJ110 -> -0.05595833333 | AP110: 0 | AQ110: =IF(AND(AP110=22,$AN$4>=43,$AN$4<=48),"Dbl."&AP110&"D",0) ->  | AU110: 0 | AV110: =IF(AND(AU110=22,$AS$4>=43,$AS$4<=48),"Dbl."&AU110&"D",0) ->  | DH110: =IF(AND(DG110=36,$DE$4>=35,$DE$4<=37),DG110&"F",0) ->  | DM110: =IF(AND(DL110=36,$DJ$4>=35,$DJ$4<=37),DL110&"F",0) -> 
B111: 39 | C111: 10/10 | D111: 2 | F111: 41 | G111: 777 | H111: 3 | P111: 3001 | Q111: 6 | R111: 1.875 | T111: =Frame_Width-4.125 -> -4.125 | U111: =INT((Frame_Height-(Q111+R111+0.5+ACHEIGHT))*16+0.5)/16 -> -8.375 | AE111: Bottom Sash | AF111: =IF(ModelNo="0401",TRUNC((SUM(AF101:AF109))),0) -> 0 | AH111: Bottom Stile | AI111: =((CMR!$E$91-2.09375)*2)/12 -> -0.3489583333 | AJ111: 0.27 | AK111: =AI111*AJ111 -> -0.09421875 | AP111: 0 | AQ111: =IF(AND(AP111=22,$AN$4>=49,$AN$4<=54),"Dbl."&AP111&"E",0) ->  | AU111: 0 | AV111: =IF(AND(AU111=22,$AS$4>=49,$AS$4<=54),"Dbl."&AU111&"E",0) ->  | DH111: =IF(AND(DG111=36,$DE$4>=38,$DE$4<=40),DG111&"G",0) ->  | DM111: =IF(AND(DL111=36,$DJ$4>=38,$DJ$4<=40),DL111&"G",0) -> 
B112: 40 | C112: 10/10 | D112: 2 | F112: 42 | G112: 777 | H112: 3 | AH112: Lock Rail Reinf. | AI112: =((TRUNC((Frame_Width-2.14315)*32+0.5)/32)-0.25)/12 -> -0.1979166667 | AJ112: 0.392 | AK112: =AI112*AJ112 -> -0.07758333333 | AP112: 0 | AQ112: =IF(AND(AP112=22,$AN$4>=55,$AN$4<=60),"Dbl."&AP112&"F",0) ->  | AU112: 0 | AV112: =IF(AND(AU112=22,$AS$4>=55,$AS$4<=60),"Dbl."&AU112&"F",0) ->  | DH112: =IF(AND(DG112=36,$DE$4>=41,$DE$4<=43),DG112&"H",0) ->  | DM112: =IF(AND(DL112=36,$DJ$4>=41,$DJ$4<=43),DL112&"H",0) -> 
B113: 41 | C113: 10/10 | D113: 2 | F113: 43 | G113: 877 | H113: 3 | AC113: 0501 | AD113: Length | AE113: Weight/ft | AF113: Weight | AH113: Lock Rail Reinf. | AI113: =((((Frame_Width-3.625)-0.5)/2)*2)/12 -> -0.34375 | AJ113: 0.229 | AK113: =AI113*AJ113 -> -0.07871875 | AP113: 0 | AQ113: =IF(AND(AP113=22,$AN$4>=61,$AN$4<=68),"Dbl."&AP113&"G",0) ->  | AU113: 0 | AV113: =IF(AND(AU113=22,$AS$4>=61,$AS$4<=68),"Dbl."&AU113&"G",0) ->  | DH113: =IF(AND(DG113=36,$DE$4>=44,$DE$4<=45),DG113&"I",0) ->  | DM113: =IF(AND(DL113=36,$DJ$4>=44,$DJ$4<=45),DL113&"I",0) -> 
B114: 42 | C114: 6/8/8 | D114: 3 | F114: 44 | G114: 877 | H114: 3 | AC114: Top Top Rail | AD114: =(Frame_Width-4.25)/12 -> -0.3541666667 | AE114: 0.369 | AF114: =AD114*AE114 -> -0.1306875 | AH114: Handle Rail Reinf. | AI114: =((((Frame_Width-3.625)-0.5)/2)*2)/12 -> -0.34375 | AJ114: 0.536 | AK114: -0.18425 | AP114: 0 | AQ114: =IF(AND(AP114=22,$AN$4>=69,$AN$4<=74),"Dbl."&AP114&"H",0) ->  | AU114: 0 | AV114: =IF(AND(AU114=22,$AS$4>=69,$AS$4<=74),"Dbl."&AU114&"H",0) ->  | DG114: =IF(AND($DF$4<=38,$DF$4>36),38,0) ->  | DH114: =IF(AND(DG114=38,$DE$4>=11,$DE$4<=16),DG114&"A",0) ->  | DL114: =IF(AND($DK$4<=38,$DK$4>36),38,0) ->  | DM114: =IF(AND(DL114=38,$DJ$4>=11,$DJ$4<=16),DL114&"A",0) -> 
B115: 43 | C115: 6/8/8 | D115: 3 | F115: 45 | G115: 878 | H115: 3 | AC115: Top Bottom Rail | AD115: =(Frame_Width-4.25)/12 -> -0.3541666667 | AE115: 0.369 | AF115: -0.1306875 | AH115: Bottom Stile Reinf. | AI115: =(CMR!$E$91-2.09375)/12 -> -0.1744791667 | AJ115: 0.536 | AK115: -0.09352083333 | AP115: 0 | AQ115: =IF(AND(AP115=22,$AN$4>=75,$AN$4<=80),"Dbl."&AP115&"I",0) ->  | AU115: 0 | AV115: =IF(AND(AU115=22,$AS$4>=75,$AS$4<=80),"Dbl."&AU115&"I",0) ->  | DH115: =IF(AND(DG115=38,$DE$4>=17,$DE$4<=22),DG115&"B",0) ->  | DM115: =IF(AND(DL115=38,$DJ$4>=17,$DJ$4<=22),DL115&"B",0) -> 
B116: 44 | C116: 6/8/8 | D116: 3 | F116: 46 | G116: 878 | H116: 3 | AC116: Top Stile | AD116: =(2*(CMR!$L$42-2.25))/12 -> -0.375 | AE116: 0.369 | AF116: -0.138375 | AH116: Bottom Glass | AI116: =(CMR!$E$94*CMR!$E$96)/144 -> 0.09792751736 | AJ116: =$L$12 -> 3.2 | AK116: 0.3133680556 | AP116: =IF(AND($AO$4<=24,$AO$4>22),24,0) -> 0 | AQ116: =IF(AND(AP116=24,$AN$4>=6,$AN$4<=10),AP116&"A",0) ->  | AU116: =IF(AND($AT$4<=24,$AT$4>22),24,0) -> 0 | AV116: =IF(AND(AU116=24,$AS$4>=6,$AS$4<=10),AU116&"A",0) ->  | DH116: =IF(AND(DG116=38,$DE$4>=23,$DE$4<=27),DG116&"C",0) ->  | DM116: =IF(AND(DL116=38,$DJ$4>=23,$DJ$4<=27),DL116&"C",0) -> 
B117: 45 | C117: 6/8/8 | D117: 3 | F117: 47 | G117: 888 | H117: 3 | AC117: Top Rail Reinf. | AD117: =(TRUNC(((Frame_Width-4.25)-6)/2)*2)/12 -> -0.8333333333 | AE117: 0.264 | AF117: -0.22 | AH117: Bottom Spacer | AI117: =((CMR!$E$94*2)+(CMR!$E$96*2))/12 -> -1.286458333 | AJ117: 0.0536 | AK117: -0.06895416667 | AP117: 0 | AQ117: =IF(AND(AP117=24,$AN$4>=11,$AN$4<=17),AP117&"B",0) ->  | AU117: 0 | AV117: =IF(AND(AU117=24,$AS$4>=11,$AS$4<=17),AU117&"B",0) ->  | DH117: =IF(AND(DG117=38,$DE$4>=28,$DE$4<=32),DG117&"D",0) ->  | DM117: =IF(AND(DL117=38,$DJ$4>=28,$DJ$4<=32),DL117&"D",0) -> 
B118: 46 | C118: 8/8/8 | D118: 3 | F118: 48 | G118: 888 | H118: 3 | AC118: Top Stile Reinf | AD118: =IF(CMR!$L$47>26.1875,((TRUNC((CMR!$L$43-10)/2)*2)/12)*2,0) -> 0 | AE118: 0.264 | AF118: 0 | AH118: Bottom Hardware | AI118: 1 | AJ118: 0.36 | AK118: 0.36 | AP118: 0 | AQ118: =IF(AND(AP118=24,$AN$4>=18,$AN$4<=22),AP118&"C",0) ->  | AU118: 0 | AV118: =IF(AND(AU118=24,$AS$4>=18,$AS$4<=22),AU118&"C",0) ->  | DH118: =IF(AND(DG118=38,$DE$4>=33,$DE$4<=34),DG118&"E",0) ->  | DM118: =IF(AND(DL118=38,$DJ$4>=33,$DJ$4<=34),DL118&"E",0) -> 
B119: 47 | C119: 8/8/8 | D119: 3 | F119: 49 | G119: 889 | H119: 3 | AC119: Top Glass | AD119: =(CMR!$L$45*CMR!$L$47)/144 -> 0.05187988281 | AE119: =$L$12 -> 3.2 | AF119: 0.166015625 | AH119: Bottom Bead | AI119: =(((Frame_Width-4.45565)*2)+((CMR!$E$91-4.09375)*2))/12 -> -1.4249 | AJ119: 0.046 | AK119: -0.0655454 | AP119: 0 | AQ119: =IF(AND(AP119=24,$AN$4>=23,$AN$4<=25),AP119&"D",0) ->  | AU119: 0 | AV119: =IF(AND(AU119=24,$AS$4>=23,$AS$4<=25),AU119&"D",0) ->  | DH119: =IF(AND(DG119=38,$DE$4>=35,$DE$4<=37),DG119&"F",0) ->  | DM119: =IF(AND(DL119=38,$DJ$4>=35,$DJ$4<=37),DL119&"F",0) -> 
B120: 48 | C120: 8/8/8 | D120: 3 | F120: 50 | G120: 889 | H120: 3 | AC120: Top Spacer | AD120: =((CMR!$L$45*2)+(CMR!$L$47*2))/12 -> -0.9114583333 | AE120: 0.0536 | AF120: -0.04885416667 | AJ120: Top Sash | AK120: =IF(ModelNo="3100",TRUNC((SUM(AK100:AK108))),0) -> 0 | AP120: 0 | AQ120: =IF(AND(AP120=24,$AN$4>=26,$AN$4<=28),AP120&"E",0) ->  | AU120: 0 | AV120: =IF(AND(AU120=24,$AS$4>=26,$AS$4<=28),AU120&"E",0) ->  | DH120: =IF(AND(DG120=38,$DE$4>=38,$DE$4<=40),DG120&"G",0) ->  | DM120: =IF(AND(DL120=38,$DJ$4>=38,$DJ$4<=40),DL120&"G",0) -> 
B121: 49 | C121: 8/8/8 | D121: 3 | F121: 51 | G121: 899 | H121: 3 | AC121: Top Hardware | AD121: 1 | AE121: 0.2 | AF121: 0.2 | AJ121: Bottom Sash | AK121: =IF(ModelNo="3100",TRUNC(SUM(AK109:AK119)),0) -> 0 | AP121: 0 | AQ121: =IF(AND(AP121=24,$AN$4>=29,$AN$4<=30),AP121&"F",0) ->  | AU121: 0 | AV121: =IF(AND(AU121=24,$AS$4>=29,$AS$4<=30),AU121&"F",0) ->  | DH121: =IF(AND(DG121=38,$DE$4>=41,$DE$4<=43),DG121&"H",0) ->  | DM121: =IF(AND(DL121=38,$DJ$4>=41,$DJ$4<=43),DL121&"H",0) -> 
B122: 50 | C122: 8/9/9 | D122: 3 | F122: 52 | G122: 899 | H122: 3 | AC122: Top Handle Bead | AD122: =(Frame_Width-5.912)/12 -> -0.4926666667 | AE122: 0.104 | AF122: -0.05123733333 | AP122: 0 | AQ122: =IF(AND(AP122=24,$AN$4>=31,$AN$4<=34),AP122&"G",0) ->  | AU122: 0 | AV122: =IF(AND(AU122=24,$AS$4>=31,$AS$4<=34),AU122&"G",0) ->  | DH122: =IF(AND(DG122=38,$DE$4>=44,$DE$4<=45),DG122&"I",0) ->  | DM122: =IF(AND(DL122=38,$DJ$4>=44,$DJ$4<=45),DL122&"I",0) -> 
B123: 51 | C123: 8/9/9 | D123: 3 | F123: 53 | G123: 999 | H123: 3 | AC123: Top Bead | AD123: =((Frame_Width-4.25)+((CMR!$L$42-5.0625)*2))/12 -> -1.197916667 | AE123: 0.074 | AF123: =AD123*AE123 -> -0.08864583333 | AH123: i201 | AI123: Length | AJ123: Weight/ft | AK123: Weight | AP123: 0 | AQ123: =IF(AND(AP123=24,$AN$4>=35,$AN$4<=37),AP123&"H",0) ->  | AU123: 0 | AV123: =IF(AND(AU123=24,$AS$4>=35,$AS$4<=37),AU123&"H",0) ->  | DG123: =IF(AND($DF$4<=40,$DF$4>38),40,0) ->  | DH123: =IF(AND(DG123=40,$DE$4>=11,$DE$4<=16),DG123&"A",0) ->  | DL123: =IF(AND($DK$4<=40,$DK$4>38),40,0) ->  | DM123: =IF(AND(DL123=40,$DJ$4>=11,$DJ$4<=16),DL123&"A",0) -> 
B124: 52 | C124: 8/9/9 | D124: 3 | F124: 54 | G124: 999 | H124: 3 | AC124: Bottom Top Rail | AD124: =(Frame_Width-3.25)/12 -> -0.2708333333 | AE124: 0.437 | AF124: -0.1183541667 | AH124: Top Top Rail | AI124: =(Frame_Width-3.25)/12 -> -0.2708333333 | AJ124: 0.257 | AK124: =AI124*AJ124 -> -0.06960416667 | AP124: 0 | AQ124: =IF(AND(AP124=24,$AN$4>=38,$AN$4<=40),AP124&"I",0) ->  | AU124: 0 | AV124: =IF(AND(AU124=24,$AS$4>=38,$AS$4<=40),AU124&"I",0) ->  | DH124: =IF(AND(DG124=40,$DE$4>=17,$DE$4<=22),DG124&"B",0) ->  | DM124: =IF(AND(DL124=40,$DJ$4>=17,$DJ$4<=22),DL124&"B",0) -> 
B125: 53 | C125: 8/9/9 | D125: 3 | F125: 55 | G125: 6679 | H125: 4 | AC125: Bottom Bottom Rail | AD125: =(Frame_Width-3.25)/12 -> -0.2708333333 | AE125: 0.437 | AF125: -0.1183541667 | AH125: Top Bottom Rail | AI125: =(Frame_Width-3.25)/12 -> -0.2708333333 | AJ125: 0.273 | AK125: -0.0739375 | AO125: =IF(AND(AP125>0,AQ125>0),AP125,0) ->  | AP125: 0 | AQ125: =IF(AND(AP125=24,$AN$4>=41,$AN$4<=44),"Dbl."&AP125&"C",0) ->  | AU125: 0 | AV125: =IF(AND(AU125=24,$AS$4>=41,$AS$4<=44),"Dbl."&AU125&"C",0) ->  | DH125: =IF(AND(DG125=40,$DE$4>=23,$DE$4<=27),DG125&"C",0) ->  | DM125: =IF(AND(DL125=40,$DJ$4>=23,$DJ$4<=27),DL125&"C",0) -> 
B126: 54 | C126: 9/9/10 | D126: 3 | F126: 56 | G126: 6679 | H126: 4 | AC126: Bottom Stile | AD126: =(2*(CMR!$L$43-1.25))/12 -> -0.2083333333 | AE126: 0.437 | AF126: -0.09104166667 | AH126: Top Stile | AI126: =(2*(CMR!$E$26-1.5625))/12 -> -0.2604166667 | AJ126: 0.233 | AK126: -0.06067708333 | AP126: 0 | AQ126: =IF(AND(AP126=24,$AN$4>=45,$AN$4<=50),"Dbl."&AP126&"D",0) ->  | AU126: 0 | AV126: =IF(AND(AU126=24,$AS$4>=45,$AS$4<=50),"Dbl."&AU126&"D",0) ->  | DH126: =IF(AND(DG126=40,$DE$4>=28,$DE$4<=32),DG126&"D",0) ->  | DM126: =IF(AND(DL126=40,$DJ$4>=28,$DJ$4<=32),DL126&"D",0) -> 
B127: 55 | C127: 9/9/10 | D127: 3 | F127: 57 | G127: 6779 | H127: 4 | AC127: Bottom Rail Reinf. | AD127: =(TRUNC(((Frame_Width-3.25)-6)/2)*2)/12 -> -0.6666666667 | AE127: 0.4344 | AF127: -0.2896 | AH127: Keeper Rail Reinf. | AI127: =(TRUNC(Frame_Width-3.25)-6)/12 -> -0.75 | AJ127: 0.431 | AK127: -0.32325 | AP127: 0 | AQ127: =IF(AND(AP127=24,$AN$4>=51,$AN$4<=56),"Dbl."&AP127&"E",0) ->  | AU127: 0 | AV127: =IF(AND(AU127=24,$AS$4>=51,$AS$4<=56),"Dbl."&AU127&"E",0) ->  | DH127: =IF(AND(DG127=40,$DE$4>=33,$DE$4<=34),DG127&"E",0) ->  | DM127: =IF(AND(DL127=40,$DJ$4>=33,$DJ$4<=34),DL127&"E",0) -> 
B128: 56 | C128: 9/9/10 | D128: 3 | F128: 58 | G128: 6779 | H128: 4 | AC128: Bottom Stile Reinf. | AD128: =IF(CMR!$L$48>26.1875,((TRUNC((CMR!$L$43-4)/2)*2)/12)*2,0) -> 0 | AE128: 0.4344 | AF128: 0 | AH128: Top Stile Reinf | AI128: =(2*(CMR!$E$26-3.5625))/12 -> -0.59375 | AJ128: 0.431 | AK128: -0.25590625 | AP128: 0 | AQ128: =IF(AND(AP128=24,$AN$4>=57,$AN$4<=60),"Dbl."&AP128&"F",0) ->  | AU128: 0 | AV128: =IF(AND(AU128=24,$AS$4>=57,$AS$4<=60),"Dbl."&AU128&"F",0) ->  | DH128: =IF(AND(DG128=40,$DE$4>=35,$DE$4<=37),DG128&"F",0) ->  | DM128: =IF(AND(DL128=40,$DJ$4>=35,$DJ$4<=37),DL128&"F",0) -> 
B129: 57 | C129: 9/9/10 | D129: 3 | F129: 59 | G129: 7779 | H129: 4 | AC129: Bottom Glass | AD129: =(CMR!$L$46*CMR!$L$48)/144 -> 0.1001925998 | AE129: =$L$12 -> 3.2 | AF129: 0.3206163194 | AH129: Top Glass | AI129: =(CMR!$E$29*CMR!$E$31)/144 -> 0.1079101562 | AJ129: =$L$12 -> 3.2 | AK129: 0.3453125 | AP129: 0 | AQ129: =IF(AND(AP129=24,$AN$4>=61,$AN$4<=68),"Dbl."&AP129&"G",0) ->  | AU129: 0 | AV129: =IF(AND(AU129=24,$AS$4>=61,$AS$4<=68),"Dbl."&AU129&"G",0) ->  | DH129: =IF(AND(DG129=40,$DE$4>=38,$DE$4<=40),DG129&"G",0) ->  | DM129: =IF(AND(DL129=40,$DJ$4>=38,$DJ$4<=40),DL129&"G",0) -> 
B130: 58 | C130: 10/10/10 | D130: 3 | F130: 60 | G130: 7779 | H130: 4 | AC130: Bottom Spacer | AD130: =((CMR!$L$46*2)+(CMR!$L$48*2))/12 -> -1.359375 | AE130: 0.0536 | AF130: -0.0728625 | AH130: Top Spacer | AI130: =((CMR!$E$29*2)+(CMR!$E$31*2))/12 -> -1.34375 | AJ130: 0.0536 | AK130: -0.072025 | AP130: 0 | AQ130: =IF(AND(AP130=24,$AN$4>=69,$AN$4<=74),"Dbl."&AP130&"H",0) ->  | AU130: 0 | AV130: =IF(AND(AU130=24,$AS$4>=69,$AS$4<=74),"Dbl."&AU130&"H",0) ->  | DH130: =IF(AND(DG130=40,$DE$4>=41,$DE$4<=42),DG130&"H",0) ->  | DM130: =IF(AND(DL130=40,$DJ$4>=41,$DJ$4<=42),DL130&"H",0) -> 
B131: 59 | C131: 10/10/10 | D131: 3 | F131: 61 | G131: 6799 | H131: 4 | AC131: Bottom Hardware | AD131: 1 | AE131: 0.36 | AF131: 0.36 | AH131: Top Hardware | AI131: 1 | AJ131: =IF(Frame_Width>36,0.258,0.2) -> 0.2 | AK131: 0.2 | AP131: 0 | AQ131: =IF(AND(AP131=24,$AN$4>=75,$AN$4<=80),"Dbl."&AP131&"I",0) ->  | AU131: 0 | AV131: =IF(AND(AU131=24,$AS$4>=75,$AS$4<=80),"Dbl."&AU131&"I",0) ->  | DH131: =IF(AND(DG131=40,$DE$4>=43,$DE$4<=45),DG131&"I",0) ->  | DM131: =IF(AND(DL131=40,$DJ$4>=43,$DJ$4<=45),DL131&"I",0) -> 
B132: 60 | C132: 10/10/10 | D132: 3 | F132: 62 | G132: 6799 | H132: 4 | AC132: Bottom Keeper Bead | AD132: =(Frame_Width-5.912)/12 -> -0.4926666667 | AE132: 0.109 | AF132: -0.05370066667 | AH132: Top Bead | AI132: =(((Frame_Width-4.3125)*2)+((CMR!$E$26-2.625)*2))/12 -> -1.15625 | AJ132: 0.028 | AK132: -0.032375 | AO132: =IF(AND(AP132>0,AQ132>0),AP132,0) ->  | AP132: =IF(AND($AO$4<=26,$AO$4>24),26,0) -> 0 | AQ132: =IF(AND(AP132=26,$AN$4>=6,$AN$4<=11),AP132&"A",0) ->  | AU132: =IF(AND($AT$4<=26,$AT$4>24),26,0) -> 0 | AV132: =IF(AND(AU132=26,$AS$4>=6,$AS$4<=11),AU132&"A",0) ->  | DG132: =IF(AND($DF$4<=42,$DF$4>40),42,0) ->  | DH132: =IF(AND(DG132=42,$DE$4>=11,$DE$4<=16),DG132&"A",0) ->  | DL132: =IF(AND($DK$4<=42,$DK$4>40),42,0) ->  | DM132: =IF(AND(DL132=42,$DJ$4>=11,$DJ$4<=16),DL132&"A",0) -> 
B133: 61 | C133: 10/10/10 | D133: 3 | F133: 63 | G133: 7799 | H133: 4 | AC133: Bottom Bead | AD133: =((Frame_Width-5.912)+((CMR!$L$43-5.0625)*2))/12 -> -1.336416667 | AE133: 0.074 | AF133: -0.09889483333 | AH133: Bottom Top Rail | AI133: =(Frame_Width-2.25)/12 -> -0.1875 | AJ133: 0.246 | AK133: -0.046125 | AP133: 0 | AQ133: =IF(AND(AP133=26,$AN$4>=12,$AN$4<=17),AP133&"B",0) ->  | AT133: =IF(AND(AU133>0,AV133>0),AU133,0) ->  | AU133: 0 | AV133: =IF(AND(AU133=26,$AS$4>=12,$AS$4<=17),AU133&"B",0) ->  | DF133: =IF(AND(DG133>0,DH133>0),DG133,0) ->  | DH133: =IF(AND(DG133=42,$DE$4>=17,$DE$4<=22),DG133&"B",0) ->  | DK133: =IF(AND(DL133>0,DM133>0),DL133,0) ->  | DM133: =IF(AND(DL133=42,$DJ$4>=17,$DJ$4<=22),DL133&"B",0) -> 
B134: 62 | C134: 8/8/8/8 | D134: 4 | F134: 64 | G134: 7799 | H134: 4 | AE134: Top Sash | AF134: =IF(OR(ModelNo="0501",ModelNo="B501",ModelNo="U501"),(TRUNC((SUM(AF114:AF123))))+5,0) -> 0 | AH134: Bottom Bottom Rail | AI134: =(Frame_Width-2.25)/12 -> -0.1875 | AJ134: 0.257 | AK134: -0.0481875 | AP134: 0 | AQ134: =IF(AND(AP134=26,$AN$4>=18,$AN$4<=22),AP134&"C",0) ->  | AU134: 0 | AV134: =IF(AND(AU134=26,$AS$4>=18,$AS$4<=22),AU134&"C",0) ->  | DH134: =IF(AND(DG134=42,$DE$4>=23,$DE$4<=27),DG134&"C",0) ->  | DM134: =IF(AND(DL134=42,$DJ$4>=23,$DJ$4<=27),DL134&"C",0) -> 
B135: 63 | C135: 8/8/8/8 | D135: 4 | F135: 65 | G135: 7899 | H135: 4 | AE135: Bottom Sash | AF135: =IF(OR(ModelNo="0501",ModelNo="B501",ModelNo="U501"),TRUNC((SUM(AF124:AF133))),0) -> 0 | AH135: Bottom Stile | AI135: =(2*(CMR!$E$27-0.5625))/12 -> -0.09375 | AJ135: 0.233 | AK135: -0.02184375 | AP135: 0 | AQ135: =IF(AND(AP135=26,$AN$4>=23,$AN$4<=26),AP135&"D",0) ->  | AU135: 0 | AV135: =IF(AND(AU135=26,$AS$4>=23,$AS$4<=26),AU135&"D",0) ->  | DH135: =IF(AND(DG135=42,$DE$4>=28,$DE$4<=31),DG135&"D",0) ->  | DM135: =IF(AND(DL135=42,$DJ$4>=28,$DJ$4<=31),DL135&"D",0) -> 
B136: 64 | C136: 8/8/8/8 | D136: 4 | F136: 66 | G136: 7899 | H136: 4 | AH136: Lock Rail Reinf. | AI136: =(Frame_Width-3)/12 -> -0.25 | AJ136: 0.5601 | AK136: -0.140025 | AP136: 0 | AQ136: =IF(AND(AP136=26,$AN$4>=27,$AN$4<=30),AP136&"E",0) ->  | AU136: 0 | AV136: =IF(AND(AU136=26,$AS$4>=27,$AS$4<=30),AU136&"E",0) ->  | DH136: =IF(AND(DG136=42,$DE$4>=32,$DE$4<=34),DG136&"E",0) ->  | DM136: =IF(AND(DL136=42,$DJ$4>=32,$DJ$4<=34),DL136&"E",0) -> 
B137: 65 | C137: 8/8/8/8 | D137: 4 | F137: 67 | G137: 8899 | H137: 4 | AC137: V100 | AD137: Length | AE137: Weight/ft | AF137: Weight | AH137: Bottom Rail Reinf. | AI137: =(Frame_Width-8.25)/12 -> -0.6875 | AJ137: 0.43 | AK137: =AI137*AJ137 -> -0.295625 | AP137: 0 | AQ137: =IF(AND(AP137=26,$AN$4>=31,$AN$4<=34),AP137&"F",0) ->  | AU137: 0 | AV137: =IF(AND(AU137=26,$AS$4>=31,$AS$4<=34),AU137&"F",0) ->  | DH137: =IF(AND(DG137=42,$DE$4>=35,$DE$4<=37),DG137&"F",0) ->  | DM137: =IF(AND(DL137=42,$DJ$4>=35,$DJ$4<=37),DL137&"F",0) -> 
B138: 66 | C138: 8/8/9/9 | D138: 4 | F138: 68 | G138: 8899 | H138: 4 | AC138: Top Top Rail | AD138: 0 | AE138: 0 | AF138: =AD138*AE138 -> 0 | AH138: Bottom Stile Reinf. | AI138: =2*((CMR!$E$27-2.5625)/12) -> -0.4270833333 | AJ138: 0.43 | AK138: -0.1836458333 | AP138: 0 | AQ138: =IF(AND(AP138=26,$AN$4>=35,$AN$4<=38),AP138&"G",0) ->  | AU138: 0 | AV138: =IF(AND(AU138=26,$AS$4>=35,$AS$4<=38),AU138&"G",0) ->  | DH138: =IF(AND(DG138=42,$DE$4>=38,$DE$4<=40),DG138&"G",0) ->  | DM138: =IF(AND(DL138=42,$DJ$4>=38,$DJ$4<=40),DL138&"G",0) -> 
B139: 67 | C139: 8/8/9/9 | D139: 4 | F139: 69 | G139: 8999 | H139: 4 | AC139: Top Bottom Rail | AD139: 0 | AE139: 0 | AF139: 0 | AH139: Bottom Glass | AI139: =(CMR!$E$30*CMR!$E$32)/144 -> 0.05886501736 | AJ139: =$L$12 -> 3.2 | AK139: 0.1883680556 | AP139: 0 | AQ139: =IF(AND(AP139=26,$AN$4>=39,$AN$4<=42),AP139&"H",0) ->  | AU139: 0 | AV139: =IF(AND(AU139=26,$AS$4>=39,$AS$4<=42),AU139&"H",0) ->  | DH139: =IF(AND(DG139=42,$DE$4>=41,$DE$4<=43),DG139&"H",0) ->  | DM139: =IF(AND(DL139=42,$DJ$4>=41,$DJ$4<=43),DL139&"H",0) -> 
B140: 68 | C140: 8/8/9/9 | D140: 4 | F140: 70 | G140: 8999 | H140: 4 | AC140: Top Stile | AD140: 0 | AE140: 0 | AF140: 0 | AH140: Bottom Spacer | AI140: =((CMR!$E$30*2)+(CMR!$E$32*2))/12 -> -1.010416667 | AJ140: 0.0536 | AK140: -0.05415833333 | AP140: 0 | AQ140: =IF(AND(AP140=26,$AN$4>=43,$AN$4<=45),AP140&"I",0) ->  | AU140: 0 | AV140: =IF(AND(AU140=26,$AS$4>=43,$AS$4<=45),AU140&"I",0) ->  | DH140: =IF(AND(DG140=42,$DE$4>=44,$DE$4<=45),DG140&"I",0) ->  | DM140: =IF(AND(DL140=42,$DJ$4>=44,$DJ$4<=45),DL140&"I",0) -> 
B141: 69 | C141: 8/8/9/9 | D141: 4 | F141: 71 | G141: 9999 | H141: 4 | AC141: Top Rail Reinf. | AD141: 0 | AE141: 0 | AF141: 0 | AH141: Bottom Hardware | AI141: 1 | AJ141: =IF(Frame_Width>36,0.482,0.36) -> 0.36 | AK141: 0.36 | AP141: 0 | AQ141: =IF(AND(AP141=26,$AN$4>=46,$AN$4<=52),"Dbl."&AP141&"D",0) ->  | AU141: 0 | AV141: =IF(AND(AU141=26,$AS$4>=46,$AS$4<=52),"Dbl."&AU141&"D",0) ->  | DG141: =IF(AND($DF$4<=44,$DF$4>42),44,0) ->  | DH141: =IF(AND(DG141=44,$DE$4>=11,$DE$4<=16),DG141&"A",0) ->  | DL141: =IF(AND($DK$4<=44,$DK$4>42),44,0) ->  | DM141: =IF(AND(DL141=44,$DJ$4>=11,$DJ$4<=16),DL141&"A",0) -> 
B142: 70 | C142: 9/9/9/9 | D142: 4 | F142: 72 | G142: 9999 | H142: 4 | AC142: Top Stile Reinf | AD142: 0 | AE142: 0 | AF142: 0 | AH142: Bottom Bead | AI142: =(((Frame_Width-3.3125)*2)+((CMR!$E$27-1.625)*2))/12 -> -0.8229166667 | AJ142: 0.028 | AK142: -0.02304166667 | AP142: 0 | AQ142: =IF(AND(AP142=26,$AN$4>=53,$AN$4<=60),"Dbl."&AP142&"E",0) ->  | AU142: 0 | AV142: =IF(AND(AU142=26,$AS$4>=53,$AS$4<=60),"Dbl."&AU142&"E",0) ->  | DH142: =IF(AND(DG142=44,$DE$4>=17,$DE$4<=22),DG142&"B",0) ->  | DM142: =IF(AND(DL142=44,$DJ$4>=17,$DJ$4<=22),DL142&"B",0) -> 
B143: 71 | C143: 9/9/9/9 | D143: 4 | AC143: Top Glass | AD143: 0 | AE143: 0 | AF143: 0 | AJ143: Top Sash | AK143: =IF(ModelNo="i201",(TRUNC((SUM(AK124:AK132))))+5,0) -> 0 | AP143: 0 | AQ143: =IF(AND(AP143=26,$AN$4>=61,$AN$4<=68),"Dbl."&AP143&"F",0) ->  | AU143: 0 | AV143: =IF(AND(AU143=26,$AS$4>=61,$AS$4<=68),"Dbl."&AU143&"F",0) ->  | DH143: =IF(AND(DG143=44,$DE$4>=23,$DE$4<=27),DG143&"C",0) ->  | DM143: =IF(AND(DL143=44,$DJ$4>=23,$DJ$4<=27),DL143&"C",0) -> 
B144: 72 | C144: 9/9/9/9 | D144: 4 | AC144: Top Spacer | AD144: 0 | AE144: 0 | AF144: 0 | AJ144: Bottom Sash | AK144: =IF(ModelNo="i201",TRUNC((SUM(AK133:AK142))),0) -> 0 | AP144: 0 | AQ144: =IF(AND(AP144=26,$AN$4>=69,$AN$4<=76),"Dbl."&AP144&"G",0) ->  | AU144: 0 | AV144: =IF(AND(AU144=26,$AS$4>=69,$AS$4<=76),"Dbl."&AU144&"G",0) ->  | DH144: =IF(AND(DG144=44,$DE$4>=28,$DE$4<=32),DG144&"D",0) ->  | DM144: =IF(AND(DL144=44,$DJ$4>=28,$DJ$4<=32),DL144&"D",0) -> 
B145: 73 | C145: 9/9/9/9 | D145: 4 | AC145: Top Hardware | AD145: 0 | AE145: 0 | AF145: 0 | AP145: 0 | AQ145: =IF(AND(AP145=26,$AN$4>=77,$AN$4<=80),"Dbl."&AP145&"H",0) ->  | AU145: 0 | AV145: =IF(AND(AU145=26,$AS$4>=77,$AS$4<=80),"Dbl."&AU145&"H",0) ->  | DH145: =IF(AND(DG145=44,$DE$4>=33,$DE$4<=34),DG145&"E",0) ->  | DM145: =IF(AND(DL145=44,$DJ$4>=33,$DJ$4<=34),DL145&"E",0) -> 
B146: 74 | C146: 9/9/9/9 | D146: 4 | AC146: Top Bead | AD146: 0 | AE146: 0 | AF146: 0 | AP146: =IF(AND($AO$4<=28,$AO$4>26),28,0) -> 0 | AQ146: =IF(AND(AP146=28,$AN$4>=7,$AN$4<=12),AP146&"A",0) ->  | AU146: =IF(AND($AT$4<=28,$AT$4>26),28,0) -> 0 | AV146: =IF(AND(AU146=28,$AS$4>=7,$AS$4<=12),AU146&"A",0) ->  | DH146: =IF(AND(DG146=44,$DE$4>=35,$DE$4<=37),DG146&"F",0) ->  | DM146: =IF(AND(DL146=44,$DJ$4>=35,$DJ$4<=37),DL146&"F",0) -> 
AC147: Bottom Top Rail | AD147: =(Frame_Width-2.1875)/12 -> -0.1822916667 | AE147: 0.224 | AF147: -0.04083333333 | AH147: V200 | AI147: Length | AJ147: Weight/ft | AK147: Weight | AP147: 0 | AQ147: =IF(AND(AP147=28,$AN$4>=13,$AN$4<=18),AP147&"B",0) ->  | AU147: 0 | AV147: =IF(AND(AU147=28,$AS$4>=13,$AS$4<=18),AU147&"B",0) ->  | DH147: =IF(AND(DG147=44,$DE$4>=38,$DE$4<=40),DG147&"G",0) ->  | DM147: =IF(AND(DL147=44,$DJ$4>=38,$DJ$4<=40),DL147&"G",0) -> 
AC148: Bottom Bottom Rail | AD148: =(Frame_Width-2.1875)/12 -> -0.1822916667 | AE148: 0.199 | AF148: -0.03627604167 | AH148: Top Top Rail | AI148: 0 | AJ148: 0 | AK148: =AI148*AJ148 -> 0 | AP148: 0 | AQ148: =IF(AND(AP148=28,$AN$4>=19,$AN$4<=23),AP148&"C",0) ->  | AU148: 0 | AV148: =IF(AND(AU148=28,$AS$4>=19,$AS$4<=23),AU148&"C",0) ->  | DH148: =IF(AND(DG148=44,$DE$4>=41,$DE$4<=43),DG148&"H",0) ->  | DM148: =IF(AND(DL148=44,$DJ$4>=41,$DJ$4<=43),DL148&"H",0) -> 
AC149: Bottom Stile | AD149: =((CMR!$L$100-0.844)*2)/12 -> -0.1406666667 | AE149: 0.199 | AF149: -0.02799266667 | AH149: Top Bottom Rail | AI149: 0 | AJ149: 0 | AK149: 0 | AP149: 0 | AQ149: =IF(AND(AP149=28,$AN$4>=24,$AN$4<=28),AP149&"D",0) ->  | AU149: 0 | AV149: =IF(AND(AU149=28,$AS$4>=24,$AS$4<=28),AU149&"D",0) ->  | DH149: =IF(AND(DG149=44,$DE$4>=44,$DE$4<=45),DG149&"I",0) ->  | DM149: =IF(AND(DL149=44,$DJ$4>=44,$DJ$4<=45),DL149&"I",0) -> 
AC150: Bottom Rail Reinf. | AD150: =(TRUNC(((Frame_Width-8.188)-0.5)/2)*2)/12 -> -0.6666666667 | AE150: 0.133 | AF150: -0.08866666667 | AH150: Top Stile | AI150: 0 | AJ150: 0 | AK150: 0 | AP150: 0 | AQ150: =IF(AND(AP150=28,$AN$4>=29,$AN$4<=32),AP150&"E",0) ->  | AU150: 0 | AV150: =IF(AND(AU150=28,$AS$4>=29,$AS$4<=32),AU150&"E",0) -> 
AC151: Bottom Stile Reinf. | AD151: =(TRUNC((((CMR!$L$100-0.844)-1.46875)-0.25)/2)*2)/12 -> -0.1666666667 | AE151: 0.101 | AF151: -0.01683333333 | AH151: Top Rail Reinf. | AI151: 0 | AJ151: 0 | AK151: 0 | AP151: 0 | AQ151: =IF(AND(AP151=28,$AN$4>=33,$AN$4<=36),AP151&"F",0) ->  | AU151: 0 | AV151: =IF(AND(AU151=28,$AS$4>=33,$AS$4<=36),AU151&"F",0) -> 
AC152: Bottom Glass | AD152: =(CMR!$L$103*CMR!$L$105)/144 -> 0.05445692274 | AE152: =$L$12 -> 3.2 | AF152: 0.1742621528 | AH152: Top Stile Reinf | AI152: 0 | AJ152: 0 | AK152: 0 | AP152: 0 | AQ152: =IF(AND(AP152=28,$AN$4>=37,$AN$4<=40),AP152&"G",0) ->  | AU152: 0 | AV152: =IF(AND(AU152=28,$AS$4>=37,$AS$4<=40),AU152&"G",0) -> 
AC153: Bottom Spacer | AD153: =((CMR!$L$103*2)+(CMR!$L$105*2))/12 -> -0.953125 | AE153: 0.0536 | AF153: -0.0510875 | AH153: Top Glass | AI153: 0 | AJ153: 0 | AK153: 0 | AP153: 0 | AQ153: =IF(AND(AP153=28,$AN$4>=41,$AN$4<=43),AP153&"H",0) ->  | AU153: 0 | AV153: =IF(AND(AU153=28,$AS$4>=41,$AS$4<=43),AU153&"H",0) -> 
AC154: Bottom Hardware | AD154: 1 | AE154: 0.36 | AF154: 0.36 | AH154: Top Spacer | AI154: 0 | AJ154: 0 | AK154: 0 | AP154: 0 | AQ154: =IF(AND(AP154=28,$AN$4>=44,$AN$4<=45),AP154&"I",0) ->  | AU154: 0 | AV154: =IF(AND(AU154=28,$AS$4>=44,$AS$4<=45),AU154&"I",0) -> 
AC155: Bottom Bead | AD155: =(((Frame_Width-2.9375)*2)+((CMR!$L$100-1.625)*2))/12 -> -0.7604166667 | AE155: 0.021 | AF155: -0.01596875 | AH155: Top Hardware | AI155: 0 | AJ155: 0 | AK155: 0 | AP155: 0 | AQ155: =IF(AND(AP155=28,$AN$4=46),"Dbl."&AP155&"C",0) ->  | AU155: 0 | AV155: =IF(AND(AU155=28,$AS$4=46),"Dbl."&AU155&"C",0) -> 
AE156: Top Sash | AF156: =IF(ModelNo="V100",ROUND((SUM(AF138:AF146)),0),0) -> 0 | AH156: Top Bead | AI156: 0 | AJ156: 0 | AK156: 0 | AP156: 0 | AQ156: =IF(AND(AP156=28,$AN$4>=47,$AN$4<=56),"Dbl."&AP156&"D",0) ->  | AU156: 0 | AV156: =IF(AND(AU156=28,$AS$4>=47,$AS$4<=56),"Dbl."&AU156&"D",0) -> 
AE157: Bottom Sash | AF157: =IF(OR(ModelNo="V100",ModelNo="V100",ModelNo="V100"),TRUNC((SUM(AF147:AF155))),0) -> 0 | AH157: Bottom Top Rail | AI157: =(Frame_Width-2.1875)/12 -> -0.1822916667 | AJ157: 0.224 | AK157: -0.04083333333 | AP157: 0 | AQ157: =IF(AND(AP157=28,$AN$4>=57,$AN$4<=64),"Dbl."&AP157&"E",0) ->  | AU157: 0 | AV157: =IF(AND(AU157=28,$AS$4>=57,$AS$4<=64),"Dbl."&AU157&"E",0) -> 
AH158: Bottom Bottom Rail | AI158: =(Frame_Width-2.1875)/12 -> -0.1822916667 | AJ158: 0.199 | AK158: -0.03627604167 | AP158: 0 | AQ158: =IF(AND(AP158=28,$AN$4>=65,$AN$4<=72),"Dbl."&AP158&"F",0) ->  | AU158: 0 | AV158: =IF(AND(AU158=28,$AS$4>=65,$AS$4<=72),"Dbl."&AU158&"F",0) -> 
AC159: V101 | AD159: Length | AE159: Weight/ft | AF159: Weight | AH159: Bottom Stile | AI159: =((CMR!$L$125-0.875)*2)/12 -> -0.1458333333 | AJ159: 0.199 | AK159: -0.02902083333 | AP159: 0 | AQ159: =IF(AND(AP159=28,$AN$4>=73,$AN$4<=80),"Dbl."&AP159&"G",0) ->  | AU159: 0 | AV159: =IF(AND(AU159=28,$AS$4>=73,$AS$4<=80),"Dbl."&AU159&"G",0) -> 
AC160: Top Top Rail | AD160: =(Frame_Width-3.4375)/12 -> -0.2864583333 | AE160: 0.208 | AF160: =AD160*AE160 -> -0.05958333333 | AH160: Bottom Rail Reinf. | AI160: =(TRUNC(((Frame_Width-3.625)-0.5)/2)*2-2)/12 -> -0.5 | AJ160: 0.133 | AK160: -0.0665 | AP160: =IF(AND($AO$4<=30,$AO$4>28),30,0) -> 0 | AQ160: =IF(AND(AP160=30,$AN$4>=8,$AN$4<=13),AP160&"A",0) ->  | AU160: =IF(AND($AT$4<=30,$AT$4>28),30,0) -> 0 | AV160: =IF(AND(AU160=30,$AS$4>=8,$AS$4<=13),AU160&"A",0) -> 
AC161: Top Bottom Rail | AD161: =(Frame_Width-3.4375)/12 -> -0.2864583333 | AE161: 0.238 | AF161: -0.06817708333 | AH161: Bottom Stile Reinf. | AI161: =(TRUNC((((TRUNC(((CMR!$L$125-0.8125)*32+0.5))/32-0.0625)-1.46875)-0.25)/2)*2)/12 -> -0.1666666667 | AJ161: 0.101 | AK161: -0.01683333333 | AP161: 0 | AQ161: =IF(AND(AP161=30,$AN$4>=14,$AN$4<=19),AP161&"B",0) ->  | AU161: 0 | AV161: =IF(AND(AU161=30,$AS$4>=14,$AS$4<=19),AU161&"B",0) -> 
AC162: Top Stile | AD162: =(2*(CMR!$L$115-1.5625))/12 -> -0.2604166667 | AE162: 0.199 | AF162: -0.05182291667 | AH162: Bottom Glass | AI162: =(CMR!$L$128*CMR!$L$130)/144 -> 0.0546875 | AJ162: =$L$12 -> 3.2 | AK162: 0.175 | AP162: 0 | AQ162: =IF(AND(AP162=30,$AN$4>=20,$AN$4<=24),AP162&"C",0) ->  | AU162: 0 | AV162: =IF(AND(AU162=30,$AS$4>=20,$AS$4<=24),AU162&"C",0) -> 
AC163: Top Rail Reinf. | AD163: =(TRUNC(((Frame_Width-9.4375)+0.5)/2)*2)/12 -> -0.6666666667 | AE163: 0.101 | AF163: -0.06733333333 | AH163: Bottom Spacer | AI163: =((CMR!$L$128*2)+(CMR!$L$130*2))/12 -> -0.9583333333 | AJ163: 0.0536 | AK163: -0.05136666667 | AP163: 0 | AQ163: =IF(AND(AP163=30,$AN$4>=25,$AN$4<=29),AP163&"D",0) ->  | AU163: 0 | AV163: =IF(AND(AU163=30,$AS$4>=25,$AS$4<=29),AU163&"D",0) -> 
AC164: Top Stile Reinf | AD164: =((TRUNC(((CMR!$L$115-2.5625)+0.5)/2)*2)/12)*2 -> -0.3333333333 | AE164: 0.133 | AF164: -0.04433333333 | AH164: Bottom Hardware | AI164: 1 | AJ164: 0.36 | AK164: 0.36 | AO164: =IF(AND(AP164>0,AQ164>0),AP164,0) ->  | AP164: 0 | AQ164: =IF(AND(AP164=30,$AN$4>=30,$AN$4<=33),AP164&"E",0) ->  | AU164: 0 | AV164: =IF(AND(AU164=30,$AS$4>=30,$AS$4<=33),AU164&"E",0) -> 
AC165: Top Glass | AD165: =(CMR!$L$118*CMR!$L$120)/144 -> 0.09358723958 | AE165: =$L$12 -> 3.2 | AF165: 0.2994791667 | AH165: Bottom Bead | AI165: =(((Frame_Width-2.9375)*2)+((CMR!$L$125-1.625)*2))/12 -> -0.7604166667 | AJ165: 0.021 | AK165: -0.01596875 | AP165: 0 | AQ165: =IF(AND(AP165=30,$AN$4>=34,$AN$4<=37),AP165&"F",0) ->  | AU165: 0 | AV165: =IF(AND(AU165=30,$AS$4>=34,$AS$4<=37),AU165&"F",0) -> 
AC166: Top Spacer | AD166: =((CMR!$L$118*2)+(CMR!$L$120*2))/12 -> -1.260416667 | AE166: 0.0536 | AF166: -0.06755833333 | AJ166: Top Sash | AK166: =IF(ModelNo="V200",ROUND((SUM(AK148:AK156)),0),0) -> 0 | AP166: 0 | AQ166: =IF(AND(AP166=30,$AN$4>=38,$AN$4<=40),AP166&"G",0) ->  | AU166: 0 | AV166: =IF(AND(AU166=30,$AS$4>=38,$AS$4<=40),AU166&"G",0) -> 
AC167: Top Hardware | AD167: 1 | AE167: 0.2 | AF167: 0.2 | AJ167: Bottom Sash | AK167: =IF(ModelNo="V200",TRUNC((SUM(AK157:AK165))),0) -> 0 | AP167: 0 | AQ167: =IF(AND(AP167=30,$AN$4>=41,$AN$4<=43),AP167&"H",0) ->  | AU167: 0 | AV167: =IF(AND(AU167=30,$AS$4>=41,$AS$4<=43),AU167&"H",0) -> 
AC168: Top Bead | AD168: =(((Frame_Width-4.2)*2)+((CMR!$L$115-2.875)*2))/12 -> -1.179166667 | AE168: 0.021 | AF168: -0.0247625 | AP168: 0 | AQ168: =IF(AND(AP168=30,$AN$4>=44,$AN$4<=45),AP168&"I",0) ->  | AU168: 0 | AV168: =IF(AND(AU168=30,$AS$4>=44,$AS$4<=45),AU168&"I",0) -> 
AC169: Bottom Top Rail | AD169: =(Frame_Width-2.1875)/12 -> -0.1822916667 | AE169: 0.224 | AF169: -0.04083333333 | AH169: 3001 | AI169: Length | AJ169: Weight/ft | AK169: Weight | AP169: 0 | AQ169: =IF(AND(AP169=30,$AN$4>=46,$AN$4<=48),"Dbl."&AP169&"C",0) ->  | AU169: 0 | AV169: =IF(AND(AU169=30,$AS$4>=46,$AS$4<=48),"Dbl."&AU169&"C",0) -> 
AC170: Bottom Bottom Rail | AD170: =(Frame_Width-2.1875)/12 -> -0.1822916667 | AE170: 0.199 | AF170: -0.03627604167 | AH170: Top Top Rail | AI170: =(Frame_Width-4.125)/12 -> -0.34375 | AJ170: 0.297 | AK170: =AI170*AJ170 -> -0.10209375 | AP170: 0 | AQ170: =IF(AND(AP170=30,$AN$4>=49,$AN$4<=58),"Dbl."&AP170&"D",0) ->  | AU170: 0 | AV170: =IF(AND(AU170=30,$AS$4>=49,$AS$4<=58),"Dbl."&AU170&"D",0) -> 
AC171: Bottom Stile | AD171: =(2*(CMR!$L$116-0.3125))/12 -> -0.05208333333 | AE171: 0.199 | AF171: -0.01036458333 | AH171: Top Bottom Rail | AI171: =(Frame_Width-4.125)/12 -> -0.34375 | AJ171: 0.289 | AK171: -0.09934375 | AP171: 0 | AQ171: =IF(AND(AP171=30,$AN$4>=59,$AN$4<=66),"Dbl."&AP171&"E",0) ->  | AU171: 0 | AV171: =IF(AND(AU171=30,$AS$4>=59,$AS$4<=66),"Dbl."&AU171&"E",0) -> 
AC172: Bottom Rail Reinf. | AD172: =(TRUNC(((Frame_Width-8.1875)+0.5)/2)*2)/12 -> -0.5 | AE172: 0.133 | AF172: -0.0665 | AH172: Top Stile | AI172: =(2*(CMR!$E$116-1.625))/12 -> -0.2708333333 | AJ172: 0.218 | AK172: -0.05904166667 | AP172: 0 | AQ172: =IF(AND(AP172=30,$AN$4>=67,$AN$4<=74),"Dbl."&AP172&"F",0) ->  | AU172: 0 | AV172: =IF(AND(AU172=30,$AS$4>=67,$AS$4<=74),"Dbl."&AU172&"F",0) -> 
AC173: Bottom Stile Reinf. | AD173: =((TRUNC(((CMR!$L$116-1.3125)+0.5)/2)*2)/12)*2 -> 0 | AE173: 0.133 | AF173: 0 | AH173: Keeper Rail Reinf. | AI173: =(TRUNC(((Frame_Width-4.125)-2)/2)*2)/12 -> -0.5 | AJ173: =IF(OR(EXTSELECT=2,Frame_Width<48,Frame_Height<84),0.0516,IF(OR(EXTSELECT=3,Frame_Width>48,Frame_Height>84),0.3784,0)) -> 0.0516 | AK173: -0.0258 | AP173: 0 | AQ173: =IF(AND(AP173=30,$AN$4>=75,$AN$4<=80),"Dbl."&AP173&"G",0) ->  | AU173: 0 | AV173: =IF(AND(AU173=30,$AS$4>=75,$AS$4<=80),"Dbl."&AU173&"G",0) -> 
AC174: Bottom Glass | AD174: =(CMR!$L$119*CMR!$L$121)/144 -> 0.03879123264 | AE174: =$L$12 -> 3.2 | AF174: 0.1241319444 | AH174: Top Stile Reinf | AI174: =IF(OR(Frame_Width>48,Frame_Height>84,EXTTYPE="Steel"),((TRUNC(((CMR!$E$116-1.625)-8)/2)*2)/12)*2,0) -> 0 | AJ174: 0.456 | AK174: 0 | AP174: =IF(AND($AO$4<=32,$AO$4>30),32,0) -> 0 | AQ174: =IF(AND(AP174=32,$AN$4>=8,$AN$4<=14),AP174&"A",0) ->  | AU174: =IF(AND($AT$4<=32,$AT$4>30),32,0) -> 0 | AV174: =IF(AND(AU174=32,$AS$4>=8,$AS$4<=14),AU174&"A",0) -> 
AC175: Bottom Spacer | AD175: =((CMR!$L$119*2)+(CMR!$L$121*2))/12 -> -0.84375 | AE175: 0.0536 | AF175: -0.045225 | AH175: Top Glass | AI175: =(CMR!$E$119*CMR!$E$121)/144 -> 0.1285264757 | AJ175: =$L$12 -> 3.2 | AK175: 0.4112847222 | AP175: 0 | AQ175: =IF(AND(AP175=32,$AN$4>=15,$AN$4<=20),AP175&"B",0) ->  | AU175: 0 | AV175: =IF(AND(AU175=32,$AS$4>=15,$AS$4<=20),AU175&"B",0) -> 
AC176: Bottom Hardware | AD176: 1 | AE176: 0.36 | AF176: 0.36 | AH176: Top Spacer | AI176: =((CMR!$E$119*2)+(CMR!$E$121*2))/12 -> -1.494791667 | AJ176: 0.0536 | AK176: -0.08012083333 | AP176: 0 | AQ176: =IF(AND(AP176=32,$AN$4>=21,$AN$4<=25),AP176&"C",0) ->  | AU176: 0 | AV176: =IF(AND(AU176=32,$AS$4>=21,$AS$4<=25),AU176&"C",0) -> 
AC177: Bottom Bead | AD177: =(((Frame_Width-2.95)*2)+((CMR!$L$116-1.0625)*2))/12 -> -0.66875 | AE177: 0.021 | AF177: -0.01404375 | AH177: Top Hardware | AI177: 1 | AJ177: 0.4 | AK177: 0.4 | AP177: 0 | AQ177: =IF(AND(AP177=32,$AN$4>=26,$AN$4<=30),AP177&"D",0) ->  | AU177: 0 | AV177: =IF(AND(AU177=32,$AS$4>=26,$AS$4<=30),AU177&"D",0) -> 
AE178: Top Sash | AF178: =IF(ModelNo="V101",(TRUNC((SUM(AF160:AF168))))+5,0) -> 0 | AH178: Top Bead | AI178: =(((Frame_Width-5.125)*2)+((CMR!$E$116-4.3125)*2))/12 -> -1.572916667 | AJ178: 0.072 | AK178: -0.11325 | AP178: 0 | AQ178: =IF(AND(AP178=32,$AN$4>=31,$AN$4<=34),AP178&"E",0) ->  | AU178: 0 | AV178: =IF(AND(AU178=32,$AS$4>=31,$AS$4<=34),AU178&"E",0) -> 
AE179: Bottom Sash | AF179: =IF(ModelNo="V101",TRUNC((SUM(AF169:AF177))),0) -> 0 | AH179: Bottom Top Rail | AI179: =(Frame_Width-3.125)/12 -> -0.2604166667 | AJ179: 0.297 | AK179: -0.07734375 | AP179: 0 | AQ179: =IF(AND(AP179=32,$AN$4>=35,$AN$4<=37),AP179&"F",0) ->  | AU179: 0 | AV179: =IF(AND(AU179=32,$AS$4>=35,$AS$4<=37),AU179&"F",0) -> 
AH180: Bottom Bottom Rail | AI180: =(Frame_Width-3.125)/12 -> -0.2604166667 | AJ180: 0.232 | AK180: -0.06041666667 | AP180: 0 | AQ180: =IF(AND(AP180=32,$AN$4>=38,$AN$4<=40),AP180&"G",0) ->  | AU180: 0 | AV180: =IF(AND(AU180=32,$AS$4>=38,$AS$4<=40),AU180&"G",0) -> 
AC181: 03A0 | AD181: Length | AE181: Weight/ft | AF181: Weight | AH181: Bottom Stile | AI181: =(2*(CMR!$E$117-0.625))/12 -> -0.1041666667 | AJ181: 0.219 | AK181: -0.0228125 | AP181: 0 | AQ181: =IF(AND(AP181=32,$AN$4>=41,$AN$4<=43),AP181&"H",0) ->  | AU181: 0 | AV181: =IF(AND(AU181=32,$AS$4>=41,$AS$4<=43),AU181&"H",0) -> 
AC182: Bottom Top Rail | AD182: =(Frame_Width-3.125)/12 -> -0.2604166667 | AE182: 0.297 | AF182: =AD182*AE182 -> -0.07734375 | AH182: Bottom Rail Reinf. | AI182: =(TRUNC(((Frame_Width-3.125)-6)/2)*2)/12 -> -0.6666666667 | AJ182: =IF(OR(EXTSELECT=2,Frame_Width<48,Frame_Height<84),0.0516,IF(OR(EXTSELECT=3,Frame_Width>48,Frame_Height>84),0.57,0)) -> 0.0516 | AK182: -0.0344 | AP182: 0 | AQ182: =IF(AND(AP182=32,$AN$4>=44,$AN$4<=45),AP182&"I",0) ->  | AU182: 0 | AV182: =IF(AND(AU182=32,$AS$4>=44,$AS$4<=45),AU182&"I",0) -> 
AC183: Bottom Bottom Rail | AD183: =(Frame_Width-3.125)/12 -> -0.2604166667 | AE183: 0.232 | AF183: -0.06041666667 | AH183: Bottom Stile Reinf. | AI183: =IF(OR(Frame_Width>48,Frame_Height>84,EXTTYPE="Steel"),((TRUNC((CMR!$E$117-2)/2)*2)/12)*2,0) -> 0 | AJ183: 0.456 | AK183: 0 | AP183: 0 | AQ183: =IF(AND(AP183=32,$AN$4>=46,$AN$4<=50),"Dbl."&AP183&"C",0) ->  | AU183: 0 | AV183: =IF(AND(AU183=32,$AS$4>=46,$AS$4<=50),"Dbl."&AU183&"C",0) -> 
AC184: Bottom Stile | AD184: =(2*(CMR!$E$133-1.125))/12 -> -0.1875 | AE184: 0.219 | AF184: -0.0410625 | AH184: Bottom Glass | AI184: =(CMR!$E$120*CMR!$E$122)/144 -> 0.07318793403 | AJ184: =$L$12 -> 3.2 | AK184: 0.2342013889 | AP184: 0 | AQ184: =IF(AND(AP184=32,$AN$4>=51,$AN$4<=60),"Dbl."&AP184&"D",0) ->  | AU184: 0 | AV184: =IF(AND(AU184=32,$AS$4>=51,$AS$4<=60),"Dbl."&AU184&"D",0) -> 
AC185: Bottom Rail Reinf. | AD185: =(TRUNC(((Frame_Width-3.125)-6)/2)*2)/12 -> -0.6666666667 | AE185: =IF(OR(EXTSELECT=2,Frame_Width<48,Frame_Height<84),0.0516,IF(OR(EXTSELECT=3,Frame_Width>48,Frame_Height>84),0.57,0)) -> 0.0516 | AF185: -0.0344 | AH185: Bottom Spacer | AI185: =((CMR!$E$120*2)+(CMR!$E$122*2))/12 -> -1.161458333 | AJ185: 0.0536 | AK185: -0.06225416667 | AP185: 0 | AQ185: =IF(AND(AP185=32,$AN$4>=61,$AN$4<=68),"Dbl."&AP185&"E",0) ->  | AU185: 0 | AV185: =IF(AND(AU185=32,$AS$4>=61,$AS$4<=68),"Dbl."&AU185&"E",0) -> 
AC186: Bottom Stile Reinf. | AD186: =IF(OR(Frame_Width>48,Frame_Height>84,EXTTYPE="Steel"),((TRUNC(((CDIM03A0-1.125)-4)/2)*2)/12)*2,0) -> 0 | AE186: 0.456 | AF186: 0 | AH186: Bottom Hardware | AI186: 1 | AJ186: 0.36 | AK186: 0.36 | AP186: 0 | AQ186: =IF(AND(AP186=32,$AN$4>=69,$AN$4<=74),"Dbl."&AP186&"F",0) ->  | AU186: 0 | AV186: =IF(AND(AU186=32,$AS$4>=69,$AS$4<=74),"Dbl."&AU186&"F",0) -> 
AC187: Bottom Glass | AD187: =(CMR!$E$136*CMR!$E$138)/144 -> 0.08968098958 | AE187: =$L$12 -> 3.2 | AF187: 0.2869791667 | AH187: Bottom Bead | AI187: =(((Frame_Width-4.125)*2)+((CDIM3001-3.3125)*2))/12 ->  | AJ187: 0.072 | AP187: 0 | AQ187: =IF(AND(AP187=32,$AN$4>=75,$AN$4<=80),"Dbl."&AP187&"G",0) ->  | AU187: 0 | AV187: =IF(AND(AU187=32,$AS$4>=75,$AS$4<=80),"Dbl."&AU187&"G",0) -> 
AC188: Bottom Spacer | AD188: =((CMR!$E$136*2)+(CMR!$E$138*2))/12 -> -1.244791667 | AE188: 0.0536 | AF188: -0.06672083333 | AJ188: Top Sash | AK188: =IF(ModelNo="3001",(TRUNC((SUM(AK170:AK178))))+5,0) -> 0 | AP188: =IF(AND($AO$4<=34,$AO$4>32),34,0) -> 0 | AQ188: =IF(AND(AP188=34,$AN$4>=11,$AN$4<=16),AP188&"A",0) ->  | AU188: =IF(AND($AT$4<=34,$AT$4>32),34,0) -> 0 | AV188: =IF(AND(AU188=34,$AS$4>=11,$AS$4<=16),AU188&"A",0) -> 
AC189: Bottom Hardware | AD189: 1 | AE189: 0.36 | AF189: 0.36 | AJ189: Bottom Sash | AK189: =IF(ModelNo="3001",TRUNC((SUM(AK179:AK187))),0) -> 0 | AP189: 0 | AQ189: =IF(AND(AP189=34,$AN$4>=17,$AN$4<=22),AP189&"B",0) ->  | AU189: 0 | AV189: =IF(AND(AU189=34,$AS$4>=17,$AS$4<=22),AU189&"B",0) -> 
AC190: Bottom Bead | AD190: =(((Frame_Width-4.125)*2)+((CDIM03A0-3.3125)*2))/12 -> -1.239583333 | AE190: 0.072 | AF190: -0.08925 | AP190: 0 | AQ190: =IF(AND(AP190=34,$AN$4>=23,$AN$4<=27),AP190&"C",0) ->  | AU190: 0 | AV190: =IF(AND(AU190=34,$AS$4>=23,$AS$4<=27),AU190&"C",0) -> 
AE191: Bottom Sash | AF191: =IF(OR(ModelNo="03A0",ModelNo="S140",ModelNo="S144",ModelNo="S146",ModelNo="S140 (HP)",ModelNo="S144 (HP)",ModelNo="S146 (HP)"),TRUNC((SUM(AF182:AF190))),0) -> 0 | AP191: 0 | AQ191: =IF(AND(AP191=34,$AN$4>=28,$AN$4<=32),AP191&"D",0) ->  | AU191: 0 | AV191: =IF(AND(AU191=34,$AS$4>=28,$AS$4<=32),AU191&"D",0) -> 
AP192: 0 | AQ192: =IF(AND(AP192=34,$AN$4>=33,$AN$4<=34),AP192&"E",0) ->  | AU192: 0 | AV192: =IF(AND(AU192=34,$AS$4>=33,$AS$4<=34),AU192&"E",0) -> 
AP193: 0 | AQ193: =IF(AND(AP193=34,$AN$4>=35,$AN$4<=37),AP193&"F",0) ->  | AU193: 0 | AV193: =IF(AND(AU193=34,$AS$4>=35,$AS$4<=37),AU193&"F",0) -> 
AP194: 0 | AQ194: =IF(AND(AP194=34,$AN$4>=38,$AN$4<=40),AP194&"G",0) ->  | AU194: 0 | AV194: =IF(AND(AU194=34,$AS$4>=38,$AS$4<=40),AU194&"G",0) -> 
AP195: 0 | AQ195: =IF(AND(AP195=34,$AN$4>=41,$AN$4<=43),AP195&"H",0) ->  | AU195: 0 | AV195: =IF(AND(AU195=34,$AS$4>=41,$AS$4<=43),AU195&"H",0) -> 
AO196: =IF(AND(AP196>0,AQ196>0),AP196,0) ->  | AP196: 0 | AQ196: =IF(AND(AP196=34,$AN$4>=44,$AN$4<=45),AP196&"I",0) ->  | AU196: 0 | AV196: =IF(AND(AU196=34,$AS$4>=44,$AS$4<=45),AU196&"I",0) -> 
AP197: 0 | AQ197: =IF(AND(AP197=34,$AN$4>=46,$AN$4<=54),"Dbl."&AP197&"C",0) ->  | AT197: =IF(AND(AU197>0,AV197>0),AU197,0) ->  | AU197: 0 | AV197: =IF(AND(AU197=34,$AS$4>=46,$AS$4<=54),"Dbl."&AU197&"C",0) -> 
AP198: 0 | AQ198: =IF(AND(AP198=34,$AN$4>=55,$AN$4<=64),"Dbl."&AP198&"D",0) ->  | AU198: 0 | AV198: =IF(AND(AU198=34,$AS$4>=55,$AS$4<=64),"Dbl."&AU198&"D",0) -> 
AP199: 0 | AQ199: =IF(AND(AP199=34,$AN$4>=65,$AN$4<=68),"Dbl."&AP199&"E",0) ->  | AU199: 0 | AV199: =IF(AND(AU199=34,$AS$4>=65,$AS$4<=68),"Dbl."&AU199&"E",0) -> 
AP200: 0 | AQ200: =IF(AND(AP200=34,$AN$4>=69,$AN$4<=74),"Dbl."&AP200&"F",0) ->  | AU200: 0 | AV200: =IF(AND(AU200=34,$AS$4>=69,$AS$4<=74),"Dbl."&AU200&"F",0) -> 
... 29 more rows

Sheet CMR (hidden)
C2: W | E2: 3R10A | J2: W | L2: S140, S144, S146 | P2: =Frame_Height-MR -> 0
C3: =IF(TYPE=1,$C$2,IF(TYPE= "",$C$2," ")) -> W | D3: 1 | E3: =Frame_Width/2 -> 0 | F3: =TRUNC($E$3*16+0.5)/16 -> 0 | J3: =IF(TYPE=1,$J$2,IF(TYPE= "",$J$2," ")) -> W | K3: 1 | L3: =Frame_Height/2 -> 0 | M3: =TRUNC($L$3*16+0.5)/16 -> 0
D4: 2 | E4: =CEILING(((Frame_Width/5-0.093)*3-0.03125),0.0625) -> -0.25 | F4: =TRUNC($E4*16+0.5)/16 -> -0.1875 | G4: 5 | J4: =IF(TYPE=5,$J$2,IF(TYPE=2,IF(Frame_Height>=54.5,IF(Frame_Height<72.5,$J$2,""),""),"")) ->  | K4: 2 | L4: =CEILING(((Frame_Height/3-0.22)*2-0.03125),0.0625) -> -0.4375 | M4: =TRUNC($L$4*16+0.5)/16 -> -0.375 | N4: 5
E5: =TRUNC((Frame_Width/3-0.22)*32+0.5)/16 -> -0.375 | F5: =TRUNC($E$5*16+0.5)/16 -> -0.3125 | G5: 6 | J5: =IF(TYPE=6,$J$2,IF(AND(TYPE=2,OR(Frame_Height<54.5,Frame_Height>=72.5)),$J$2,"")) ->  | L5: =TRUNC((Frame_Height/5-0.093)*32+0.5)/16 -> -0.125 | M5: =TRUNC($L$5*16+0.5)/16 -> -0.0625 | N5: 6
D6: 3 | E6: =TRUNC((Frame_Width/5+0.156)*32+0.5)/16 -> 0.3125 | F6: =TRUNC($E$6*16+0.5)/16 -> 0.3125 | G6: 7 | J6: =IF(TYPE=7,$J$2,IF(TYPE=3,IF(Frame_Height>=54.5,IF(Frame_Height<72.5,$J$2,""),""),"")) ->  | K6: 3 | L6: =TRUNC((Frame_Height/3+0.44)*32+0.5)/16 -> 0.875 | M6: =TRUNC($L$6*16+0.5)/16 -> 0.875 | N6: 7
E7: =TRUNC((Frame_Width/3+0.44)*16+0.5)/16 -> 0.4375 | F7: =TRUNC($E$7*16+0.5)/16 -> 0.4375 | G7: 8 | J7: =IF(TYPE=8,$J$2,IF(AND(TYPE=3,OR(Frame_Height<54.5,Frame_Height>=72.5)),$J$2,"")) ->  | L7: =TRUNC((Frame_Height/5+0.156)*16+0.5)/16 -> 0.125 | M7: =TRUNC($L$7*16+0.5)/16 -> 0.125 | N7: 8
C8: =IF(TYPE=2,$C$2,"") ->  | D8: 4 | E8: =CMR -> 0 | F8: =TRUNC($E$8*16+0.5)/16 -> 0 | J8: =IF(TYPE=4,$J$2,"") ->  | K8: 4 | L8: =CMR -> 0 | M8: =TRUNC($L$8*16+0.5)/16 -> 0
B10: Dim.,"D" | D10: = | E10: =IF(C3=C2,F3,IF(C4=C2,F4,IF(C5=C2,F5,IF(C6=C2,F6,IF(C7=C2,F7,IF(C8=C2,F8,F3)))))) -> 0 | I10: Dim.,"D" | K10: = | L10: =IF(EXTSELECT=2,L26,IF($J$3=$J$2,$M$3,IF($J$4=$J$2,$M$4,IF($J$5=$J$2,$M$5,IF($J$6=$J$2,$M$6,IF($J$7=$J$2,$M$7,IF($J$8=$J$2,$M$8,$M$3))))))) -> 0
B11: Dim.,"C" | D11: = | E11: =Frame_Width-E10 -> 0 | I11: Dim.,"C" | K11: = | L11: =IF(EXTSELECT=5,L27,IF(EXTSELECT=2,CDIM03A0,Frame_Height-$L$10)) -> 0
B13: Ext. Glass Width | E13: =TRUNC((E10-2.6875)*16+0.5)/16 -> -2.625 | I13: Top Glass Width | L13: =TRUNC((Frame_Width-2*EXT)*16+0.5)/16 -> 0 | M13: Glass R: | N13: =IF(ModelNo="S146",(((Frame_Height-LEG)/2)+(((Frame_Width*2)^2)/(8*(Frame_Height-LEG))))-EXT,(((Frame_Height-LEG)/2)+((Frame_Width^2)/(8*(Frame_Height-LEG))))-EXT) ->  | O13: F | P13: =IF(Frame_Width>=(Frame_Height-LEG),2*(ASIN((EXT*2)/(2*N13))),2*(ASIN(((N13-(Frame_Width-2*EXT))*2)/(2*N13)))) -> 
B14: Int. Glass Width | E14: =TRUNC((E11-2.625)*16+0.5)/16 -> -2.5625 | I14: Bottom Glass Width | L14: =IF(EXTSELECT=5,$L$30,IF(EXTSELECT=2,$E$136,TRUNC((Frame_Width-4)*16+0.5)/16)) -> -3.9375 | M14: Glass h: | N14: =IF(ModelNo="S146",N13-(SQRT((4*N13^2)-((Frame_Width-(EXT*2))*2)^2)/2),N13-(SQRT((4*N13^2)-(Frame_Width-(EXT*2))^2)/2)) ->  | O14: d | P14: =N13*COS(P13/2) -> 
B15: Ext. Glass Height | E15: =TRUNC((Frame_Height-2.875)*16+0.5)/16 -> -2.8125 | I15: Top Glass Height | L15: =IF(ModelNo="S146",Frame_Height-($L$11+$N$15+EXT+P15),Frame_Height-($L$11+N15+EXT)) -> -0.9198 | N15: =IF(EXTSELECT=5,0.5137,IF(EXTSELECT=2,0.264,0.9198)) -> 0.9198 | O15: h | P15: =N13-P14 -> 
B16: Int. Glass Height | E16: =IF(Frame_Height<16.01,(TRUNC((Frame_Height-5.8125)*16+0.5)/16),IF(Frame_Height>16.01,(TRUNC((Frame_Height-5.75)*16+0.5)/16))) -> -5.75 | I16: Bottom Glass Height | L16: =IF(EXTSELECT=5,$L$32,IF(EXTSELECT=2,$E$138,TRUNC(($L$11-1.5625)*16+0.5)/16)) -> -1.5 | M16: Top Glass Leg: | N16: =L15-N14 -> 
C18: W | E18: L201 | J18: W | L18: 02A0
C19: =IF(TYPE=1,$C$2,IF(TYPE= "",$C$2," ")) -> W | D19: 1 | E19: =Frame_Height/2 -> 0 | F19: =TRUNC($E$19*32+0.5)/32 -> 0 | J19: =IF(TYPE=1,$J$18,IF(TYPE= "",$J$18," ")) -> W | K19: 1 | L19: =Frame_Height/2 -> 0 | M19: =TRUNC($L$19*16+0.5)/16 -> 0
D20: 2 | E20: =INT((Frame_Height/5)*48+0.5)/16 -> 0 | F20: =TRUNC($E20*16+0.5)/16 -> 0 | G20: 5 | J20: =IF(TYPE=5,$J$18,IF(TYPE=2,IF(Frame_Height>=54.5,IF(Frame_Height<72.5,$J$18,""),""),"")) ->  | K20: 2 | L20: =INT((Frame_Height/5)*48+0.5)/16 -> 0 | M20: =TRUNC($L$20*16+0.5)/16 -> 0 | N20: 5
E21: =INT((Frame_Height/3-0.22)*32+0.5)/16 -> -0.4375 | F21: =TRUNC($E$21*16+0.5)/16 -> -0.375 | G21: 6 | J21: =IF(TYPE=6,$J$18,IF(AND(TYPE=2,OR(Frame_Height<54.5,Frame_Height>=72.5)),$J$18,"")) ->  | L21: =INT((Frame_Height/3-0.22)*32+0.5)/16 -> -0.4375 | M21: =TRUNC($L$21*16+0.5)/16 -> -0.375 | N21: 6
D22: 3 | E22: =INT((Frame_Height/5+0.55)*32+0.5)/16 -> 1.125 | F22: =TRUNC($E$22*16+0.5)/16 -> 1.125 | G22: 7 | J22: =IF(TYPE=7,$J$18,IF(TYPE=3,IF(Frame_Height>=54.5,IF(Frame_Height<72.5,$J$18,""),""),"")) ->  | K22: 3 | L22: =INT((Frame_Height/5+0.55)*32+0.5)/16 -> 1.125 | M22: =TRUNC($L$22*16+0.5)/16 -> 1.125 | N22: 7
E23: =INT((Frame_Height/3+1.4)*16+0.5)/16 -> 1.375 | F23: =TRUNC($E$23*16+0.5)/16 -> 1.375 | G23: 8 | J23: =IF(TYPE=8,$J$18,IF(AND(TYPE=3,OR(Frame_Height<54.5,Frame_Height>=72.5)),$J$18,"")) ->  | L23: =INT((Frame_Height/3+1.4)*16+0.5)/16 -> 1.375 | M23: =TRUNC($L$23*16+0.5)/16 -> 1.375 | N23: 8
C24: =IF(TYPE=2,$C$2,"") ->  | D24: 4 | E24: =CMR -> 0 | F24: =TRUNC($E$24*16+0.5)/16 -> 0 | J24: =IF(TYPE=4,$J$18,"") ->  | K24: 4 | L24: =CMR -> 0 | M24: =TRUNC($L$24*16+0.5)/16 -> 0
B26: Dim.,"D" | D26: = | E26: =TRUNC((IF($C$19=$C$18,$F$19,IF($C$20=$C$18,$F$20,IF($C$21=$C$18,$F$21,IF($C$22=$C$18,$F$22,IF($C$23=$C$18,$F$23,IF($C$24=$C$18,$F$24,$F$19)))))))*32+0.5)/32 -> 0 | I26: Dim.,"D" | K26: = | L26: =IF($J$19=$J$18,$M$19,IF($J$20=$J$18,$M$20,IF($J$21=$J$18,$M$21,IF($J$22=$J$18,$M$22,IF($J$23=$J$18,$M$23,IF($J$24=$J$18,$M$24,$M$19)))))) -> 0
B27: Dim.,"C" | D27: = | E27: =TRUNC((Frame_Height-$E$26)*32+0.5)/32 -> 0 | I27: Dim.,"C" | K27: = | L27: =Frame_Height-$L$26 -> 0
B29: Top Glass Width | E29: =TRUNC((Frame_Width-4.9375)*16+0.5)/16 -> -4.875 | I29: Top Glass Width | L29: =TRUNC((Frame_Width-3.4375)*16+0.5)/16 -> -3.375
B30: Bottom Glass Width | E30: =TRUNC((Frame_Width-3.9375)*16+0.5)/16 -> -3.875 | I30: Bottom Glass Width | L30: =TRUNC((Frame_Width-3.90625)*16+0.5)/16 -> -3.875
B31: Top Glass Height | E31: =TRUNC(($E$26-3.21875)*32+0.5)/32 -> -3.1875 | I31: Top Glass Height | L31: =TRUNC(($L$26-2.25)*16+0.5)/16 -> -2.1875
B32: Bottom Glass Height | E32: =TRUNC(($E$27-2.21875)*32+0.5)/32 -> -2.1875 | I32: Bottom Glass Height | L32: =TRUNC(($L$27-2.40625)*16+0.5)/16 -> -2.375
C34: W | E34: 3R21A | J34: W | L34: 3R40A
C35: =IF(TYPE=1,$C$2,IF(TYPE= "",$C$2," ")) -> W | D35: 1 | E35: =Frame_Width/2 -> 0 | F35: =TRUNC($E$3*16+0.5)/16 -> 0 | J35: =IF(TYPE=1,$C$2,IF(TYPE= "",$C$2," ")) -> W | K35: 1 | L35: =Frame_Height/2 -> 0 | M35: =TRUNC(L35*32+0.5)/32 -> 0
D36: 2 | E36: =CEILING(((Frame_Width/5-0.093)*3-0.03125),0.0625) -> -0.25 | F36: =TRUNC($E36*16+0.5)/16 -> -0.1875 | G36: 5 | K36: 2 | L36: =INT((Frame_Height/5)*48+0.5)/16 -> 0 | M36: =TRUNC(L36*16+0.5)/16 -> 0 | N36: 5
E37: =TRUNC((Frame_Width/3-0.22)*32+0.5)/16 -> -0.375 | F37: =TRUNC($E$5*16+0.5)/16 -> -0.3125 | G37: 6 | L37: =INT((Frame_Height/3-0.22)*32+0.5)/16 -> -0.4375 | M37: =TRUNC(L37*16+0.5)/16 -> -0.375 | N37: 6
D38: 3 | E38: =TRUNC((Frame_Width/5+0.156)*32+0.5)/16 -> 0.3125 | F38: =TRUNC($E$6*16+0.5)/16 -> 0.3125 | G38: 7 | K38: 3 | L38: =INT((Frame_Height/5+0.55)*32+0.5)/16 -> 1.125 | M38: =TRUNC(L38*16+0.5)/16 -> 1.125 | N38: 7
E39: =TRUNC((Frame_Width/3+0.44)*16+0.5)/16 -> 0.4375 | F39: =TRUNC($E$7*16+0.5)/16 -> 0.4375 | G39: 8 | L39: =INT((Frame_Height/3+1.4)*16+0.5)/16 -> 1.375 | M39: =TRUNC(L39*16+0.5)/16 -> 1.375 | N39: 8
C40: =IF(TYPE=2,$C$2,"") ->  | D40: 4 | E40: =CMR -> 0 | F40: =TRUNC($E$8*16+0.5)/16 -> 0 | J40: =IF(TYPE=2,$C$2,"") ->  | K40: 4 | L40: =CMR -> 0 | M40: =TRUNC(L40*16+0.5)/16 -> 0
B42: Dim.,"D" | D42: = | E42: =IF(C35=C34,F35,IF(C36=C34,F36,IF(C37=C34,F37,IF(C38=C34,F38,IF(C39=C34,F39,IF(C40=C34,F40,F35)))))) -> 0 | I42: Dim.,"D" | K42: = | L42: =TRUNC((IF(J35=J34,M35,IF(J36=J34,M36,IF(J37=J34,M37,IF(J38=J34,M38,IF(J39=J34,M39,IF(J40=J34,M40,M35)))))))*32+0.5)/32 -> 0
B43: Dim.,"C" | D43: = | E43: =Frame_Width-E42 -> 0 | I43: Dim.,"C" | K43: = | L43: =TRUNC((Frame_Height-L42)*32+0.5)/32 -> 0
B45: Ext. Glass Width | E45: =TRUNC((E42-2.6875)*16+0.5)/16 -> -2.625 | I45: Top Glass Width | L45: =TRUNC((Frame_Width-2.875)*16+0.5)/16 -> -2.8125
B46: Int. Glass Width | E46: =TRUNC((E43-2.625)*16+0.5)/16 -> -2.5625 | I46: Bottom Glass Width | L46: =TRUNC((Frame_Width-5.625)*16+0.5)/16 -> -5.5625
B47: Ext. Glass Height | E47: =TRUNC((Frame_Height-2.875)*16+0.5)/16 -> -2.8125 | I47: Top Glass Height | L47: =TRUNC((L42-2.6875)*32+0.5)/32 -> -2.65625
B48: Int. Glass Height | E48: =TRUNC((Frame_Height-5.625)*16+0.5)/16 -> -5.5625 | I48: Bottom Glass Height | L48: =TRUNC((L43-2.625)*32+0.5)/32 -> -2.59375
C50: W | E50: 3R10C | J50: W | L50: 3R21C
C51: =IF(TYPE=1,$C$2,IF(TYPE= "",$C$2," ")) -> W | D51: 1 | E51: =(Frame_Width/4)+1.411 -> 1.411 | F51: =TRUNC(E51*16+0.5)/16 -> 1.4375 | J51: =IF(TYPE=1,$C$2,IF(TYPE= "",$C$2," ")) -> W | K51: 1 | L51: =(Frame_Width/4)+1.411 -> 1.411 | M51: =TRUNC(L51*16+0.5)/16 -> 1.4375
D52: 2 | K52: 2
D54: 3 | K54: 3
C56: =IF(TYPE=2,$C$2,"") ->  | D56: 4 | E56: =CMR -> 0 | F56: =TRUNC(E56*16+0.5)/16 -> 0 | J56: =IF(TYPE=2,$C$2,"") ->  | K56: 4 | L56: =CMR -> 0 | M56: =TRUNC(L56*16+0.5)/16 -> 0
B58: Dim.,"D" | D58: = | E58: =IF(C51=C50,F51,IF(C52=C50,F52,IF(C53=C50,F53,IF(C54=C50,F54,IF(C55=C50,F55,IF(C56=C50,F56,F51)))))) -> 1.4375 | I58: Dim.,"D" | K58: = | L58: =IF(J51=J50,M51,IF(J52=J50,M52,IF(J53=J50,M53,IF(J54=J50,M54,IF(J55=J50,M55,IF(J56=J50,M56,M51)))))) -> 1.4375
B59: Dim.,"C" | D59: = | E59: =Frame_Width-(E58*2) -> -2.875 | I59: Dim.,"C" | K59: = | L59: =Frame_Width-(L58*2) -> -2.875
B61: Int. Glass Height | E61: =TRUNC((Frame_Height-5.75)*16+0.5)/16 -> -5.6875 | I61: Int. Glass Height | L61: =TRUNC((Frame_Height-5.625)*16+0.5)/16 -> -5.5625
B62: Ext. Glass Height | E62: =TRUNC((Frame_Height-2.875)*16+0.5)/16 -> -2.8125 | I62: Ext. Glass Height | L62: =TRUNC((Frame_Height-2.875)*16+0.5)/16 -> -2.8125
B63: Int. Glass Width | E63: =TRUNC((E58-2.625)*16+0.5)/16 -> -1.125 | I63: Int. Glass Width | L63: =TRUNC((L58-2.625)*16+0.5)/16 -> -1.125
B64: Ext. Glass Width | E64: =TRUNC((E59-2.5625)*16+0.5)/16 -> -5.375 | I64: Ext. Glass Width | L64: =TRUNC((L59-2.5625)*16+0.5)/16 -> -5.375
C66: W | E66: 8R10A | J66: W | L66: 8R21A
C67: =IF(TYPE=1,$C$2,IF(TYPE= "",$C$2," ")) -> W | D67: 1 | E67: =Frame_Width/2 -> 0 | F67: =TRUNC($E$3*16+0.5)/16 -> 0 | J67: =IF(TYPE=1,$C$2,IF(TYPE= "",$C$2," ")) -> W | K67: 1 | L67: =Frame_Width/2 -> 0 | M67: =TRUNC($E$3*16+0.5)/16 -> 0
D68: 2 | E68: =CEILING(((Frame_Width/5-0.093)*3-0.03125),0.0625) -> -0.25 | F68: =TRUNC($E68*16+0.5)/16 -> -0.1875 | G68: 5 | K68: 2 | L68: =CEILING(((Frame_Width/5-0.093)*3-0.03125),0.0625) -> -0.25 | M68: =TRUNC($E68*16+0.5)/16 -> -0.1875 | N68: 5
E69: =TRUNC((Frame_Width/3-0.22)*32+0.5)/16 -> -0.375 | F69: =TRUNC($E$5*16+0.5)/16 -> -0.3125 | G69: 6 | L69: =TRUNC((Frame_Width/3-0.22)*32+0.5)/16 -> -0.375 | M69: =TRUNC($E$5*16+0.5)/16 -> -0.3125 | N69: 6
D70: 3 | E70: =TRUNC((Frame_Width/5+0.156)*32+0.5)/16 -> 0.3125 | F70: =TRUNC($E$6*16+0.5)/16 -> 0.3125 | G70: 7 | K70: 3 | L70: =TRUNC((Frame_Width/5+0.156)*32+0.5)/16 -> 0.3125 | M70: =TRUNC($E$6*16+0.5)/16 -> 0.3125 | N70: 7
E71: =TRUNC((Frame_Width/3+0.44)*16+0.5)/16 -> 0.4375 | F71: =TRUNC($E$7*16+0.5)/16 -> 0.4375 | G71: 8 | L71: =TRUNC((Frame_Width/3+0.44)*16+0.5)/16 -> 0.4375 | M71: =TRUNC($E$7*16+0.5)/16 -> 0.4375 | N71: 8
C72: =IF(TYPE=2,$C$2,"") ->  | D72: 4 | E72: =CMR -> 0 | F72: =TRUNC($E$8*16+0.5)/16 -> 0 | J72: =IF(TYPE=2,$C$2,"") ->  | K72: 4 | L72: =CMR -> 0 | M72: =TRUNC($E$8*16+0.5)/16 -> 0
B74: Dim.,"D" | D74: = | E74: =IF(C67=C66,F67,IF(C68=C66,F68,IF(C69=C66,F69,IF(C70=C66,F70,IF(C71=C66,F71,IF(C72=C66,F72,F67)))))) -> 0 | I74: Dim.,"D" | K74: = | L74: =IF(J67=J66,M67,IF(J68=J66,M68,IF(J69=J66,M69,IF(J70=J66,M70,IF(J71=J66,M71,IF(J72=J66,M72,M67)))))) -> 0
B75: Dim.,"C" | D75: = | E75: =Frame_Width-E74 -> 0 | I75: Dim.,"C" | K75: = | L75: =Frame_Width-L74 -> 0
B77: Ext. Glass Width | E77: =TRUNC((E74-3.5)*16+0.5)/16 -> -3.4375 | I77: Ext. Glass Width | L77: =TRUNC((L74-3.5)*16+0.5)/16 -> -3.4375
B78: Int. Glass Width | E78: =TRUNC((E75-3.5)*16+0.5)/16 -> -3.4375 | I78: Int. Glass Width | L78: =TRUNC((L75-3.5)*16+0.5)/16 -> -3.4375
B79: Ext. Glass Height | E79: =TRUNC((Frame_Height-5.875)*16+0.5)/16 -> -5.8125 | I79: Ext. Glass Height | L79: =TRUNC((Frame_Height-5.75)*16+0.5)/16 -> -5.6875
B80: Int. Glass Height | E80: =TRUNC((Frame_Height-5.875)*16+0.5)/16 -> -5.8125 | I80: Int. Glass Height | L80: =TRUNC((Frame_Height-5.75)*16+0.5)/16 -> -5.6875
C82: W | E82: 3100 | J82: W | L82: 8R40A
C83: =IF(TYPE=1,$C82,IF(TYPE= "",$C82," ")) -> W | D83: 1 | E83: =Frame_Height/2 -> 0 | F83: =TRUNC($E83*16+0.5)/16 -> 0 | J83: =IF(TYPE=1,$C$2,IF(TYPE= "",$C$2," ")) -> W | K83: 1 | L83: =Frame_Height/2 -> 0 | M83: =TRUNC(L83*16+0.5)/16 -> 0
C84: =IF(TYPE=5,$C82,IF(TYPE=2,IF(Frame_Height>=54.5,IF(Frame_Height<72.5,$C82,""),""),"")) ->  | D84: 2 | E84: =INT((Frame_Height/5)*16+0.5)/16 -> 0 | F84: 0 | G84: 5 | K84: 2 | L84: =CEILING(((Frame_Height/5-0.24)*3-0.03125),0.0625) -> -0.75 | M84: -0.6875 | N84: 5
C85: =IF(TYPE=6,$C82,IF(AND(TYPE=2,OR(Frame_Height<54.5,Frame_Height>=72.5)),$C82,"")) ->  | E85: =INT((Frame_Height/3-0.22)*32+0.5)/16 -> -0.4375 | F85: -0.375 | G85: 6 | L85: =TRUNC((Frame_Height/3-0.62)*32+0.5)/16 -> -1.1875 | M85: -1.125 | N85: 6
C86: =IF(TYPE=7,$C82,IF(TYPE=3,IF(Frame_Height>=54.5,IF(Frame_Height<72.5,$C82,""),""),"")) ->  | D86: 3 | E86: =INT((Frame_Height/5+0.55)*32+0.5)/16 -> 1.125 | F86: 1.125 | G86: 7 | K86: 3 | L86: =TRUNC((Frame_Height/5+0.38)*32+0.5)/16 -> 0.75 | M86: 0.75 | N86: 7
C87: =IF(TYPE=8,$C82,IF(AND(TYPE=3,OR(Frame_Height<54.5,Frame_Height>=72.5)),$C82,"")) ->  | E87: =INT((Frame_Height/3+1.4)*16+0.5)/16 -> 1.375 | F87: 1.375 | G87: 8 | L87: =TRUNC((Frame_Height/3+1.3)*16+0.5)/16 -> 1.3125 | M87: 1.3125 | N87: 8
C88: =IF(TYPE=4,$C82,"") ->  | D88: 4 | E88: =CMR -> 0 | F88: 0 | J88: =IF(TYPE=2,$C$2,"") ->  | K88: 4 | L88: =CMR -> 0 | M88: 0
B90: Dim.,"D" | D90: = | E90: =IF(C83=C82,F83,IF(C84=C82,F84,IF(C85=C82,F85,IF(C86=C82,F86,IF(C87=C82,F87,IF(C88=C82,F88,F83)))))) -> 0 | I90: Dim.,"D" | K90: = | L90: =IF(J83=J82,M83,IF(J84=J82,M84,IF(J85=J82,M85,IF(J86=J82,M86,IF(J87=J82,M87,IF(J88=J82,M88,M83)))))) -> 0
B91: Dim.,"C" | D91: = | E91: =Frame_Height-$E90 -> 0 | I91: Dim.,"C" | K91: = | L91: =Frame_Height-L90 -> 0
B93: Top Glass Width | E93: =TRUNC((Frame_Width-4.03125)*32+0.5)/32 -> -4 | I93: Top Glass Width | L93: =TRUNC((Frame_Width-5.75)*16+0.5)/16 -> -5.6875
B94: Bottom Glass Width | E94: =TRUNC((Frame_Width-4.76815)*32+0.5)/32 -> -4.75 | I94: Bottom Glass Width | L94: =TRUNC((Frame_Width-5.75)*16+0.5)/16 -> -5.6875
B95: Top Glass Height | E95: =TRUNC(($E90-3.0625)*32+0.5)/32 -> -3.03125 | I95: Top Glass Height | L95: =TRUNC((L90-3.5)*16+0.5)/16 -> -3.4375
B96: Bottom Glass Height | E96: =TRUNC(($E91-3.00375)*32+0.5)/32 -> -2.96875 | I96: Bottom Glass Height | L96: =TRUNC((L91-3.5)*16+0.5)/16 -> -3.4375
D98: 3102 | L98: V100
I99: Dim.,"D" | K99: = | L99: =IF(TYPE=1,(Frame_Height/2),IF(TYPE=2,CMR)) -> 0
B100: Dim.,"D" | D100: = | E100: =IF(TYPE=1,(Frame_Width/2),IF(TYPE=4,CMR)) -> 0 | I100: Dim.,"C" | K100: = | L100: =Frame_Height-L99 -> 0
B101: Dim.,"C" | D101: = | E101: =Frame_Width-$E100 -> 0
I102: Top Glass Width | L102: =TRUNC((Frame_Width-3.5)*32+0.5)/32 -> -3.46875
B103: Fixed Glass Width | E103: =$E$100-3.09375 -> -3.09375 | I103: Bottom Glass Width | L103: =TRUNC(((TRUNC((Frame_Width-2.188)*32+0.5)/32)-1.3125)*32+0.5)/32 -> -3.4375
B104: Sash Glass Width | E104: =(TRUNC(($E$101-0.7)*16+0.5)/16)-1.625 -> -2.25 | I104: Top Glass Height | L104: =TRUNC((L99-2.157)*32+0.5)/32 -> -2.125
B105: Fixed Glass Height | E105: =Frame_Height-5.09375 -> -5.09375 | I105: Bottom Glass Height | L105: =TRUNC(((TRUNC(((L100-1.0625)*16+0.5))/16)-1.312)*32+0.5)/32 -> -2.28125
B106: Sash Glass Height | E106: =(TRUNC((Frame_Height-3.4)*16+0.5)/16)-1.625 -> -4.9375
J107: W | L107: V101
C108: W | E108: 3001 | J108: =IF(TYPE=1,$J107,IF(TYPE="",$J107," ")) -> W | K108: 1 | L108: =Frame_Height/2 -> 0 | M108: =TRUNC($L108*16+0.5)/16 -> 0
C109: =IF(TYPE=1,C108,IF(TYPE= "",C108," ")) -> W | D109: 1 | E109: =Frame_Height/2 -> 0 | F109: =TRUNC(E109*32+0.5)/32 -> 0 | J109: =IF(TYPE=5,$J107,IF(TYPE=2,IF(Frame_Height>=54.5,IF(Frame_Height<72.5,$J107,""),""),"")) ->  | K109: 2 | L109: =INT((Frame_Height/5)*48+0.5)/16 -> 0 | M109: 0 | N109: 5
C110: =IF(TYPE=5,C108,IF(TYPE=2,IF(Frame_Height>=54.5,IF(Frame_Height<72.5,C108,""),""),"")) ->  | D110: 2 | E110: =INT((Frame_Height/5)*48+0.5)/16 -> 0 | F110: =TRUNC(E110*16+0.5)/16 -> 0 | G110: 5 | J110: =IF(TYPE=6,$J107,IF(AND(TYPE=2,OR(Frame_Height<54.5,Frame_Height>=72.5)),$J107,"")) ->  | L110: =INT((Frame_Height/3-0.22)*32+0.5)/16 -> -0.4375 | M110: -0.375 | N110: 6
C111: =IF(TYPE=6,C108,IF(AND(TYPE=2,OR(Frame_Height<54.5,Frame_Height>=72.5)),C108,"")) ->  | E111: =INT((Frame_Height/3-0.22)*32+0.5)/16 -> -0.4375 | F111: =TRUNC(E111*16+0.5)/16 -> -0.375 | G111: 6 | J111: =IF(TYPE=7,$J107,IF(TYPE=3,IF(Frame_Height>=54.5,IF(Frame_Height<72.5,$J107,""),""),"")) ->  | K111: 3 | L111: =INT((Frame_Height/5+0.55)*32+0.5)/16 -> 1.125 | M111: 1.125 | N111: 7
C112: =IF(TYPE=7,C108,IF(TYPE=3,IF(Frame_Height>=54.5,IF(Frame_Height<72.5,C108,""),""),"")) ->  | D112: 3 | E112: =INT((Frame_Height/5+0.55)*32+0.5)/16 -> 1.125 | F112: =TRUNC(E112*16+0.5)/16 -> 1.125 | G112: 7 | J112: =IF(TYPE=8,$J107,IF(AND(TYPE=3,OR(Frame_Height<54.5,Frame_Height>=72.5)),$J107,"")) ->  | L112: =INT((Frame_Height/3+1.4)*16+0.5)/16 -> 1.375 | M112: 1.375 | N112: 8
C113: =IF(TYPE=8,C108,IF(AND(TYPE=3,OR(Frame_Height<54.5,Frame_Height>=72.5)),C108,"")) ->  | E113: =INT((Frame_Height/3+1.4)*16+0.5)/16 -> 1.375 | F113: =TRUNC(E113*16+0.5)/16 -> 1.375 | G113: 8 | J113: =IF(TYPE=4,$J107,"") ->  | K113: 4 | L113: =CMR -> 0 | M113: 0
C114: =IF(TYPE=4,C108,"") ->  | D114: 4 | E114: =CMR -> 0 | F114: =TRUNC(E114*16+0.5)/16 -> 0
I115: Dim.,"D" | K115: = | L115: =IF($J108=$J107,$M108,IF($J109=$J107,$M109,IF($J110=$J107,$M110,IF($J111=$J107,$M111,IF($J112=$J107,$M112,IF($J113=$J107,$M113)))))) -> 0
B116: Dim.,"D" | D116: = | E116: =TRUNC((IF(C109=C108,F109,IF(C110=C108,F110,IF(C111=C108,F111,IF(C112=C108,F112,IF(C113=C108,F113,IF(C114=C108,F114,F109)))))))*32+0.5)/32 -> 0 | I116: Dim.,"C" | K116: = | L116: =Frame_Height-$L115 -> 0
B117: Dim.,"C" | D117: = | E117: =TRUNC((Frame_Height-E116)*32+0.5)/32 -> 0
I118: Top Glass Width | L118: =TRUNC((Frame_Width-4.75)*16+0.5)/16 -> -4.6875
B119: Top Glass Width | E119: =TRUNC((Frame_Width-5.8125)*16+0.5)/16 -> -5.75 | I119: Bottom Glass Width | L119: =TRUNC((Frame_Width-3.5)*16+0.5)/16 -> -3.4375
B120: Bottom Glass Width | E120: =TRUNC((Frame_Width-4.8125)*16+0.5)/16 -> -4.75 | I120: Top Glass Height | L120: =TRUNC(($L115-2.9375)*16+0.5)/16 -> -2.875
B121: Top Glass Height | E121: =TRUNC((E116-3.25)*32+0.5)/32 -> -3.21875 | I121: Bottom Glass Height | L121: =TRUNC(($L116-1.6875)*16+0.5)/16 -> -1.625
B122: Bottom Glass Height | E122: =TRUNC((E117-2.25)*32+0.5)/32 -> -2.21875
L123: V200
C124: W | E124: 03A0 | I124: Dim.,"D" | K124: = | L124: =IF(TYPE=1,(Frame_Height/2),IF(TYPE=2,CMR)) -> 0
C125: =IF(TYPE=1,C124,IF(TYPE= "",C124," ")) -> W | D125: 1 | E125: =Frame_Height/2 -> 0 | F125: =TRUNC(E125*32+0.5)/32 -> 0 | I125: Dim.,"C" | K125: = | L125: =Frame_Height-L124 -> 0
C126: =IF(TYPE=5,C124,IF(TYPE=2,IF(Frame_Height>=54.5,IF(Frame_Height<72.5,C124,""),""),"")) ->  | D126: 2 | E126: =INT((Frame_Height/5)*48+0.5)/16 -> 0 | F126: =TRUNC(E126*16+0.5)/16 -> 0 | G126: 5
C127: =IF(TYPE=6,C124,IF(AND(TYPE=2,OR(Frame_Height<54.5,Frame_Height>=72.5)),C124,"")) ->  | E127: =INT((Frame_Height/3-0.22)*32+0.5)/16 -> -0.4375 | F127: =TRUNC(E127*16+0.5)/16 -> -0.375 | G127: 6 | I127: Top Glass Width | L127: =TRUNC((Frame_Width-3.5625)*32+0.5)/32 -> -3.53125
C128: =IF(TYPE=7,C124,IF(TYPE=3,IF(Frame_Height>=54.5,IF(Frame_Height<72.5,C124,""),""),"")) ->  | D128: 3 | E128: =INT((Frame_Height/5+0.55)*32+0.5)/16 -> 1.125 | F128: =TRUNC(E128*16+0.5)/16 -> 1.125 | G128: 7 | I128: Bottom Glass Width | L128: =TRUNC(((TRUNC((Frame_Width-2.1875)*32+0.5)/32)-1.375)*32+0.5)/32 -> -3.5
C129: =IF(TYPE=8,C124,IF(AND(TYPE=3,OR(Frame_Height<54.5,Frame_Height>=72.5)),C124,"")) ->  | E129: =INT((Frame_Height/3+1.4)*16+0.5)/16 -> 1.375 | F129: =TRUNC(E129*16+0.5)/16 -> 1.375 | G129: 8 | I129: Top Glass Height | L129: =TRUNC((L124-2.25)*32+0.5)/32 -> -2.21875
C130: =IF(TYPE=4,C124,"") ->  | D130: 4 | E130: =CMR -> 0 | F130: =TRUNC(E130*16+0.5)/16 -> 0 | I130: Bottom Glass Height | L130: =TRUNC(((TRUNC(((L125-0.8125)*32+0.5))/32-0.0625)-1.4375)*32+0.5)/32 -> -2.25
B132: Dim.,"D" | D132: = | E132: =TRUNC((IF(C125=C124,F125,IF(C126=C124,F126,IF(C127=C124,F127,IF(C128=C124,F128,IF(C129=C124,F129,IF(C130=C124,F130,F125)))))))*32+0.5)/32 -> 0
B133: Dim.,"C" | D133: = | E133: =TRUNC((Frame_Height-E132)*32+0.5)/32 -> 0
B135: Top Glass Width | E135: =TRUNC((Frame_Width-4.75)*16+0.5)/16 -> -4.6875
B136: Bottom Glass Width | E136: =TRUNC((Frame_Width-4.8125)*16+0.5)/16 -> -4.75
B137: Top Glass Height | E137: =TRUNC((E132-2.625)*32+0.5)/32 -> -2.59375
B138: Bottom Glass Height | E138: =TRUNC((E133-2.75)*32+0.5)/32 -> -2.71875
